Department family,Entity,Date of payment,Expense type,Expense area,Supplier,Transaction number,Amount in Sterling,Supplier VAT Registration Number
Department of Health,Guys and St Thomas NHS Foundation Trust,18/03/2022,(89600) Non-Healthcare from other NHS bodies,(id:42134) Pathology,NHS BLOOD AND TRANSPLANT,id:15035181,1008.14
Department of Health,Guys and St Thomas NHS Foundation Trust,18/03/2022,(89600) Non-Healthcare from other NHS bodies,(id:42134) Pathology,NHS BLOOD AND TRANSPLANT,id:14970680,6909.00
Department of Health,Guys and St Thomas NHS Foundation Trust,18/03/2022,(89000) Other - Training courses and conferences,(id:4988419) TAP,UNIVERSITY OF NORTHAMPTON,id:14900255    ,7940.00
Department of Health,Guys and St Thomas NHS Foundation Trust,18/03/2022,(84650) Establishment,(id:4988419) TAP,HCL NURSING LTD,id:15033215 ,3501.62
Department of Health,Guys and St Thomas NHS Foundation Trust,04/03/2022,(84650) Establishment,(id:4988419) TAP,MEDACS HEALTHCARE SERVICES PLC,id:14964734 ,2278.80
Department of Health,Guys and St Thomas NHS Foundation Trust,11/03/2022,(84650) Establishment,(id:4988419) TAP,MEDACS HEALTHCARE SERVICES PLC,id:15006594 ,2278.80
Department of Health,Guys and St Thomas NHS Foundation Trust,11/03/2022,(84650) Establishment,(id:4988419) TAP,MEDACS HEALTHCARE SERVICES PLC,id:15006614 ,2278.80
Department of Health,Guys and St Thomas NHS Foundation Trust,11/03/2022,(84650) Establishment,(id:4988419) TAP,MSI GROUP LTD,id:15018003   ,2376.00
Department of Health,Guys and St Thomas NHS Foundation Trust,11/03/2022,(84650) Establishment,(id:4988419) TAP,MSI GROUP LTD,id:15018000   ,1980.00
Department of Health,Guys and St Thomas NHS Foundation Trust,18/03/2022,(81255) Medical Surgical Supplies & Equipment,(id:4621419) TAP,NHS SUPPLY CHAIN (MAIDSTONE),id:14986785    ,  20.52
Department of Health,Guys and St Thomas NHS Foundation Trust,18/03/2022,(83500) Furniture & Fittings,(id:41909) TAP,WAGSTAFF INTERIORS GROUP,id:14986982  , 801.60
Department of Health,Guys and St Thomas NHS Foundation Trust,24/03/2022,(82800) Bedding & Linen,(id:41905) TAP,NHS SUPPLY CHAIN (MAIDSTONE),id:14970245   ,  89.89
Department of Health,Guys and St Thomas NHS Foundation Trust,04/03/2022,(81200) Medical Surgical Supplies & Equipment,(id:41905) TAP,PHILIPS HEALTHCARE,id:14980728 ,1095.36
Department of Health,Guys and St Thomas NHS Foundation Trust,11/03/2022,(81200) Medical Surgical Supplies & Equipment,(id:41905) TAP,MEDTRONIC LTD,id:14967227 , 600.00
Department of Health,Guys and St Thomas NHS Foundation Trust,24/03/2022,(82600) Uniforms & Clothing,(id:41905) TAP,NHS SUPPLY CHAIN (MAIDSTONE),id:14970245    ,  62.15
Department of Health,Guys and St Thomas NHS Foundation Trust,24/03/2022,(81255) Medical Surgical Supplies & Equipment,(id:41905) TAP,NHS SUPPLY CHAIN (MAIDSTONE),id:14966960 , 117.92
Department of Health,Guys and St Thomas NHS Foundation Trust,18/03/2022,(81255) Medical Surgical Supplies & Equipment,(id:41905) TAP,NHS SUPPLY CHAIN (MAIDSTONE),id:14986785 ,  58.96
Department of Health,Guys and St Thomas NHS Foundation Trust,25/03/2022,(81200) Medical Surgical Supplies & Equipment,(id:41906) TAP,AMBU LIMITED,id:15026725  ,4309.14
Department of Health,Guys and St Thomas NHS Foundation Trust,04/03/2022,(81100) Dressings,(id:41906) TAP,NHS SUPPLY CHAIN (MAIDSTONE),id:14891794    , 152.51
Department of Health,Guys and St Thomas NHS Foundation Trust,18/03/2022,(82600) Uniforms & Clothing,(id:41906) TAP,NHS SUPPLY CHAIN (MAIDSTONE),id:14986785    ,  53.38
Department of Health,Guys and St Thomas NHS Foundation Trust,04/03/2022,(82000) Provisions & Kitchens,(id:41906) TAP,NHS SUPPLY CHAIN (MAIDSTONE),id:14891794  ,  38.76
Department of Health,Guys and St Thomas NHS Foundation Trust,04/03/2022,(82800) Bedding & Linen,(id:41907) TAP,NHS SUPPLY CHAIN (MAIDSTONE),id:14891794   , 357.12
Department of Health,Guys and St Thomas NHS Foundation Trust,18/03/2022,(81200) Medical Surgical Supplies & Equipment,(id:41907) TAP,NHS SUPPLY CHAIN (MAIDSTONE),id:14986785 ,1364.57
Department of Health,Guys and St Thomas NHS Foundation Trust,18/03/2022,(81200) Medical Surgical Supplies & Equipment,(id:41907) TAP,MASIMO EUROPE LTD,id:15033802  , 750.00
Department of Health,Guys and St Thomas NHS Foundation Trust,04/03/2022,(81200) Medical Surgical Supplies & Equipment,(id:850419) TAP,NHS SUPPLY CHAIN (MAIDSTONE),id:14891794,  29.52
Department of Health,Guys and St Thomas NHS Foundation Trust,18/03/2022,(83400) Office Equipment,(id:850419) TAP,NHS SUPPLY CHAIN (MAIDSTONE),id:14986785 , 458.53
Department of Health,Guys and St Thomas NHS Foundation Trust,04/03/2022,(83400) Office Equipment,(id:850419) TAP,NHS SUPPLY CHAIN (MAIDSTONE),id:14891794 , 196.76
Department of Health,Guys and St Thomas NHS Foundation Trust,18/03/2022,(81100) Dressings,(id:850419) TAP,NHS SUPPLY CHAIN (MAIDSTONE),id:14986785   ,  77.44
Department of Health,Guys and St Thomas NHS Foundation Trust,24/03/2022,(81100) Dressings,(id:850419) TAP,NHS SUPPLY CHAIN (MAIDSTONE),id:14966960   , 191.27
Department of Health,Guys and St Thomas NHS Foundation Trust,18/03/2022,(82000) Provisions & Kitchens,(id:41918) TAP,NHS SUPPLY CHAIN (MAIDSTONE),id:14986785  ,  69.20
Department of Health,Guys and St Thomas NHS Foundation Trust,25/03/2022,(84500) Establishment,(id:41918) TAP,CDP  PRINT MANAGEMENT,id:15011878  ,  68.00
Department of Health,Guys and St Thomas NHS Foundation Trust,24/03/2022,(83400) Office Equipment,(id:41918) TAP,NHS SUPPLY CHAIN (MAIDSTONE),id:14966960  , 116.69
Department of Health,Guys and St Thomas NHS Foundation Trust,18/03/2022,(81200) Medical Surgical Supplies & Equipment,(id:41918) TAP,NHS SUPPLY CHAIN (MAIDSTONE),id:14986785 , 785.50
Department of Health,Guys and St Thomas NHS Foundation Trust,18/03/2022,(81200) Medical Surgical Supplies & Equipment,(id:41918) TAP,CENTRAL MEDICAL SUPPLIES LTD,id:14844915 , 548.40
Department of Health,Guys and St Thomas NHS Foundation Trust,25/03/2022,(50562) Qualified Nursing Staff,(id:41918) TAP,MEDICSPRO LTD,id:15058860,1592.19
Department of Health,Guys and St Thomas NHS Foundation Trust,04/03/2022,(82700) Uniforms & Clothing,(id:41916) TAP,NHS SUPPLY CHAIN (MAIDSTONE),id:14891794    ,  63.36
Department of Health,Guys and St Thomas NHS Foundation Trust,24/03/2022,(82700) Uniforms & Clothing,(id:41916) TAP,NHS SUPPLY CHAIN (MAIDSTONE),id:14966960    ,  23.76
Department of Health,Guys and St Thomas NHS Foundation Trust,25/03/2022,(84500) Establishment,(id:41916) TAP,CDP  PRINT MANAGEMENT,id:15011876  ,   7.20
Department of Health,Guys and St Thomas NHS Foundation Trust,24/03/2022,(81700) Lab Equipment Purchase,(id:41924) TAP,NHS SUPPLY CHAIN (MAIDSTONE),id:14966960 ,  83.31
Department of Health,Guys and St Thomas NHS Foundation Trust,24/03/2022,(83500) Furniture & Fittings,(id:41924) TAP,NHS SUPPLY CHAIN (MAIDSTONE),id:14966960   , 390.00
Department of Health,Guys and St Thomas NHS Foundation Trust,04/03/2022,(82800) Bedding & Linen,(id:41883) TAP,NHS SUPPLY CHAIN (MAIDSTONE),id:14891794   , 196.49
Department of Health,Guys and St Thomas NHS Foundation Trust,18/03/2022,(81225) Medical Surgical Supplies & Equipment,(id:41883) TAP,NHS SUPPLY CHAIN (MAIDSTONE),id:14986785 , 142.13
Department of Health,Guys and St Thomas NHS Foundation Trust,25/03/2022,(81100) Dressings,(id:41883) TAP,ELIS UK LIMITED,id:15039735  ,1067.50
Department of Health,Guys and St Thomas NHS Foundation Trust,25/03/2022,(50562) Qualified Nursing Staff,(id:41883) TAP,STAFFING PROFESSIONALS LTD,id:15058841  , 622.44
Department of Health,Guys and St Thomas NHS Foundation Trust,04/03/2022,(81200) Medical Surgical Supplies & Equipment,(id:2549419) TAP,NHS SUPPLY CHAIN (MAIDSTONE),id:14891794    , 157.54
Department of Health,Guys and St Thomas NHS Foundation Trust,25/03/2022,(84500) Establishment,(id:2549419) TAP,CDP  PRINT MANAGEMENT,id:15011875,  40.70
Department of Health,Guys and St Thomas NHS Foundation Trust,24/03/2022,(82800) Bedding & Linen,(id:41897) TAP,NHS SUPPLY CHAIN (MAIDSTONE),id:14966960   , 293.72
Department of Health,Guys and St Thomas NHS Foundation Trust,25/03/2022,(81100) Dressings,(id:41897) TAP,ELIS UK LIMITED,id:15039719  , 518.45
Department of Health,Guys and St Thomas NHS Foundation Trust,24/03/2022,(81400) Medical Surgical Supplies & Equipment,(id:41897) TAP,NHS SUPPLY CHAIN ( CAPITAL FUND ONLY),id:15050435  ,9779.30
Department of Health,Guys and St Thomas NHS Foundation Trust,18/03/2022,(81225) Medical Surgical Supplies & Equipment,(id:41897) TAP,NHS SUPPLY CHAIN (MAIDSTONE),id:14986785 , 123.23
Department of Health,Guys and St Thomas NHS Foundation Trust,24/03/2022,(81225) Medical Surgical Supplies & Equipment,(id:41897) TAP,NHS SUPPLY CHAIN (MAIDSTONE),id:14970245 , 164.65
Department of Health,Guys and St Thomas NHS Foundation Trust,24/03/2022,(82000) Provisions & Kitchens,(id:41897) TAP,NHS SUPPLY CHAIN (MAIDSTONE),id:14966960  ,  54.27
Department of Health,Guys and St Thomas NHS Foundation Trust,04/03/2022,(81100) Dressings,(id:41894) TAP,NHS SUPPLY CHAIN (MAIDSTONE),id:14891794    ,   3.41
Department of Health,Guys and St Thomas NHS Foundation Trust,04/03/2022,(81100) Dressings,(id:41894) TAP,ELIS UK LIMITED,id:14951894  , 272.40
Department of Health,Guys and St Thomas NHS Foundation Trust,24/03/2022,(81200) Medical Surgical Supplies & Equipment,(id:41894) TAP,NHS SUPPLY CHAIN (MAIDSTONE),id:14970245 , 713.12
Department of Health,Guys and St Thomas NHS Foundation Trust,24/03/2022,(83400) Office Equipment,(id:3237419) Gastrointestinal Medicine & Surgery,NHS SUPPLY CHAIN (MAIDSTONE),id:14970245   ,  10.90
Department of Health,Guys and St Thomas NHS Foundation Trust,24/03/2022,(82700) Uniforms & Clothing,(id:41958) Gastrointestinal Medicine & Surgery,NHS SUPPLY CHAIN (MAIDSTONE),id:14970245  ,  31.68
Department of Health,Guys and St Thomas NHS Foundation Trust,24/03/2022,(82000) Provisions & Kitchens,(id:41958) Gastrointestinal Medicine & Surgery,NHS SUPPLY CHAIN (MAIDSTONE),id:14966960,   5.86
Department of Health,Guys and St Thomas NHS Foundation Trust,25/03/2022,(84500) Establishment,(id:41958) Gastrointestinal Medicine & Surgery,CDP  PRINT MANAGEMENT,id:15011876, 225.30
Department of Health,Guys and St Thomas NHS Foundation Trust,04/03/2022,(83400) Office Equipment,(id:41958) Gastrointestinal Medicine & Surgery,NHS SUPPLY CHAIN (MAIDSTONE),id:14891794,  93.77
Department of Health,Guys and St Thomas NHS Foundation Trust,24/03/2022,(83400) Office Equipment,(id:41958) Gastrointestinal Medicine & Surgery,NHS SUPPLY CHAIN (MAIDSTONE),id:14966960,  91.49
Department of Health,Guys and St Thomas NHS Foundation Trust,04/03/2022,(50522) Unqualified Nursing Staff,(id:41958) Gastrointestinal Medicine & Surgery,GLOBE LOCUMS LTD,id:14980943   , 251.47
Department of Health,Guys and St Thomas NHS Foundation Trust,11/03/2022,(50522) Unqualified Nursing Staff,(id:41958) Gastrointestinal Medicine & Surgery,CARE PROVIDERS HEALTHCARE,id:15018736    , 467.71
Department of Health,Guys and St Thomas NHS Foundation Trust,11/03/2022,(50522) Unqualified Nursing Staff,(id:41958) Gastrointestinal Medicine & Surgery,MSI GROUP LTD,id:15018774 , 833.66
Department of Health,Guys and St Thomas NHS Foundation Trust,04/03/2022,(81000) Surgical Appliances,(id:41944) Gastrointestinal Medicine & Surgery,MEDI UK LTD,id:14981194    , 312.71
Department of Health,Guys and St Thomas NHS Foundation Trust,25/03/2022,(84500) Establishment,(id:41945) Gastrointestinal Medicine & Surgery,CDP  PRINT MANAGEMENT,id:15011876,   7.20
Department of Health,Guys and St Thomas NHS Foundation Trust,04/03/2022,(83500) Furniture & Fittings,(id:41954) Gastrointestinal Medicine & Surgery,TECHNIBLINDS LTD,id:14965874   , 500.40
Department of Health,Guys and St Thomas NHS Foundation Trust,18/03/2022,(84400) Transport,(id:41956) Gastrointestinal Medicine & Surgery,INOMED NEUROCARE LIMITED,id:14989073 ,  30.00
Department of Health,Guys and St Thomas NHS Foundation Trust,04/03/2022,(81200) Medical Surgical Supplies & Equipment,(id:5182419) Gastrointestinal Medicine & Surgery,LAWMED LTD,id:14984407,3184.20
Department of Health,Guys and St Thomas NHS Foundation Trust,04/03/2022,(81200) Medical Surgical Supplies & Equipment,(id:5182419) Gastrointestinal Medicine & Surgery,LAWMED LTD,id:14989292,1276.20
Department of Health,Guys and St Thomas NHS Foundation Trust,18/03/2022,(81200) Medical Surgical Supplies & Equipment,(id:5182419) Gastrointestinal Medicine & Surgery,LAWMED LTD,id:15027312, 808.20
Department of Health,Guys and St Thomas NHS Foundation Trust,24/03/2022,(81200) Medical Surgical Supplies & Equipment,(id:5182419) Gastrointestinal Medicine & Surgery,NHS SUPPLY CHAIN (MAIDSTONE),id:14970245  ,1401.84
Department of Health,Guys and St Thomas NHS Foundation Trust,24/03/2022,(81100) Dressings,(id:41949) Gastrointestinal Medicine & Surgery,NHS SUPPLY CHAIN (MAIDSTONE),id:14970245  , 531.99
Department of Health,Guys and St Thomas NHS Foundation Trust,25/03/2022,(81200) Medical Surgical Supplies & Equipment,(id:41949) Gastrointestinal Medicine & Surgery,MEDTRONIC LTD,id:15019631    , 902.95
Department of Health,Guys and St Thomas NHS Foundation Trust,25/03/2022,(84500) Establishment,(id:2367419) Gastrointestinal Medicine & Surgery,CDP  PRINT MANAGEMENT,id:15011876   ,   3.10
Department of Health,Guys and St Thomas NHS Foundation Trust,18/03/2022,(82800) Bedding & Linen,(id:2367419) Gastrointestinal Medicine & Surgery,NHS SUPPLY CHAIN (MAIDSTONE),id:14986785    ,  89.98
Department of Health,Guys and St Thomas NHS Foundation Trust,24/03/2022,(81200) Medical Surgical Supplies & Equipment,(id:2367419) Gastrointestinal Medicine & Surgery,NHS SUPPLY CHAIN (MAIDSTONE),id:14970245  , 419.56
Department of Health,Guys and St Thomas NHS Foundation Trust,11/03/2022,(81200) Medical Surgical Supplies & Equipment,(id:41917) Gastrointestinal Medicine & Surgery,BOSTON SCIENTIFIC LTD,id:14967210 , 675.65
Department of Health,Guys and St Thomas NHS Foundation Trust,11/03/2022,(81200) Medical Surgical Supplies & Equipment,(id:41917) Gastrointestinal Medicine & Surgery,18 WEEK SUPPORT LIMITED,id:15011185    ,4950.00
Department of Health,Guys and St Thomas NHS Foundation Trust,11/03/2022,(81200) Medical Surgical Supplies & Equipment,(id:41917) Gastrointestinal Medicine & Surgery,18 WEEK SUPPORT LIMITED,id:15011014    ,    17850.00
Department of Health,Guys and St Thomas NHS Foundation Trust,04/03/2022,(81200) Medical Surgical Supplies & Equipment,(id:41917) Gastrointestinal Medicine & Surgery,NHS SUPPLY CHAIN (MAIDSTONE),id:14891794    ,    17913.32
Department of Health,Guys and St Thomas NHS Foundation Trust,04/03/2022,(81200) Medical Surgical Supplies & Equipment,(id:41917) Gastrointestinal Medicine & Surgery,SYNECTICS MEDICAL LTD (SYNMED),id:14976893  ,4557.60
Department of Health,Guys and St Thomas NHS Foundation Trust,11/03/2022,(89010) Other - Publishing,(id:41942) Gastrointestinal Medicine & Surgery,ROYAL COLLEGE OF PHYSICIANS,id:15011234    ,3000.00
Department of Health,Guys and St Thomas NHS Foundation Trust,11/03/2022,(89640) Non-Healthcare from NHS Trusts,(id:3363419) Cancer Strategy,DARTFORD AND GRAVESHAM NHS TRUST,id:14829334,2585.00
Department of Health,Guys and St Thomas NHS Foundation Trust,11/03/2022,(89640) Non-Healthcare from NHS Trusts,(id:3363419) Cancer Strategy,DARTFORD AND GRAVESHAM NHS TRUST,id:14829294,2585.00
Department of Health,Guys and St Thomas NHS Foundation Trust,11/03/2022,(89270) Establishment,(id:169405) Cancer Strategy,MIKE LEBIHAN STUDIO,id:15015255 ,1600.00
Department of Health,Guys and St Thomas NHS Foundation Trust,30/03/2022,(89570) Other – Other Operating Expenditure,(id:169405) Cancer Strategy,GSTT PROCUREMENT CARD,id:15081217 ,  30.00
Department of Health,Guys and St Thomas NHS Foundation Trust,25/03/2022,(81200) Medical Surgical Supplies & Equipment,(id:2625419) Transplant Renal and Urology,BARD LTD,id:14872285    , 702.36
Department of Health,Guys and St Thomas NHS Foundation Trust,25/03/2022,(81200) Medical Surgical Supplies & Equipment,(id:2625419) Transplant Renal and Urology,BARD LTD,id:14885935    , 702.36
Department of Health,Guys and St Thomas NHS Foundation Trust,25/03/2022,(83500) Furniture & Fittings,(id:42423) Transplant Renal and Urology,SECA LTD,id:15058330   ,1918.08
Department of Health,Guys and St Thomas NHS Foundation Trust,18/03/2022,(82000) Provisions & Kitchens,(id:42419) Transplant Renal and Urology,NHS SUPPLY CHAIN (MAIDSTONE),id:14986785  ,  59.16
Department of Health,Guys and St Thomas NHS Foundation Trust,04/03/2022,(82800) Bedding & Linen,(id:42419) Transplant Renal and Urology,NHS SUPPLY CHAIN (MAIDSTONE),id:14891794   , 101.63
Department of Health,Guys and St Thomas NHS Foundation Trust,04/03/2022,(81100) Dressings,(id:42419) Transplant Renal and Urology,NHS SUPPLY CHAIN (MAIDSTONE),id:14891794    , 357.08
Department of Health,Guys and St Thomas NHS Foundation Trust,24/03/2022,(81700) Lab Equipment Purchase,(id:42419) Transplant Renal and Urology,NHS SUPPLY CHAIN (MAIDSTONE),id:14970245 ,  32.18
Department of Health,Guys and St Thomas NHS Foundation Trust,30/03/2022,(89000) Other - Training courses and conferences,(id:4176419) Transplant Renal and Urology,GSTT PROCUREMENT CARD,id:15081478   ,  86.18
Department of Health,Guys and St Thomas NHS Foundation Trust,11/03/2022,(81200) Medical Surgical Supplies & Equipment,(id:42439) Transplant Renal and Urology,MEDELA UK LTD,id:14991434 ,4377.60
Department of Health,Guys and St Thomas NHS Foundation Trust,18/03/2022,(81200) Medical Surgical Supplies & Equipment,(id:42439) Transplant Renal and Urology,MEDTRONIC LTD,id:14985962 ,1667.30
Department of Health,Guys and St Thomas NHS Foundation Trust,18/03/2022,(81200) Medical Surgical Supplies & Equipment,(id:42439) Transplant Renal and Urology,MEDTRONIC LTD,id:14985964 ,7621.31
Department of Health,Guys and St Thomas NHS Foundation Trust,18/03/2022,(81200) Medical Surgical Supplies & Equipment,(id:42449) Transplant Renal and Urology,PROMED LTD,id:15033791    ,4800.00
Department of Health,Guys and St Thomas NHS Foundation Trust,04/03/2022,(81400) Medical Surgical Supplies & Equipment,(id:42449) Transplant Renal and Urology,NHS SUPPLY CHAIN (MAIDSTONE),id:14891794 ,  63.24
Department of Health,Guys and St Thomas NHS Foundation Trust,24/03/2022,(83400) Office Equipment,(id:42442) Transplant Renal and Urology,NHS SUPPLY CHAIN (MAIDSTONE),id:14970245  , 143.49
Department of Health,Guys and St Thomas NHS Foundation Trust,04/03/2022,(81700) Lab Equipment Purchase,(id:42442) Transplant Renal and Urology,NHS SUPPLY CHAIN (MAIDSTONE),id:14891794 ,  80.56
Department of Health,Guys and St Thomas NHS Foundation Trust,04/03/2022,(81255) Medical Surgical Supplies & Equipment,(id:42442) Transplant Renal and Urology,NHS SUPPLY CHAIN (MAIDSTONE),id:14891794 ,   6.24
Department of Health,Guys and St Thomas NHS Foundation Trust,24/03/2022,(82000) Provisions & Kitchens,(id:42443) Transplant Renal and Urology,NHS SUPPLY CHAIN (MAIDSTONE),id:14970245  , 560.69
Department of Health,Guys and St Thomas NHS Foundation Trust,18/03/2022,(82800) Bedding & Linen,(id:42443) Transplant Renal and Urology,NHS SUPPLY CHAIN (MAIDSTONE),id:14986785   , 112.69
Department of Health,Guys and St Thomas NHS Foundation Trust,24/03/2022,(82800) Bedding & Linen,(id:42443) Transplant Renal and Urology,NHS SUPPLY CHAIN (MAIDSTONE),id:14970245   , 121.57
Department of Health,Guys and St Thomas NHS Foundation Trust,25/03/2022,(84500) Establishment,(id:42443) Transplant Renal and Urology,CDP  PRINT MANAGEMENT,id:15011877  ,  18.60
Department of Health,Guys and St Thomas NHS Foundation Trust,04/03/2022,(81700) Lab Equipment Purchase,(id:42443) Transplant Renal and Urology,NHS SUPPLY CHAIN (MAIDSTONE),id:14891794 ,  94.11
Department of Health,Guys and St Thomas NHS Foundation Trust,18/03/2022,(81700) Lab Equipment Purchase,(id:42443) Transplant Renal and Urology,NHS SUPPLY CHAIN (MAIDSTONE),id:14986785 ,  10.68
Department of Health,Guys and St Thomas NHS Foundation Trust,24/03/2022,(81700) Lab Equipment Purchase,(id:42443) Transplant Renal and Urology,NHS SUPPLY CHAIN (MAIDSTONE),id:14966960 ,  65.54
Department of Health,Guys and St Thomas NHS Foundation Trust,25/03/2022,(81200) Medical Surgical Supplies & Equipment,(id:42444) Transplant Renal and Urology,BOSTON SCIENTIFIC LTD,id:14985948   , 843.96
Department of Health,Guys and St Thomas NHS Foundation Trust,25/03/2022,(81200) Medical Surgical Supplies & Equipment,(id:42444) Transplant Renal and Urology,STRYKER UK LTD,id:15060254, 504.00
Department of Health,Guys and St Thomas NHS Foundation Trust,18/03/2022,(81200) Medical Surgical Supplies & Equipment,(id:42446) Transplant Renal and Urology,POLAR SPEED DISTRIBUTION LTD,id:15033995 ,1600.00
Department of Health,Guys and St Thomas NHS Foundation Trust,25/03/2022,(81200) Medical Surgical Supplies & Equipment,(id:42446) Transplant Renal and Urology,BOSTON SCIENTIFIC LTD,id:14974098   ,1127.52
Department of Health,Guys and St Thomas NHS Foundation Trust,30/03/2022,(83400) Office Equipment,(id:42447) Transplant Renal and Urology,GSTT PROCUREMENT CARD,id:15081217    ,  31.98
Department of Health,Guys and St Thomas NHS Foundation Trust,24/03/2022,(82800) Bedding & Linen,(id:42447) Transplant Renal and Urology,NHS SUPPLY CHAIN (MAIDSTONE),id:14970245   , 118.27
Department of Health,Guys and St Thomas NHS Foundation Trust,24/03/2022,(82800) Bedding & Linen,(id:42447) Transplant Renal and Urology,NHS SUPPLY CHAIN (MAIDSTONE),id:14966960   , 120.65
Department of Health,Guys and St Thomas NHS Foundation Trust,25/03/2022,(84500) Establishment,(id:42447) Transplant Renal and Urology,CDP  PRINT MANAGEMENT,id:15011875  ,  12.40
Department of Health,Guys and St Thomas NHS Foundation Trust,04/03/2022,(81100) Dressings,(id:42447) Transplant Renal and Urology,NHS SUPPLY CHAIN (MAIDSTONE),id:14891794    ,   3.43
Department of Health,Guys and St Thomas NHS Foundation Trust,24/03/2022,(81225) Medical Surgical Supplies & Equipment,(id:42447) Transplant Renal and Urology,NHS SUPPLY CHAIN (MAIDSTONE),id:14966960 ,  12.48
Department of Health,Guys and St Thomas NHS Foundation Trust,11/03/2022,(83500) Furniture & Fittings,(id:42420) Transplant Renal and Urology,TECHNIBLINDS LTD,id:15018953, 834.00
Department of Health,Guys and St Thomas NHS Foundation Trust,25/03/2022,(84500) Establishment,(id:42420) Transplant Renal and Urology,CDP  PRINT MANAGEMENT,id:15011876  ,   3.60
Department of Health,Guys and St Thomas NHS Foundation Trust,04/03/2022,(81200) Medical Surgical Supplies & Equipment,(id:3671419) Transplant Renal and Urology,NHS SUPPLY CHAIN (MAIDSTONE),id:14891794    , 108.24
Department of Health,Guys and St Thomas NHS Foundation Trust,18/03/2022,(81700) Lab Equipment Purchase,(id:3671419) Transplant Renal and Urology,NHS SUPPLY CHAIN (MAIDSTONE),id:14986785    ,  68.68
Department of Health,Guys and St Thomas NHS Foundation Trust,18/03/2022,(82000) Provisions & Kitchens,(id:42435) Transplant Renal and Urology,NHS SUPPLY CHAIN (MAIDSTONE),id:14986785  ,   6.42
Department of Health,Guys and St Thomas NHS Foundation Trust,04/03/2022,(82000) Provisions & Kitchens,(id:42435) Transplant Renal and Urology,NHS SUPPLY CHAIN (MAIDSTONE),id:14891794  ,  89.15
Department of Health,Guys and St Thomas NHS Foundation Trust,11/03/2022,(81200) Medical Surgical Supplies & Equipment,(id:42433) Transplant Renal and Urology,TELEFLEX MEDICAL,id:14935428   ,2256.30
Department of Health,Guys and St Thomas NHS Foundation Trust,04/03/2022,(83410) Office Equipment,(id:42428) Transplant Renal and Urology,RICOH UK LTD,id:14972484   , 880.66
Department of Health,Guys and St Thomas NHS Foundation Trust,04/03/2022,(81100) Dressings,(id:42428) Transplant Renal and Urology,NHS SUPPLY CHAIN (MAIDSTONE),id:14891794    , 131.18
Department of Health,Guys and St Thomas NHS Foundation Trust,25/03/2022,(83400) Office Equipment,(id:42428) Transplant Renal and Urology,THE RENAL REGISTRY,id:15050034  ,6628.94
Department of Health,Guys and St Thomas NHS Foundation Trust,04/03/2022,(81200) Medical Surgical Supplies & Equipment,(id:42430) Transplant Renal and Urology,NHS SUPPLY CHAIN (MAIDSTONE),id:14891794 ,  21.37
Department of Health,Guys and St Thomas NHS Foundation Trust,18/03/2022,(81200) Medical Surgical Supplies & Equipment,(id:42430) Transplant Renal and Urology,RS COMPONENTS LTD,id:15023054  , 704.10
Department of Health,Guys and St Thomas NHS Foundation Trust,18/03/2022,(81200) Medical Surgical Supplies & Equipment,(id:42430) Transplant Renal and Urology,B.BRAUN MEDICAL LTD,id:15033760,2624.80
Department of Health,Guys and St Thomas NHS Foundation Trust,25/03/2022,(81200) Medical Surgical Supplies & Equipment,(id:42430) Transplant Renal and Urology,LINC MEDICAL SYSTEMS  LTD,id:15050914    ,2280.00
Department of Health,Guys and St Thomas NHS Foundation Trust,11/03/2022,(81200) Medical Surgical Supplies & Equipment,(id:42430) Transplant Renal and Urology,BAXTER HEALTHCARE LTD,id:15012374   ,3089.52
Department of Health,Guys and St Thomas NHS Foundation Trust,11/03/2022,(81200) Medical Surgical Supplies & Equipment,(id:42430) Transplant Renal and Urology,BAXTER HEALTHCARE LTD,id:15012194   ,4969.02
Department of Health,Guys and St Thomas NHS Foundation Trust,04/03/2022,(81200) Medical Surgical Supplies & Equipment,(id:42422) Transplant Renal and Urology,NXSTAGE MEDICAL UK LIMITED,id:14964825   , 748.32
Department of Health,Guys and St Thomas NHS Foundation Trust,18/03/2022,(81200) Medical Surgical Supplies & Equipment,(id:42422) Transplant Renal and Urology,NXSTAGE MEDICAL UK LIMITED,id:15014423   , 916.65
Department of Health,Guys and St Thomas NHS Foundation Trust,25/03/2022,(81200) Medical Surgical Supplies & Equipment,(id:42421) Transplant Renal and Urology,BAXTER HEALTHCARE LTD,id:15050246   , 682.85
Department of Health,Guys and St Thomas NHS Foundation Trust,04/03/2022,(81700) Lab Equipment Purchase,(id:42421) Transplant Renal and Urology,NHS SUPPLY CHAIN (MAIDSTONE),id:14891794 , 480.48
Department of Health,Guys and St Thomas NHS Foundation Trust,04/03/2022,(50562) Qualified Nursing Staff,(id:42438) Transplant Renal and Urology,GLOBE LOCUMS LTD,id:14990036  , 824.14
Department of Health,Guys and St Thomas NHS Foundation Trust,11/03/2022,(50562) Qualified Nursing Staff,(id:42438) Transplant Renal and Urology,GLOBE LOCUMS LTD,id:15018869  ,1236.22
Department of Health,Guys and St Thomas NHS Foundation Trust,04/03/2022,(83410) Office Equipment,(id:42432) Transplant Renal and Urology,RICOH UK LTD,id:14972484   ,   6.03
Department of Health,Guys and St Thomas NHS Foundation Trust,04/03/2022,(83410) Office Equipment,(id:42432) Transplant Renal and Urology,RICOH UK LTD,id:14972556   , 112.22
Department of Health,Guys and St Thomas NHS Foundation Trust,25/03/2022,(83210) Water & Sewerage,(id:42427) Transplant Renal and Urology,CHARTWELL PROPERTIES LIMITED,id:15059394  ,3901.62
Department of Health,Guys and St Thomas NHS Foundation Trust,18/03/2022,(81200) Medical Surgical Supplies & Equipment,(id:42481) Surgery,SEVERN HEALTHCARE TECHNOLOGIES LTD,id:15009014 ,1401.60
Department of Health,Guys and St Thomas NHS Foundation Trust,24/03/2022,(81100) Dressings,(id:42482) Surgery,NHS SUPPLY CHAIN (MAIDSTONE),id:14966960,  30.76
Department of Health,Guys and St Thomas NHS Foundation Trust,04/03/2022,(50522) Unqualified Nursing Staff,(id:42482) Surgery,CARE PROVIDERS HEALTHCARE,id:14989747  , 204.01
Department of Health,Guys and St Thomas NHS Foundation Trust,04/03/2022,(50522) Unqualified Nursing Staff,(id:42482) Surgery,MSI GROUP LTD,id:14989838    , 258.37
Department of Health,Guys and St Thomas NHS Foundation Trust,18/03/2022,(50562) Qualified Nursing Staff,(id:42482) Surgery,AMC PROFESSIONAL LTD,id:15034276    , 566.66
Department of Health,Guys and St Thomas NHS Foundation Trust,24/03/2022,(81225) Medical Surgical Supplies & Equipment,(id:42482) Surgery,NHS SUPPLY CHAIN (MAIDSTONE),id:14966960  ,   5.08
Department of Health,Guys and St Thomas NHS Foundation Trust,04/03/2022,(81200) Medical Surgical Supplies & Equipment,(id:42483) Surgery,NHS SUPPLY CHAIN (MAIDSTONE),id:14891794  , 173.72
Department of Health,Guys and St Thomas NHS Foundation Trust,18/03/2022,(81200) Medical Surgical Supplies & Equipment,(id:42483) Surgery,NHS SUPPLY CHAIN (MAIDSTONE),id:14986785  , 913.24
Department of Health,Guys and St Thomas NHS Foundation Trust,25/03/2022,(84500) Establishment,(id:42483) Surgery,CDP  PRINT MANAGEMENT,id:15011876   ,   6.20
Department of Health,Guys and St Thomas NHS Foundation Trust,04/03/2022,(81200) Medical Surgical Supplies & Equipment,(id:42484) Surgery,ADVANTECH SURGICAL LTD,id:14957882   , 527.16
Department of Health,Guys and St Thomas NHS Foundation Trust,04/03/2022,(81200) Medical Surgical Supplies & Equipment,(id:42484) Surgery,JOHNSON & JOHNSON MEDICAL LTD,id:14930350 ,1018.08
Department of Health,Guys and St Thomas NHS Foundation Trust,11/03/2022,(81200) Medical Surgical Supplies & Equipment,(id:42484) Surgery,Q MEDICAL TECHNOLOGIES LTD,id:15015382    ,1402.80
Department of Health,Guys and St Thomas NHS Foundation Trust,18/03/2022,(81200) Medical Surgical Supplies & Equipment,(id:42484) Surgery,IDEAL MEDICAL SOLUTIONS LTD,id:15013980   ,3128.40
Department of Health,Guys and St Thomas NHS Foundation Trust,25/03/2022,(81200) Medical Surgical Supplies & Equipment,(id:42484) Surgery,SEVERN HEALTHCARE TECHNOLOGIES LTD,id:15023135 ,3744.00
Department of Health,Guys and St Thomas NHS Foundation Trust,25/03/2022,(81200) Medical Surgical Supplies & Equipment,(id:42484) Surgery,HEALTHCARE 21 LTD,id:15014369   , 852.00
Department of Health,Guys and St Thomas NHS Foundation Trust,24/03/2022,(81100) Dressings,(id:42484) Surgery,NHS SUPPLY CHAIN (MAIDSTONE),id:14970245,  46.47
Department of Health,Guys and St Thomas NHS Foundation Trust,04/03/2022,(81225) Medical Surgical Supplies & Equipment,(id:42484) Surgery,NHS SUPPLY CHAIN (MAIDSTONE),id:14891794  , 146.88
Department of Health,Guys and St Thomas NHS Foundation Trust,24/03/2022,(83400) Office Equipment,(id:42485) Surgery,NHS SUPPLY CHAIN (MAIDSTONE),id:14966960   ,  38.67
Department of Health,Guys and St Thomas NHS Foundation Trust,04/03/2022,(81275) Medical Surgical Supplies & Equipment,(id:42485) Surgery,NHS SUPPLY CHAIN (MAIDSTONE),id:14891794  ,  14.46
Department of Health,Guys and St Thomas NHS Foundation Trust,04/03/2022,(82800) Bedding & Linen,(id:42485) Surgery,NHS SUPPLY CHAIN (MAIDSTONE),id:14891794    ,   3.52
Department of Health,Guys and St Thomas NHS Foundation Trust,04/03/2022,(81000) Surgical Appliances,(id:42485) Surgery,TALAR MADE ORTHOTICS LTD,id:14984334    ,  85.57
Department of Health,Guys and St Thomas NHS Foundation Trust,04/03/2022,(82000) Provisions & Kitchens,(id:42485) Surgery,NHS SUPPLY CHAIN (MAIDSTONE),id:14891794   , 126.12
Department of Health,Guys and St Thomas NHS Foundation Trust,18/03/2022,(81200) Medical Surgical Supplies & Equipment,(id:42485) Surgery,NHS SUPPLY CHAIN (MAIDSTONE),id:14986785  ,1324.07
Department of Health,Guys and St Thomas NHS Foundation Trust,24/03/2022,(81200) Medical Surgical Supplies & Equipment,(id:42485) Surgery,NHS SUPPLY CHAIN (MAIDSTONE),id:14966960  , 833.47
Department of Health,Guys and St Thomas NHS Foundation Trust,18/03/2022,(89120) Other - Legal fees,(id:42485) Surgery,BEACHCROFT LLP OFFICE ACCOUNT,id:15036424,2951.28
Department of Health,Guys and St Thomas NHS Foundation Trust,24/03/2022,(82600) Uniforms & Clothing,(id:42463) Surgery,NHS SUPPLY CHAIN (MAIDSTONE),id:14966960,  15.12
Department of Health,Guys and St Thomas NHS Foundation Trust,24/03/2022,(81100) Dressings,(id:42463) Surgery,NHS SUPPLY CHAIN (MAIDSTONE),id:14970245,  14.28
Department of Health,Guys and St Thomas NHS Foundation Trust,25/03/2022,(84500) Establishment,(id:42464) Surgery,CDP  PRINT MANAGEMENT,id:15011876   ,  27.90
Department of Health,Guys and St Thomas NHS Foundation Trust,04/03/2022,(83410) Office Equipment,(id:42464) Surgery,RICOH UK LTD,id:14972484    , 233.93
Department of Health,Guys and St Thomas NHS Foundation Trust,04/03/2022,(83410) Office Equipment,(id:42464) Surgery,RICOH UK LTD,id:14972556    , 168.10
Department of Health,Guys and St Thomas NHS Foundation Trust,24/03/2022,(82000) Provisions & Kitchens,(id:42465) Surgery,NHS SUPPLY CHAIN (MAIDSTONE),id:14966960   ,  48.12
Department of Health,Guys and St Thomas NHS Foundation Trust,24/03/2022,(82800) Bedding & Linen,(id:42465) Surgery,NHS SUPPLY CHAIN (MAIDSTONE),id:14970245    , 159.38
Department of Health,Guys and St Thomas NHS Foundation Trust,24/03/2022,(81200) Medical Surgical Supplies & Equipment,(id:42465) Surgery,NHS SUPPLY CHAIN (MAIDSTONE),id:14970245  , 438.78
Department of Health,Guys and St Thomas NHS Foundation Trust,18/03/2022,(81100) Dressings,(id:42465) Surgery,NHS SUPPLY CHAIN (MAIDSTONE),id:14986785, 294.84
Department of Health,Guys and St Thomas NHS Foundation Trust,11/03/2022,(50522) Unqualified Nursing Staff,(id:42465) Surgery,CARE PROVIDERS HEALTHCARE,id:15018202  , 256.87
Department of Health,Guys and St Thomas NHS Foundation Trust,11/03/2022,(50522) Unqualified Nursing Staff,(id:42465) Surgery,MSI GROUP LTD,id:15018811    , 277.52
Department of Health,Guys and St Thomas NHS Foundation Trust,04/03/2022,(81000) Surgical Appliances,(id:42465) Surgery,TALAR MADE ORTHOTICS LTD,id:14987016    ,   8.24
Department of Health,Guys and St Thomas NHS Foundation Trust,24/03/2022,(81700) Lab Equipment Purchase,(id:42465) Surgery,NHS SUPPLY CHAIN (MAIDSTONE),id:14970245  ,   8.47
Department of Health,Guys and St Thomas NHS Foundation Trust,04/03/2022,(81200) Medical Surgical Supplies & Equipment,(id:42467) Surgery,JOHNSON & JOHNSON MEDICAL LTD,id:14986135 ,1315.35
Department of Health,Guys and St Thomas NHS Foundation Trust,04/03/2022,(81200) Medical Surgical Supplies & Equipment,(id:42467) Surgery,JOHNSON & JOHNSON MEDICAL LTD,id:14930597 , 691.92
Department of Health,Guys and St Thomas NHS Foundation Trust,11/03/2022,(81200) Medical Surgical Supplies & Equipment,(id:42467) Surgery,JOHNSON & JOHNSON MEDICAL LTD,id:14960934 , 974.50
Department of Health,Guys and St Thomas NHS Foundation Trust,11/03/2022,(81200) Medical Surgical Supplies & Equipment,(id:42467) Surgery,JOHNSON & JOHNSON MEDICAL LTD,id:14935387 , 589.86
Department of Health,Guys and St Thomas NHS Foundation Trust,18/03/2022,(81200) Medical Surgical Supplies & Equipment,(id:42467) Surgery,JOHNSON & JOHNSON MEDICAL LTD,id:14988158 ,1492.52
Department of Health,Guys and St Thomas NHS Foundation Trust,18/03/2022,(81200) Medical Surgical Supplies & Equipment,(id:42467) Surgery,JOHNSON & JOHNSON MEDICAL LTD,id:15028899 ,5860.02
Department of Health,Guys and St Thomas NHS Foundation Trust,18/03/2022,(81200) Medical Surgical Supplies & Equipment,(id:42467) Surgery,ARTHREX LTD,id:15019035    , 668.40
Department of Health,Guys and St Thomas NHS Foundation Trust,25/03/2022,(81200) Medical Surgical Supplies & Equipment,(id:42467) Surgery,JOHNSON & JOHNSON MEDICAL LTD,id:14994658 , 751.08
Department of Health,Guys and St Thomas NHS Foundation Trust,04/03/2022,(81200) Medical Surgical Supplies & Equipment,(id:431410) Surgery,NHS SUPPLY CHAIN (MAIDSTONE),id:14891794 , 257.68
Department of Health,Guys and St Thomas NHS Foundation Trust,18/03/2022,(81100) Dressings,(id:42458) Surgery,NHS SUPPLY CHAIN (MAIDSTONE),id:14986785,2128.54
Department of Health,Guys and St Thomas NHS Foundation Trust,24/03/2022,(81200) Medical Surgical Supplies & Equipment,(id:42458) Surgery,NHS SUPPLY CHAIN (MAIDSTONE),id:14966960  , 509.87
Department of Health,Guys and St Thomas NHS Foundation Trust,04/03/2022,(82700) Uniforms & Clothing,(id:42459) Surgery,NHS SUPPLY CHAIN (MAIDSTONE),id:14891794,  23.76
Department of Health,Guys and St Thomas NHS Foundation Trust,24/03/2022,(82700) Uniforms & Clothing,(id:42459) Surgery,NHS SUPPLY CHAIN (MAIDSTONE),id:14966960,  95.04
Department of Health,Guys and St Thomas NHS Foundation Trust,25/03/2022,(50532) Unqualified Nursing Staff,(id:42459) Surgery,GLOBE LOCUMS LTD,id:15059022 , 268.96
Department of Health,Guys and St Thomas NHS Foundation Trust,04/03/2022,(81000) Surgical Appliances,(id:42461) Surgery,TALAR MADE ORTHOTICS LTD,id:14983222    , 544.18
Department of Health,Guys and St Thomas NHS Foundation Trust,24/03/2022,(83400) Office Equipment,(id:42461) Surgery,NHS SUPPLY CHAIN (MAIDSTONE),id:14970245   , 174.20
Department of Health,Guys and St Thomas NHS Foundation Trust,04/03/2022,(83410) Office Equipment,(id:42279) Cancer Supportive Services and R&D,RICOH UK LTD,id:14972556  , 170.85
Department of Health,Guys and St Thomas NHS Foundation Trust,04/03/2022,(83410) Office Equipment,(id:630419) Cancer Supportive Services and R&D,RICOH UK LTD,id:14972556 , 183.74
Department of Health,Guys and St Thomas NHS Foundation Trust,24/03/2022,(82600) Uniforms & Clothing,(id:42265) Haematology Cellular Pathology and Supporting Services,NHS SUPPLY CHAIN (MAIDSTONE),id:14970245   ,  42.10
Department of Health,Guys and St Thomas NHS Foundation Trust,18/03/2022,(82800) Bedding & Linen,(id:42265) Haematology Cellular Pathology and Supporting Services,NHS SUPPLY CHAIN (MAIDSTONE),id:14986785  ,  79.88
Department of Health,Guys and St Thomas NHS Foundation Trust,25/03/2022,(81200) Medical Surgical Supplies & Equipment,(id:42265) Haematology Cellular Pathology and Supporting Services,BARD LTD,id:14967269, 531.00
Department of Health,Guys and St Thomas NHS Foundation Trust,24/03/2022,(81275) Medical Surgical Supplies & Equipment,(id:42265) Haematology Cellular Pathology and Supporting Services,NHS SUPPLY CHAIN (MAIDSTONE),id:14970245,  14.46
Department of Health,Guys and St Thomas NHS Foundation Trust,24/03/2022,(81255) Medical Surgical Supplies & Equipment,(id:42265) Haematology Cellular Pathology and Supporting Services,NHS SUPPLY CHAIN (MAIDSTONE),id:14970245,   4.32
Department of Health,Guys and St Thomas NHS Foundation Trust,04/03/2022,(81000) Surgical Appliances,(id:42268) Haematology Cellular Pathology and Supporting Services,MEDI UK LTD,id:14981115, 281.39
Department of Health,Guys and St Thomas NHS Foundation Trust,04/03/2022,(50522) Unqualified Nursing Staff,(id:42270) Haematology Cellular Pathology and Supporting Services,MSI GROUP LTD,id:14990338  , 665.25
Department of Health,Guys and St Thomas NHS Foundation Trust,25/03/2022,(83500) Furniture & Fittings,(id:42270) Haematology Cellular Pathology and Supporting Services,MAUSER PACKAGING SOLUTIONS,id:15054236    , 689.16
Department of Health,Guys and St Thomas NHS Foundation Trust,04/03/2022,(80205) Drug Costs,(id:42273) Haematology Cellular Pathology and Supporting Services,HEALTHCARE AT HOME LTD,id:14959091   ,1422.17
Department of Health,Guys and St Thomas NHS Foundation Trust,04/03/2022,(80205) Drug Costs,(id:42273) Haematology Cellular Pathology and Supporting Services,HEALTHCARE AT HOME LTD,id:14983188   ,2455.77
Department of Health,Guys and St Thomas NHS Foundation Trust,11/03/2022,(80205) Drug Costs,(id:42273) Haematology Cellular Pathology and Supporting Services,HEALTHCARE AT HOME LTD,id:14993366   ,1616.94
Department of Health,Guys and St Thomas NHS Foundation Trust,11/03/2022,(80205) Drug Costs,(id:42273) Haematology Cellular Pathology and Supporting Services,HEALTHCARE AT HOME LTD,id:14993358   ,2068.17
Department of Health,Guys and St Thomas NHS Foundation Trust,11/03/2022,(80205) Drug Costs,(id:42273) Haematology Cellular Pathology and Supporting Services,HEALTHCARE AT HOME LTD,id:14993214   ,8930.17
Department of Health,Guys and St Thomas NHS Foundation Trust,18/03/2022,(80205) Drug Costs,(id:42273) Haematology Cellular Pathology and Supporting Services,HEALTHCARE AT HOME LTD,id:15036396   ,5600.00
Department of Health,Guys and St Thomas NHS Foundation Trust,18/03/2022,(80205) Drug Costs,(id:42273) Haematology Cellular Pathology and Supporting Services,HEALTHCARE AT HOME LTD,id:15036439   ,8080.17
Department of Health,Guys and St Thomas NHS Foundation Trust,18/03/2022,(80205) Drug Costs,(id:42273) Haematology Cellular Pathology and Supporting Services,HEALTHNET HOMECARE (UK) LTD,id:14986538   ,1892.76
Department of Health,Guys and St Thomas NHS Foundation Trust,23/03/2022,(80205) Drug Costs,(id:42273) Haematology Cellular Pathology and Supporting Services,ALCURA UK LIMITED,id:14299674   ,    -7520.00
Department of Health,Guys and St Thomas NHS Foundation Trust,04/03/2022,(80205) Drug Costs,(id:42273) Haematology Cellular Pathology and Supporting Services,HEALTHCARE AT HOME LTD,id:14983758   ,4800.00
Department of Health,Guys and St Thomas NHS Foundation Trust,04/03/2022,(80205) Drug Costs,(id:42273) Haematology Cellular Pathology and Supporting Services,HEALTHCARE AT HOME LTD,id:14983181   ,5890.17
Department of Health,Guys and St Thomas NHS Foundation Trust,04/03/2022,(80205) Drug Costs,(id:42273) Haematology Cellular Pathology and Supporting Services,HEALTHCARE AT HOME LTD,id:14983202   ,6570.17
Department of Health,Guys and St Thomas NHS Foundation Trust,04/03/2022,(80205) Drug Costs,(id:42273) Haematology Cellular Pathology and Supporting Services,HEALTHCARE AT HOME LTD,id:14983179   ,8875.17
Department of Health,Guys and St Thomas NHS Foundation Trust,04/03/2022,(80205) Drug Costs,(id:42273) Haematology Cellular Pathology and Supporting Services,ALCURA UK LIMITED,id:14179680   ,    -2750.00
Department of Health,Guys and St Thomas NHS Foundation Trust,29/03/2022,(80205) Drug Costs,(id:42273) Haematology Cellular Pathology and Supporting Services,HEALTHCARE AT HOME LTD,id:15074742   ,4180.17
Department of Health,Guys and St Thomas NHS Foundation Trust,29/03/2022,(80205) Drug Costs,(id:42273) Haematology Cellular Pathology and Supporting Services,HEALTHCARE AT HOME LTD,id:15074741   ,5890.17
Department of Health,Guys and St Thomas NHS Foundation Trust,29/03/2022,(80205) Drug Costs,(id:42273) Haematology Cellular Pathology and Supporting Services,HEALTHCARE AT HOME LTD,id:15075267   ,8130.17
Department of Health,Guys and St Thomas NHS Foundation Trust,29/03/2022,(80205) Drug Costs,(id:42273) Haematology Cellular Pathology and Supporting Services,HEALTHCARE AT HOME LTD,id:15074700   ,    13630.17
Department of Health,Guys and St Thomas NHS Foundation Trust,29/03/2022,(80205) Drug Costs,(id:42273) Haematology Cellular Pathology and Supporting Services,HEALTHCARE AT HOME LTD,id:15074605   ,    37500.00
Department of Health,Guys and St Thomas NHS Foundation Trust,29/03/2022,(80205) Drug Costs,(id:42273) Haematology Cellular Pathology and Supporting Services,HEALTHCARE AT HOME LTD,id:15075275   ,1130.17
Department of Health,Guys and St Thomas NHS Foundation Trust,29/03/2022,(80205) Drug Costs,(id:42273) Haematology Cellular Pathology and Supporting Services,HEALTHCARE AT HOME LTD,id:15075279   ,1430.17
Department of Health,Guys and St Thomas NHS Foundation Trust,24/03/2022,(89595) Non-Healthcare from Foundation Trusts,(id:42128) Haematology Cellular Pathology and Supporting Services,SHEFFIELD CHILDREN'S NHS FOUNDATION TRUST,id:15033757  ,1014.03
Department of Health,Guys and St Thomas NHS Foundation Trust,24/03/2022,(89595) Non-Healthcare from Foundation Trusts,(id:42128) Haematology Cellular Pathology and Supporting Services,SHEFFIELD CHILDREN'S NHS FOUNDATION TRUST,id:14707756  ,2622.00
Department of Health,Guys and St Thomas NHS Foundation Trust,04/03/2022,(83410) Office Equipment,(id:42130) Haematology Cellular Pathology and Supporting Services,RICOH UK LTD,id:14972556  , 166.10
Department of Health,Guys and St Thomas NHS Foundation Trust,04/03/2022,(83410) Office Equipment,(id:42257) Oncology Services,RICOH UK LTD,id:14972484    ,  14.59
Department of Health,Guys and St Thomas NHS Foundation Trust,25/03/2022,(84500) Establishment,(id:42258) Oncology Services,CDP  PRINT MANAGEMENT,id:15011876   ,   6.20
Department of Health,Guys and St Thomas NHS Foundation Trust,18/03/2022,(83400) Office Equipment,(id:42258) Oncology Services,NHS SUPPLY CHAIN (MAIDSTONE),id:14986785   ,  59.95
Department of Health,Guys and St Thomas NHS Foundation Trust,24/03/2022,(82800) Bedding & Linen,(id:42258) Oncology Services,NHS SUPPLY CHAIN (MAIDSTONE),id:14966960    ,  35.77
Department of Health,Guys and St Thomas NHS Foundation Trust,18/03/2022,(81200) Medical Surgical Supplies & Equipment,(id:42258) Oncology Services,NHS SUPPLY CHAIN (MAIDSTONE),id:14986785  , 173.38
Department of Health,Guys and St Thomas NHS Foundation Trust,04/03/2022,(81200) Medical Surgical Supplies & Equipment,(id:42258) Oncology Services,NHS SUPPLY CHAIN (MAIDSTONE),id:14891794  , 220.54
Department of Health,Guys and St Thomas NHS Foundation Trust,22/03/2022,(52062) Radiographers,(id:42258) Oncology Services,PRICEWATERHOUSECOOPERS LLP,id:15054615   ,3916.16
Department of Health,Guys and St Thomas NHS Foundation Trust,22/03/2022,(52062) Radiographers,(id:42258) Oncology Services,PRICEWATERHOUSECOOPERS LLP,id:15054245   ,3308.85
Department of Health,Guys and St Thomas NHS Foundation Trust,24/03/2022,(81100) Dressings,(id:42258) Oncology Services,NHS SUPPLY CHAIN (MAIDSTONE),id:14966960, 373.15
Department of Health,Guys and St Thomas NHS Foundation Trust,25/03/2022,(54010) Technical Officers,(id:42261) Oncology Services,RICOH UK LTD,id:15062109  , 497.55
Department of Health,Guys and St Thomas NHS Foundation Trust,25/03/2022,(84500) Establishment,(id:42260) Oncology Services,CDP  PRINT MANAGEMENT,id:15011876   , 112.10
Department of Health,Guys and St Thomas NHS Foundation Trust,25/03/2022,(84500) Establishment,(id:42260) Oncology Services,CDP  PRINT MANAGEMENT,id:15011877   ,  36.10
Department of Health,Guys and St Thomas NHS Foundation Trust,24/03/2022,(81230) Medical Surgical Supplies & Equipment,(id:42260) Oncology Services,NHS SUPPLY CHAIN (MAIDSTONE),id:14970245  , 432.00
Department of Health,Guys and St Thomas NHS Foundation Trust,04/03/2022,(81230) Medical Surgical Supplies & Equipment,(id:42260) Oncology Services,NHS SUPPLY CHAIN (MAIDSTONE),id:14891794  , 432.00
Department of Health,Guys and St Thomas NHS Foundation Trust,18/03/2022,(82800) Bedding & Linen,(id:42260) Oncology Services,NHS SUPPLY CHAIN (MAIDSTONE),id:14986785    , 197.57
Department of Health,Guys and St Thomas NHS Foundation Trust,04/03/2022,(83400) Office Equipment,(id:42260) Oncology Services,NHS SUPPLY CHAIN (MAIDSTONE),id:14891794   , 818.16
Department of Health,Guys and St Thomas NHS Foundation Trust,24/03/2022,(82700) Uniforms & Clothing,(id:42260) Oncology Services,NHS SUPPLY CHAIN (MAIDSTONE),id:14966960, 370.77
Department of Health,Guys and St Thomas NHS Foundation Trust,24/03/2022,(82700) Uniforms & Clothing,(id:42259) Oncology Services,NHS SUPPLY CHAIN (MAIDSTONE),id:14970245, 126.72
Department of Health,Guys and St Thomas NHS Foundation Trust,11/03/2022,(83500) Furniture & Fittings,(id:42259) Oncology Services,HOSPITAL METALCRAFT LTD,id:15014185    ,1293.10
Department of Health,Guys and St Thomas NHS Foundation Trust,25/03/2022,(84500) Establishment,(id:42259) Oncology Services,CDP  PRINT MANAGEMENT,id:15011877   ,   9.30
Department of Health,Guys and St Thomas NHS Foundation Trust,04/03/2022,(50522) Unqualified Nursing Staff,(id:42259) Oncology Services,MSI GROUP LTD,id:14990342    , 258.80
Department of Health,Guys and St Thomas NHS Foundation Trust,11/03/2022,(50522) Unqualified Nursing Staff,(id:42259) Oncology Services,MEDICSPRO LTD,id:15018678    , 616.40
Department of Health,Guys and St Thomas NHS Foundation Trust,24/03/2022,(83400) Office Equipment,(id:42259) Oncology Services,NHS SUPPLY CHAIN (MAIDSTONE),id:14970245   , 129.16
Department of Health,Guys and St Thomas NHS Foundation Trust,04/03/2022,(81225) Medical Surgical Supplies & Equipment,(id:42259) Oncology Services,NHS SUPPLY CHAIN (MAIDSTONE),id:14891794  ,  15.23
Department of Health,Guys and St Thomas NHS Foundation Trust,18/03/2022,(81255) Medical Surgical Supplies & Equipment,(id:42259) Oncology Services,NHS SUPPLY CHAIN (MAIDSTONE),id:14986785  ,   7.68
Department of Health,Guys and St Thomas NHS Foundation Trust,04/03/2022,(81200) Medical Surgical Supplies & Equipment,(id:42280) Surgical Oncology,JOHNSON & JOHNSON MEDICAL LTD,id:14967283 , 841.72
Department of Health,Guys and St Thomas NHS Foundation Trust,04/03/2022,(81200) Medical Surgical Supplies & Equipment,(id:42280) Surgical Oncology,ELEMENTAL HEALTHCARE LTD,id:14963114 ,3296.76
Department of Health,Guys and St Thomas NHS Foundation Trust,11/03/2022,(81200) Medical Surgical Supplies & Equipment,(id:42280) Surgical Oncology,RAISE HEALTHCARE PVT LTD,id:15004334 ,2700.00
Department of Health,Guys and St Thomas NHS Foundation Trust,18/03/2022,(81200) Medical Surgical Supplies & Equipment,(id:42280) Surgical Oncology,Q MEDICAL TECHNOLOGIES LTD,id:15029735    ,1172.40
Department of Health,Guys and St Thomas NHS Foundation Trust,25/03/2022,(81200) Medical Surgical Supplies & Equipment,(id:42280) Surgical Oncology,JOHNSON & JOHNSON MEDICAL LTD,id:15012695 ,1150.26
Department of Health,Guys and St Thomas NHS Foundation Trust,11/03/2022,(81400) Medical Surgical Supplies & Equipment,(id:42280) Surgical Oncology,MEDICAL IMAGING SYSTEMS LTD,id:14898194   , 800.00
Department of Health,Guys and St Thomas NHS Foundation Trust,18/03/2022,(50552) Qualified Nursing Staff,(id:243406) Surgical Oncology,CONTINENTAL NURSE LTD,id:15034133  ,3311.53
Department of Health,Guys and St Thomas NHS Foundation Trust,24/03/2022,(81200) Medical Surgical Supplies & Equipment,(id:243406) Surgical Oncology,NHS SUPPLY CHAIN (MAIDSTONE),id:14966960 , 187.75
Department of Health,Guys and St Thomas NHS Foundation Trust,24/03/2022,(81100) Dressings,(id:243406) Surgical Oncology,NHS SUPPLY CHAIN (MAIDSTONE),id:14966960    , 113.73
Department of Health,Guys and St Thomas NHS Foundation Trust,18/03/2022,(82700) Uniforms & Clothing,(id:243406) Surgical Oncology,NHS SUPPLY CHAIN (MAIDSTONE),id:14986785    ,  31.68
Department of Health,Guys and St Thomas NHS Foundation Trust,24/03/2022,(81225) Medical Surgical Supplies & Equipment,(id:243406) Surgical Oncology,NHS SUPPLY CHAIN (MAIDSTONE),id:14970245 ,  15.23
Department of Health,Guys and St Thomas NHS Foundation Trust,18/03/2022,(50522) Unqualified Nursing Staff,(id:243406) Surgical Oncology,MSI GROUP LTD,id:15034123   , 273.28
Department of Health,Guys and St Thomas NHS Foundation Trust,18/03/2022,(50522) Unqualified Nursing Staff,(id:243406) Surgical Oncology,MSI GROUP LTD,id:15034341   , 858.64
Department of Health,Guys and St Thomas NHS Foundation Trust,24/03/2022,(81100) Dressings,(id:42473) Surgical Oncology,NHS SUPPLY CHAIN (MAIDSTONE),id:14970245, 338.57
Department of Health,Guys and St Thomas NHS Foundation Trust,24/03/2022,(81200) Medical Surgical Supplies & Equipment,(id:42473) Surgical Oncology,NHS SUPPLY CHAIN (MAIDSTONE),id:14970245  ,5105.81
Department of Health,Guys and St Thomas NHS Foundation Trust,04/03/2022,(81200) Medical Surgical Supplies & Equipment,(id:42473) Surgical Oncology,SEVERN HEALTHCARE TECHNOLOGIES LTD,id:14951714 , 556.80
Department of Health,Guys and St Thomas NHS Foundation Trust,18/03/2022,(81200) Medical Surgical Supplies & Equipment,(id:42473) Surgical Oncology,DELTA SURGICAL LTD,id:14996294  , 885.60
Department of Health,Guys and St Thomas NHS Foundation Trust,25/03/2022,(81200) Medical Surgical Supplies & Equipment,(id:42473) Surgical Oncology,MEDTRONIC LTD,id:14974297  ,7074.00
Department of Health,Guys and St Thomas NHS Foundation Trust,25/03/2022,(81200) Medical Surgical Supplies & Equipment,(id:42473) Surgical Oncology,MEDTRONIC LTD,id:14988136  , 619.20
Department of Health,Guys and St Thomas NHS Foundation Trust,24/03/2022,(81000) Surgical Appliances,(id:42473) Surgical Oncology,NHS SUPPLY CHAIN (MAIDSTONE),id:14970245, 189.95
Department of Health,Guys and St Thomas NHS Foundation Trust,24/03/2022,(81100) Dressings,(id:42474) Surgical Oncology,NHS SUPPLY CHAIN (MAIDSTONE),id:14966960,  27.62
Department of Health,Guys and St Thomas NHS Foundation Trust,04/03/2022,(81200) Medical Surgical Supplies & Equipment,(id:42474) Surgical Oncology,WELCH ALLYN UK LTD,id:14976895  ,2842.56
Department of Health,Guys and St Thomas NHS Foundation Trust,11/03/2022,(81200) Medical Surgical Supplies & Equipment,(id:42474) Surgical Oncology,GBUK HEALTHCARE,id:14985374,1216.60
Department of Health,Guys and St Thomas NHS Foundation Trust,18/03/2022,(81200) Medical Surgical Supplies & Equipment,(id:42474) Surgical Oncology,SHEFFMED TRADE SERVICES LTD,id:15035538   , 598.80
Department of Health,Guys and St Thomas NHS Foundation Trust,24/03/2022,(81700) Lab Equipment Purchase,(id:42474) Surgical Oncology,NHS SUPPLY CHAIN (MAIDSTONE),id:14966960  , 160.20
Department of Health,Guys and St Thomas NHS Foundation Trust,24/03/2022,(81200) Medical Surgical Supplies & Equipment,(id:42475) Surgical Oncology,NHS SUPPLY CHAIN (MAIDSTONE),id:14970245  ,  28.03
Department of Health,Guys and St Thomas NHS Foundation Trust,04/03/2022,(54062) Technical Officers,(id:42475) Surgical Oncology,PRICEWATERHOUSECOOPERS LLP,id:14991175   ,1336.66
Department of Health,Guys and St Thomas NHS Foundation Trust,04/03/2022,(81215) Medical Surgical Supplies & Equipment,(id:42475) Surgical Oncology,ADVANCED BIONICS SARL (AND UK LTD),id:14967354 ,6108.00
Department of Health,Guys and St Thomas NHS Foundation Trust,04/03/2022,(81215) Medical Surgical Supplies & Equipment,(id:42475) Surgical Oncology,COCHLEAR EUROPE LTD,id:14980654 ,    10788.00
Department of Health,Guys and St Thomas NHS Foundation Trust,11/03/2022,(81215) Medical Surgical Supplies & Equipment,(id:42475) Surgical Oncology,ADVANCED BIONICS SARL (AND UK LTD),id:15011450 ,4414.68
Department of Health,Guys and St Thomas NHS Foundation Trust,11/03/2022,(81215) Medical Surgical Supplies & Equipment,(id:42475) Surgical Oncology,COCHLEAR EUROPE LTD,id:14993176 ,7168.80
Department of Health,Guys and St Thomas NHS Foundation Trust,11/03/2022,(81215) Medical Surgical Supplies & Equipment,(id:42475) Surgical Oncology,ADVANCED BIONICS SARL (AND UK LTD),id:15011455 ,1878.60
Department of Health,Guys and St Thomas NHS Foundation Trust,11/03/2022,(81215) Medical Surgical Supplies & Equipment,(id:42475) Surgical Oncology,ADVANCED BIONICS SARL (AND UK LTD),id:15011594 , 985.92
Department of Health,Guys and St Thomas NHS Foundation Trust,11/03/2022,(84656) Establishment,(id:42286) Surgical Oncology,DICT8 LIMITED,id:14707295 , 751.68
Department of Health,Guys and St Thomas NHS Foundation Trust,18/03/2022,(81100) Dressings,(id:42286) Surgical Oncology,BARD LTD,id:14974317,3490.20
Department of Health,Guys and St Thomas NHS Foundation Trust,18/03/2022,(81100) Dressings,(id:42286) Surgical Oncology,NHS SUPPLY CHAIN (MAIDSTONE),id:14986785, 114.84
Department of Health,Guys and St Thomas NHS Foundation Trust,11/03/2022,(81200) Medical Surgical Supplies & Equipment,(id:42286) Surgical Oncology,JOHNSON & JOHNSON MEDICAL LTD,id:14967262 ,1583.28
Department of Health,Guys and St Thomas NHS Foundation Trust,18/03/2022,(81200) Medical Surgical Supplies & Equipment,(id:42286) Surgical Oncology,PULMONX INTERNATIONAL SARL,id:15035962    ,7848.00
Department of Health,Guys and St Thomas NHS Foundation Trust,18/03/2022,(81200) Medical Surgical Supplies & Equipment,(id:42286) Surgical Oncology,JOHNSON & JOHNSON MEDICAL LTD,id:14974179 ,1600.20
Department of Health,Guys and St Thomas NHS Foundation Trust,25/03/2022,(81200) Medical Surgical Supplies & Equipment,(id:42286) Surgical Oncology,MEDTRONIC LTD,id:14993753  , 768.00
Department of Health,Guys and St Thomas NHS Foundation Trust,25/03/2022,(81200) Medical Surgical Supplies & Equipment,(id:42286) Surgical Oncology,MEDTRONIC LTD,id:15061410  ,1263.60
Department of Health,Guys and St Thomas NHS Foundation Trust,25/03/2022,(81200) Medical Surgical Supplies & Equipment,(id:42286) Surgical Oncology,MEDTRONIC LTD,id:15061409  ,1263.60
Department of Health,Guys and St Thomas NHS Foundation Trust,04/03/2022,(82600) Uniforms & Clothing,(id:42284) Surgical Oncology,NHS SUPPLY CHAIN (MAIDSTONE),id:14891794,  12.64
Department of Health,Guys and St Thomas NHS Foundation Trust,11/03/2022,(81200) Medical Surgical Supplies & Equipment,(id:42284) Surgical Oncology,GETINGE LTD,id:15015413    , 548.40
Department of Health,Guys and St Thomas NHS Foundation Trust,24/03/2022,(81200) Medical Surgical Supplies & Equipment,(id:42284) Surgical Oncology,NHS SUPPLY CHAIN (MAIDSTONE),id:14966960  , 980.21
Department of Health,Guys and St Thomas NHS Foundation Trust,04/03/2022,(82700) Uniforms & Clothing,(id:42284) Surgical Oncology,NHS SUPPLY CHAIN (MAIDSTONE),id:14891794,  31.68
Department of Health,Guys and St Thomas NHS Foundation Trust,24/03/2022,(82800) Bedding & Linen,(id:42470) Surgical Oncology,NHS SUPPLY CHAIN (MAIDSTONE),id:14966960    , 207.33
Department of Health,Guys and St Thomas NHS Foundation Trust,24/03/2022,(82800) Bedding & Linen,(id:42470) Surgical Oncology,NHS SUPPLY CHAIN (MAIDSTONE),id:14970245    ,  90.25
Department of Health,Guys and St Thomas NHS Foundation Trust,24/03/2022,(81100) Dressings,(id:42470) Surgical Oncology,NHS SUPPLY CHAIN (MAIDSTONE),id:14970245, 694.82
Department of Health,Guys and St Thomas NHS Foundation Trust,11/03/2022,(50522) Unqualified Nursing Staff,(id:42470) Surgical Oncology,GLOBE LOCUMS LTD,id:15018323 , 233.47
Department of Health,Guys and St Thomas NHS Foundation Trust,25/03/2022,(50522) Unqualified Nursing Staff,(id:42470) Surgical Oncology,MSI GROUP LTD,id:15059015    , 283.70
Department of Health,Guys and St Thomas NHS Foundation Trust,25/03/2022,(84500) Establishment,(id:42508) Surgical Oncology,CDP  PRINT MANAGEMENT,id:15011875   ,  14.40
Department of Health,Guys and St Thomas NHS Foundation Trust,04/03/2022,(81100) Dressings,(id:42508) Surgical Oncology,NHS SUPPLY CHAIN (MAIDSTONE),id:14891794,  21.62
Department of Health,Guys and St Thomas NHS Foundation Trust,18/03/2022,(81200) Medical Surgical Supplies & Equipment,(id:42508) Surgical Oncology,NHS SUPPLY CHAIN (MAIDSTONE),id:14986785  ,  11.12
Department of Health,Guys and St Thomas NHS Foundation Trust,11/03/2022,(89440) Research and Development,(id:4605421) Surgical Oncology,KINGS COLLEGE LONDON:03529700,id:14794318  ,    20000.00
Department of Health,Guys and St Thomas NHS Foundation Trust,11/03/2022,(50532) Unqualified Nursing Staff,(id:246421) Acute & General Medicine,CONTINENTAL NURSE LTD,id:15018697   , 208.98
Department of Health,Guys and St Thomas NHS Foundation Trust,18/03/2022,(82800) Bedding & Linen,(id:41858) Acute & General Medicine,NHS SUPPLY CHAIN (MAIDSTONE),id:14986785  , 100.16
Department of Health,Guys and St Thomas NHS Foundation Trust,11/03/2022,(50532) Unqualified Nursing Staff,(id:41858) Acute & General Medicine,GLOBE LOCUMS LTD,id:15018256    , 818.70
Department of Health,Guys and St Thomas NHS Foundation Trust,18/03/2022,(81100) Dressings,(id:41858) Acute & General Medicine,NHS SUPPLY CHAIN (MAIDSTONE),id:14986785   , 635.74
Department of Health,Guys and St Thomas NHS Foundation Trust,24/03/2022,(81100) Dressings,(id:41858) Acute & General Medicine,NHS SUPPLY CHAIN (MAIDSTONE),id:14970245   , 697.13
Department of Health,Guys and St Thomas NHS Foundation Trust,11/03/2022,(50522) Unqualified Nursing Staff,(id:41858) Acute & General Medicine,MSI GROUP LTD,id:15018688  ,1089.04
Department of Health,Guys and St Thomas NHS Foundation Trust,25/03/2022,(50522) Unqualified Nursing Staff,(id:41858) Acute & General Medicine,GLOBE LOCUMS LTD,id:15058985    , 252.92
Department of Health,Guys and St Thomas NHS Foundation Trust,04/03/2022,(50522) Unqualified Nursing Staff,(id:41858) Acute & General Medicine,GLOBE LOCUMS LTD,id:14980879    , 205.18
Department of Health,Guys and St Thomas NHS Foundation Trust,24/03/2022,(81700) Lab Equipment Purchase,(id:41858) Acute & General Medicine,NHS SUPPLY CHAIN (MAIDSTONE),id:14970245,   3.10
Department of Health,Guys and St Thomas NHS Foundation Trust,24/03/2022,(82000) Provisions & Kitchens,(id:41859) Acute & General Medicine,NHS SUPPLY CHAIN (MAIDSTONE),id:14970245 , 177.09
Department of Health,Guys and St Thomas NHS Foundation Trust,24/03/2022,(82000) Provisions & Kitchens,(id:41859) Acute & General Medicine,NHS SUPPLY CHAIN (MAIDSTONE),id:14966960 , 236.69
Department of Health,Guys and St Thomas NHS Foundation Trust,04/03/2022,(83400) Office Equipment,(id:41859) Acute & General Medicine,NHS SUPPLY CHAIN (MAIDSTONE),id:14891794 ,  64.88
Department of Health,Guys and St Thomas NHS Foundation Trust,24/03/2022,(82800) Bedding & Linen,(id:41859) Acute & General Medicine,NHS SUPPLY CHAIN (MAIDSTONE),id:14970245  , 164.54
Department of Health,Guys and St Thomas NHS Foundation Trust,11/03/2022,(50552) Qualified Nursing Staff,(id:41859) Acute & General Medicine,CARE PROVIDERS HEALTHCARE,id:15018393  , 701.73
Department of Health,Guys and St Thomas NHS Foundation Trust,25/03/2022,(50552) Qualified Nursing Staff,(id:41859) Acute & General Medicine,CARE PROVIDERS HEALTHCARE,id:15061773  ,1291.90
Department of Health,Guys and St Thomas NHS Foundation Trust,24/03/2022,(81255) Medical Surgical Supplies & Equipment,(id:41859) Acute & General Medicine,NHS SUPPLY CHAIN (MAIDSTONE),id:14970245,   8.21
Department of Health,Guys and St Thomas NHS Foundation Trust,11/03/2022,(50522) Unqualified Nursing Staff,(id:41859) Acute & General Medicine,CARE PROVIDERS HEALTHCARE,id:15018562, 546.94
Department of Health,Guys and St Thomas NHS Foundation Trust,25/03/2022,(50522) Unqualified Nursing Staff,(id:41859) Acute & General Medicine,CARE PROVIDERS HEALTHCARE,id:15061841, 252.93
Department of Health,Guys and St Thomas NHS Foundation Trust,24/03/2022,(81225) Medical Surgical Supplies & Equipment,(id:41859) Acute & General Medicine,NHS SUPPLY CHAIN (MAIDSTONE),id:14966960,   5.08
Department of Health,Guys and St Thomas NHS Foundation Trust,04/03/2022,(83400) Office Equipment,(id:41860) Acute & General Medicine,NHS SUPPLY CHAIN (MAIDSTONE),id:14891794 ,  93.57
Department of Health,Guys and St Thomas NHS Foundation Trust,24/03/2022,(82800) Bedding & Linen,(id:41860) Acute & General Medicine,NHS SUPPLY CHAIN (MAIDSTONE),id:14970245  ,  53.67
Department of Health,Guys and St Thomas NHS Foundation Trust,24/03/2022,(82800) Bedding & Linen,(id:41860) Acute & General Medicine,NHS SUPPLY CHAIN (MAIDSTONE),id:14966960  ,  86.24
Department of Health,Guys and St Thomas NHS Foundation Trust,18/03/2022,(50552) Qualified Nursing Staff,(id:41860) Acute & General Medicine,CONTINENTAL NURSE LTD,id:15034395 ,1840.88
Department of Health,Guys and St Thomas NHS Foundation Trust,11/03/2022,(50552) Qualified Nursing Staff,(id:41860) Acute & General Medicine,CARE PROVIDERS HEALTHCARE,id:15018193  , 396.06
Department of Health,Guys and St Thomas NHS Foundation Trust,04/03/2022,(83410) Office Equipment,(id:41860) Acute & General Medicine,RICOH UK LTD,id:14972484  ,  17.59
Department of Health,Guys and St Thomas NHS Foundation Trust,11/03/2022,(50522) Unqualified Nursing Staff,(id:41860) Acute & General Medicine,MSI GROUP LTD,id:15018812  , 275.89
Department of Health,Guys and St Thomas NHS Foundation Trust,18/03/2022,(50522) Unqualified Nursing Staff,(id:41860) Acute & General Medicine,GLOBE LOCUMS LTD,id:15034231    , 266.79
Department of Health,Guys and St Thomas NHS Foundation Trust,04/03/2022,(81200) Medical Surgical Supplies & Equipment,(id:41860) Acute & General Medicine,NHS SUPPLY CHAIN (MAIDSTONE),id:14891794, 287.58
Department of Health,Guys and St Thomas NHS Foundation Trust,24/03/2022,(81200) Medical Surgical Supplies & Equipment,(id:41860) Acute & General Medicine,NHS SUPPLY CHAIN (MAIDSTONE),id:14970245,3021.69
Department of Health,Guys and St Thomas NHS Foundation Trust,24/03/2022,(81700) Lab Equipment Purchase,(id:41860) Acute & General Medicine,NHS SUPPLY CHAIN (MAIDSTONE),id:14970245,  19.40
Department of Health,Guys and St Thomas NHS Foundation Trust,04/03/2022,(82700) Uniforms & Clothing,(id:2182419) Acute & General Medicine,NHS SUPPLY CHAIN (MAIDSTONE),id:14891794 ,  80.84
Department of Health,Guys and St Thomas NHS Foundation Trust,24/03/2022,(82700) Uniforms & Clothing,(id:2182419) Acute & General Medicine,NHS SUPPLY CHAIN (MAIDSTONE),id:14966960 , 124.53
Department of Health,Guys and St Thomas NHS Foundation Trust,24/03/2022,(81700) Lab Equipment Purchase,(id:2182419) Acute & General Medicine,NHS SUPPLY CHAIN (MAIDSTONE),id:14966960   ,  22.50
Department of Health,Guys and St Thomas NHS Foundation Trust,24/03/2022,(81700) Lab Equipment Purchase,(id:2182419) Acute & General Medicine,NHS SUPPLY CHAIN (MAIDSTONE),id:14970245   ,  19.40
Department of Health,Guys and St Thomas NHS Foundation Trust,04/03/2022,(81700) Lab Equipment Purchase,(id:2182419) Acute & General Medicine,NHS SUPPLY CHAIN (MAIDSTONE),id:14891794   ,  37.40
Department of Health,Guys and St Thomas NHS Foundation Trust,24/03/2022,(81200) Medical Surgical Supplies & Equipment,(id:2182419) Acute & General Medicine,NHS SUPPLY CHAIN (MAIDSTONE),id:14970245   ,1514.01
Department of Health,Guys and St Thomas NHS Foundation Trust,18/03/2022,(50552) Qualified Nursing Staff,(id:2182419) Acute & General Medicine,GLOBE LOCUMS LTD,id:15034400    , 325.86
Department of Health,Guys and St Thomas NHS Foundation Trust,04/03/2022,(50552) Qualified Nursing Staff,(id:2182419) Acute & General Medicine,MEDICSPRO LTD,id:14990016  , 624.00
Department of Health,Guys and St Thomas NHS Foundation Trust,04/03/2022,(50522) Unqualified Nursing Staff,(id:2182419) Acute & General Medicine,CARE PROVIDERS HEALTHCARE,id:14980863   , 262.81
Department of Health,Guys and St Thomas NHS Foundation Trust,24/03/2022,(82000) Provisions & Kitchens,(id:2182419) Acute & General Medicine,NHS SUPPLY CHAIN (MAIDSTONE),id:14970245    , 148.79
Department of Health,Guys and St Thomas NHS Foundation Trust,18/03/2022,(83400) Office Equipment,(id:2182419) Acute & General Medicine,NHS SUPPLY CHAIN (MAIDSTONE),id:14986785    , 459.63
Department of Health,Guys and St Thomas NHS Foundation Trust,11/03/2022,(83500) Furniture & Fittings,(id:1307420) Acute & General Medicine,OCURA HEALTHCARE FURNITURE,id:14980520  ,2457.84
Department of Health,Guys and St Thomas NHS Foundation Trust,11/03/2022,(50200) Consultants,(id:41855) Acute & General Medicine,KINGS COLLEGE LONDON:03529700,id:14973154,1511.95
Department of Health,Guys and St Thomas NHS Foundation Trust,25/03/2022,(86300) Healthcare from non-NHS bodies,(id:860419) Acute & General Medicine,SELDOC LTD,id:14989419    ,    10640.00
Department of Health,Guys and St Thomas NHS Foundation Trust,18/03/2022,(82800) Bedding & Linen,(id:41868) Acute & General Medicine,NHS SUPPLY CHAIN (MAIDSTONE),id:14986785  , 107.82
Department of Health,Guys and St Thomas NHS Foundation Trust,24/03/2022,(81100) Dressings,(id:41868) Acute & General Medicine,NHS SUPPLY CHAIN (MAIDSTONE),id:14970245   ,  92.51
Department of Health,Guys and St Thomas NHS Foundation Trust,18/03/2022,(82000) Provisions & Kitchens,(id:41868) Acute & General Medicine,NHS SUPPLY CHAIN (MAIDSTONE),id:14986785 ,  10.11
Department of Health,Guys and St Thomas NHS Foundation Trust,18/03/2022,(81225) Medical Surgical Supplies & Equipment,(id:41868) Acute & General Medicine,NHS SUPPLY CHAIN (MAIDSTONE),id:14986785, 277.20
Department of Health,Guys and St Thomas NHS Foundation Trust,04/03/2022,(81275) Medical Surgical Supplies & Equipment,(id:41868) Acute & General Medicine,NHS SUPPLY CHAIN (MAIDSTONE),id:14891794,  57.84
Department of Health,Guys and St Thomas NHS Foundation Trust,18/03/2022,(82700) Uniforms & Clothing,(id:41869) Acute & General Medicine,NHS SUPPLY CHAIN (MAIDSTONE),id:14986785   , 317.81
Department of Health,Guys and St Thomas NHS Foundation Trust,18/03/2022,(82000) Provisions & Kitchens,(id:41869) Acute & General Medicine,NHS SUPPLY CHAIN (MAIDSTONE),id:14986785 ,  57.91
Department of Health,Guys and St Thomas NHS Foundation Trust,24/03/2022,(82000) Provisions & Kitchens,(id:41869) Acute & General Medicine,NHS SUPPLY CHAIN (MAIDSTONE),id:14966960 , 119.14
Department of Health,Guys and St Thomas NHS Foundation Trust,24/03/2022,(82000) Provisions & Kitchens,(id:41869) Acute & General Medicine,NHS SUPPLY CHAIN (MAIDSTONE),id:14970245 ,  93.80
Department of Health,Guys and St Thomas NHS Foundation Trust,24/03/2022,(82800) Bedding & Linen,(id:41869) Acute & General Medicine,NHS SUPPLY CHAIN (MAIDSTONE),id:14966960  , 541.02
Department of Health,Guys and St Thomas NHS Foundation Trust,11/03/2022,(81200) Medical Surgical Supplies & Equipment,(id:41869) Acute & General Medicine,PROTECH MEDICAL LTD,id:14980436    ,1207.08
Department of Health,Guys and St Thomas NHS Foundation Trust,25/03/2022,(53280) Clinical Scientists,(id:41869) Acute & General Medicine,RICOH UK LTD,id:15062126    , 331.83
Department of Health,Guys and St Thomas NHS Foundation Trust,04/03/2022,(81275) Medical Surgical Supplies & Equipment,(id:41869) Acute & General Medicine,NHS SUPPLY CHAIN (MAIDSTONE),id:14891794,  19.80
Department of Health,Guys and St Thomas NHS Foundation Trust,24/03/2022,(81700) Lab Equipment Purchase,(id:41869) Acute & General Medicine,NHS SUPPLY CHAIN (MAIDSTONE),id:14966960,  38.80
Department of Health,Guys and St Thomas NHS Foundation Trust,04/03/2022,(83400) Office Equipment,(id:41882) Acute & General Medicine,NHS SUPPLY CHAIN (MAIDSTONE),id:14891794 ,  19.82
Department of Health,Guys and St Thomas NHS Foundation Trust,18/03/2022,(81100) Dressings,(id:41882) Acute & General Medicine,NHS SUPPLY CHAIN (MAIDSTONE),id:14986785   ,   3.26
Department of Health,Guys and St Thomas NHS Foundation Trust,24/03/2022,(81100) Dressings,(id:41882) Acute & General Medicine,NHS SUPPLY CHAIN (MAIDSTONE),id:14966960   ,   1.78
Department of Health,Guys and St Thomas NHS Foundation Trust,24/03/2022,(81200) Medical Surgical Supplies & Equipment,(id:41882) Acute & General Medicine,NHS SUPPLY CHAIN (MAIDSTONE),id:14970245,   9.62
Department of Health,Guys and St Thomas NHS Foundation Trust,04/03/2022,(81200) Medical Surgical Supplies & Equipment,(id:41882) Acute & General Medicine,NHS SUPPLY CHAIN (MAIDSTONE),id:14891794, 109.77
Department of Health,Guys and St Thomas NHS Foundation Trust,18/03/2022,(81200) Medical Surgical Supplies & Equipment,(id:41882) Acute & General Medicine,NHS SUPPLY CHAIN (MAIDSTONE),id:14986785,  28.31
Department of Health,Guys and St Thomas NHS Foundation Trust,04/03/2022,(83410) Office Equipment,(id:41876) Acute & General Medicine,RICOH UK LTD,id:14972556  , 189.51
Department of Health,Guys and St Thomas NHS Foundation Trust,04/03/2022,(81000) Surgical Appliances,(id:41876) Acute & General Medicine,MEDI UK LTD,id:14981126,  52.03
Department of Health,Guys and St Thomas NHS Foundation Trust,04/03/2022,(81000) Surgical Appliances,(id:41876) Acute & General Medicine,TALAR MADE ORTHOTICS LTD,id:14984334  ,  96.00
Department of Health,Guys and St Thomas NHS Foundation Trust,24/03/2022,(82700) Uniforms & Clothing,(id:41878) Acute & General Medicine,NHS SUPPLY CHAIN (MAIDSTONE),id:14966960   ,  23.76
Department of Health,Guys and St Thomas NHS Foundation Trust,04/03/2022,(81100) Dressings,(id:41878) Acute & General Medicine,NHS SUPPLY CHAIN (MAIDSTONE),id:14891794   , 272.22
Department of Health,Guys and St Thomas NHS Foundation Trust,18/03/2022,(50522) Unqualified Nursing Staff,(id:41878) Acute & General Medicine,GLOBE LOCUMS LTD,id:15034449    , 781.68
Department of Health,Guys and St Thomas NHS Foundation Trust,04/03/2022,(50522) Unqualified Nursing Staff,(id:41878) Acute & General Medicine,CARE PROVIDERS HEALTHCARE,id:14992426, 586.12
Department of Health,Guys and St Thomas NHS Foundation Trust,04/03/2022,(81200) Medical Surgical Supplies & Equipment,(id:41878) Acute & General Medicine,NHS SUPPLY CHAIN (MAIDSTONE),id:14891794, 751.01
Department of Health,Guys and St Thomas NHS Foundation Trust,04/03/2022,(82700) Uniforms & Clothing,(id:41879) Acute & General Medicine,NHS SUPPLY CHAIN (MAIDSTONE),id:14891794   ,  23.76
Department of Health,Guys and St Thomas NHS Foundation Trust,18/03/2022,(50522) Unqualified Nursing Staff,(id:41879) Acute & General Medicine,MEDICSPRO LTD,id:15034160  , 621.08
Department of Health,Guys and St Thomas NHS Foundation Trust,18/03/2022,(50522) Unqualified Nursing Staff,(id:41879) Acute & General Medicine,GLOBE LOCUMS LTD,id:15034399    , 505.85
Department of Health,Guys and St Thomas NHS Foundation Trust,04/03/2022,(50522) Unqualified Nursing Staff,(id:41879) Acute & General Medicine,GLOBE LOCUMS LTD,id:14990107    , 201.07
Department of Health,Guys and St Thomas NHS Foundation Trust,04/03/2022,(50522) Unqualified Nursing Staff,(id:41879) Acute & General Medicine,CARE PROVIDERS HEALTHCARE,id:14992426, 586.10
Department of Health,Guys and St Thomas NHS Foundation Trust,18/03/2022,(50522) Unqualified Nursing Staff,(id:41879) Acute & General Medicine,MEDICSPRO LTD,id:15034207  ,1072.73
Department of Health,Guys and St Thomas NHS Foundation Trust,18/03/2022,(82000) Provisions & Kitchens,(id:41880) Acute & General Medicine,NHS SUPPLY CHAIN (MAIDSTONE),id:14986785 ,  63.87
Department of Health,Guys and St Thomas NHS Foundation Trust,24/03/2022,(83400) Office Equipment,(id:41880) Acute & General Medicine,NHS SUPPLY CHAIN (MAIDSTONE),id:14970245 ,  71.95
Department of Health,Guys and St Thomas NHS Foundation Trust,18/03/2022,(82800) Bedding & Linen,(id:41880) Acute & General Medicine,NHS SUPPLY CHAIN (MAIDSTONE),id:14986785  , 200.94
Department of Health,Guys and St Thomas NHS Foundation Trust,04/03/2022,(81200) Medical Surgical Supplies & Equipment,(id:41880) Acute & General Medicine,NHS SUPPLY CHAIN (MAIDSTONE),id:14891794,1032.33
Department of Health,Guys and St Thomas NHS Foundation Trust,24/03/2022,(83400) Office Equipment,(id:41881) Acute & General Medicine,NHS SUPPLY CHAIN (MAIDSTONE),id:14966960 , 101.68
Department of Health,Guys and St Thomas NHS Foundation Trust,04/03/2022,(82800) Bedding & Linen,(id:41881) Acute & General Medicine,NHS SUPPLY CHAIN (MAIDSTONE),id:14891794  ,  21.31
Department of Health,Guys and St Thomas NHS Foundation Trust,18/03/2022,(82800) Bedding & Linen,(id:41881) Acute & General Medicine,NHS SUPPLY CHAIN (MAIDSTONE),id:14986785  ,  71.72
Department of Health,Guys and St Thomas NHS Foundation Trust,04/03/2022,(50522) Unqualified Nursing Staff,(id:41881) Acute & General Medicine,GLOBE LOCUMS LTD,id:14990190    , 222.61
Department of Health,Guys and St Thomas NHS Foundation Trust,04/03/2022,(50522) Unqualified Nursing Staff,(id:41881) Acute & General Medicine,MSI GROUP LTD,id:14989936  , 273.47
Department of Health,Guys and St Thomas NHS Foundation Trust,11/03/2022,(50522) Unqualified Nursing Staff,(id:41881) Acute & General Medicine,GLOBE LOCUMS LTD,id:15018871    , 754.42
Department of Health,Guys and St Thomas NHS Foundation Trust,11/03/2022,(50522) Unqualified Nursing Staff,(id:41881) Acute & General Medicine,CARE PROVIDERS HEALTHCARE,id:15018669, 258.37
Department of Health,Guys and St Thomas NHS Foundation Trust,25/03/2022,(50522) Unqualified Nursing Staff,(id:41881) Acute & General Medicine,CARE PROVIDERS HEALTHCARE,id:15059083, 258.37
Department of Health,Guys and St Thomas NHS Foundation Trust,30/03/2022,(89570) Other – Other Operating Expenditure,(id:1435419) Acute & General Medicine,GSTT PROCUREMENT CARD,id:15081217 , 382.02
Department of Health,Guys and St Thomas NHS Foundation Trust,25/03/2022,(84500) Establishment,(id:1435419) Acute & General Medicine,CDP  PRINT MANAGEMENT,id:15011876    ,  10.80
Department of Health,Guys and St Thomas NHS Foundation Trust,18/03/2022,(83400) Office Equipment,(id:42025) Dental Services,NHS SUPPLY CHAIN (MAIDSTONE),id:14986785,  84.37
Department of Health,Guys and St Thomas NHS Foundation Trust,04/03/2022,(81200) Medical Surgical Supplies & Equipment,(id:42037) Dental Services,QED - QUALITY ENDODONTIC DISTRIBUTORS LTD,id:14986820 , 910.98
Department of Health,Guys and St Thomas NHS Foundation Trust,11/03/2022,(81200) Medical Surgical Supplies & Equipment,(id:42037) Dental Services,3M UNITED KINGDOM PLC,id:15015182 , 895.54
Department of Health,Guys and St Thomas NHS Foundation Trust,18/03/2022,(81200) Medical Surgical Supplies & Equipment,(id:42037) Dental Services,PLANMECA UK LTD,id:14872074  , 630.39
Department of Health,Guys and St Thomas NHS Foundation Trust,18/03/2022,(81200) Medical Surgical Supplies & Equipment,(id:42037) Dental Services,DP MEDICAL SYSTEMS LTD,id:14973302, 526.80
Department of Health,Guys and St Thomas NHS Foundation Trust,18/03/2022,(81200) Medical Surgical Supplies & Equipment,(id:42037) Dental Services,BIOHORIZONS UK LTD,id:15033809    ,1010.40
Department of Health,Guys and St Thomas NHS Foundation Trust,25/03/2022,(81200) Medical Surgical Supplies & Equipment,(id:42037) Dental Services,QED - QUALITY ENDODONTIC DISTRIBUTORS LTD,id:15058591 , 802.80
Department of Health,Guys and St Thomas NHS Foundation Trust,04/03/2022,(81200) Medical Surgical Supplies & Equipment,(id:42005) Dental Services,NHS SUPPLY CHAIN (MAIDSTONE),id:14891794    , 354.40
Department of Health,Guys and St Thomas NHS Foundation Trust,24/03/2022,(83400) Office Equipment,(id:42005) Dental Services,NHS SUPPLY CHAIN (MAIDSTONE),id:14970245,   7.38
Department of Health,Guys and St Thomas NHS Foundation Trust,24/03/2022,(83400) Office Equipment,(id:42005) Dental Services,NHS SUPPLY CHAIN (MAIDSTONE),id:14966960,  75.96
Department of Health,Guys and St Thomas NHS Foundation Trust,18/03/2022,(82600) Uniforms & Clothing,(id:42007) Dental Services,AYERST ENVIRONMENTAL LTD,id:14957634 , 626.40
Department of Health,Guys and St Thomas NHS Foundation Trust,18/03/2022,(82800) Bedding & Linen,(id:42007) Dental Services,NHS SUPPLY CHAIN (MAIDSTONE),id:14986785 ,  43.13
Department of Health,Guys and St Thomas NHS Foundation Trust,25/03/2022,(84500) Establishment,(id:42007) Dental Services,CDP  PRINT MANAGEMENT,id:15011877,  15.50
Department of Health,Guys and St Thomas NHS Foundation Trust,04/03/2022,(81200) Medical Surgical Supplies & Equipment,(id:42007) Dental Services,MERCIAN SURGICAL SUPPLY CO LTD,id:14957936  , 672.00
Department of Health,Guys and St Thomas NHS Foundation Trust,04/03/2022,(81200) Medical Surgical Supplies & Equipment,(id:42007) Dental Services,HENRY SCHEIN,id:14976494, 551.66
Department of Health,Guys and St Thomas NHS Foundation Trust,04/03/2022,(81200) Medical Surgical Supplies & Equipment,(id:42007) Dental Services,HENRY SCHEIN,id:14981516, 570.48
Department of Health,Guys and St Thomas NHS Foundation Trust,18/03/2022,(83400) Office Equipment,(id:42015) Dental Services,NHS SUPPLY CHAIN (MAIDSTONE),id:14986785,  63.31
Department of Health,Guys and St Thomas NHS Foundation Trust,24/03/2022,(83400) Office Equipment,(id:42015) Dental Services,NHS SUPPLY CHAIN (MAIDSTONE),id:14970245,   3.77
Department of Health,Guys and St Thomas NHS Foundation Trust,11/03/2022,(81200) Medical Surgical Supplies & Equipment,(id:42015) Dental Services,HENRY SCHEIN,id:14990394, 944.22
Department of Health,Guys and St Thomas NHS Foundation Trust,18/03/2022,(81700) Lab Equipment Purchase,(id:42015) Dental Services,NHS SUPPLY CHAIN (MAIDSTONE),id:14986785    ,   9.72
Department of Health,Guys and St Thomas NHS Foundation Trust,24/03/2022,(50470) Medical Training Grades,(id:42033) Dental Services,UNIVERSITY HOSPITALS SUSSEX NHS FOUNDATION TRUST,id:15045054   ,1919.04
Department of Health,Guys and St Thomas NHS Foundation Trust,25/03/2022,(84500) Establishment,(id:42004) Dental Services,CDP  PRINT MANAGEMENT,id:15011878,   4.50
Department of Health,Guys and St Thomas NHS Foundation Trust,04/03/2022,(81200) Medical Surgical Supplies & Equipment,(id:42028) Dental Services,NHS SUPPLY CHAIN (MAIDSTONE),id:14891794    ,  34.99
Department of Health,Guys and St Thomas NHS Foundation Trust,18/03/2022,(81200) Medical Surgical Supplies & Equipment,(id:42028) Dental Services,HENRY SCHEIN,id:14993955, 775.15
Department of Health,Guys and St Thomas NHS Foundation Trust,18/03/2022,(81100) Dressings,(id:42028) Dental Services,NHS SUPPLY CHAIN (MAIDSTONE),id:14986785  , 241.27
Department of Health,Guys and St Thomas NHS Foundation Trust,25/03/2022,(84500) Establishment,(id:42016) Dental Services,CDP  PRINT MANAGEMENT,id:15011876,   6.20
Department of Health,Guys and St Thomas NHS Foundation Trust,25/03/2022,(84500) Establishment,(id:41996) Dental Services,CDP  PRINT MANAGEMENT,id:15011877,   3.10
Department of Health,Guys and St Thomas NHS Foundation Trust,11/03/2022,(83400) Office Equipment,(id:42014) Dental Services,BLACKWELLS LONDON BOOKSHOP,id:15019014  , 998.64
Department of Health,Guys and St Thomas NHS Foundation Trust,11/03/2022,(81500) X Ray Equipment Purchase,(id:42014) Dental Services,SIDENT LTD,id:15005374,3581.28
Department of Health,Guys and St Thomas NHS Foundation Trust,11/03/2022,(81500) X Ray Equipment Purchase,(id:42014) Dental Services,SIDENT LTD,id:15005354,3581.28
Department of Health,Guys and St Thomas NHS Foundation Trust,11/03/2022,(81500) X Ray Equipment Purchase,(id:42014) Dental Services,SIDENT LTD,id:15005554,3581.28
Department of Health,Guys and St Thomas NHS Foundation Trust,11/03/2022,(50542) Unqualified Nursing Staff,(id:1885419) Dental Services,GENEVA HEALTH INTERNATIONAL LIMITED,id:15018203  , 302.25
Department of Health,Guys and St Thomas NHS Foundation Trust,04/03/2022,(83410) Office Equipment,(id:42043) Dental Services,RICOH UK LTD,id:14972556 , 294.71
Department of Health,Guys and St Thomas NHS Foundation Trust,18/03/2022,(81200) Medical Surgical Supplies & Equipment,(id:42035) Dental Services,NOBEL BIOCARE UK LTD,id:15008794  ,2965.57
Department of Health,Guys and St Thomas NHS Foundation Trust,18/03/2022,(81200) Medical Surgical Supplies & Equipment,(id:42035) Dental Services,DENTSPLY IH LTD,id:15033829  , 661.73
Department of Health,Guys and St Thomas NHS Foundation Trust,18/03/2022,(81200) Medical Surgical Supplies & Equipment,(id:42035) Dental Services,DENTSPLY IH LTD,id:15007475  , 788.62
Department of Health,Guys and St Thomas NHS Foundation Trust,25/03/2022,(81200) Medical Surgical Supplies & Equipment,(id:42035) Dental Services,DENTSPLY IH LTD,id:15030382  , 659.28
Department of Health,Guys and St Thomas NHS Foundation Trust,11/03/2022,(81200) Medical Surgical Supplies & Equipment,(id:42035) Dental Services,DENTSPLY IH LTD,id:14998434  , 568.28
Department of Health,Guys and St Thomas NHS Foundation Trust,04/03/2022,(83410) Office Equipment,(id:42035) Dental Services,RICOH UK LTD,id:14972484 ,  50.85
Department of Health,Guys and St Thomas NHS Foundation Trust,25/03/2022,(84657) Establishment,(id:42035) Dental Services,IRON MOUNTAIN (UK) LTD,id:14981794    ,1743.26
Department of Health,Guys and St Thomas NHS Foundation Trust,04/03/2022,(81200) Medical Surgical Supplies & Equipment,(id:4622420) Dental Services,NHS SUPPLY CHAIN (MAIDSTONE),id:14891794  ,  75.75
Department of Health,Guys and St Thomas NHS Foundation Trust,11/03/2022,(81200) Medical Surgical Supplies & Equipment,(id:1634429) Dental Services,HENRY SCHEIN,id:14990477   , 895.68
Department of Health,Guys and St Thomas NHS Foundation Trust,04/03/2022,(81200) Medical Surgical Supplies & Equipment,(id:1634429) Dental Services,HENRY SCHEIN,id:14976596   , 832.12
Department of Health,Guys and St Thomas NHS Foundation Trust,04/03/2022,(81200) Medical Surgical Supplies & Equipment,(id:1634429) Dental Services,QED - QUALITY ENDODONTIC DISTRIBUTORS LTD,id:14986823    , 977.58
Department of Health,Guys and St Thomas NHS Foundation Trust,04/03/2022,(81200) Medical Surgical Supplies & Equipment,(id:1634432) Dental Services,HENRY SCHEIN,id:14976314   , 741.06
Department of Health,Guys and St Thomas NHS Foundation Trust,11/03/2022,(81200) Medical Surgical Supplies & Equipment,(id:1634433) Dental Services,HENRY SCHEIN,id:14987538   , 830.77
Department of Health,Guys and St Thomas NHS Foundation Trust,24/03/2022,(81200) Medical Surgical Supplies & Equipment,(id:1634433) Dental Services,NHS SUPPLY CHAIN (MAIDSTONE),id:14970245  , 277.48
Department of Health,Guys and St Thomas NHS Foundation Trust,04/03/2022,(81350) Rental under Operating Lease,(id:1634433) Dental Services,ETA PROJECTS LTD,id:14987055   ,4680.00
Department of Health,Guys and St Thomas NHS Foundation Trust,04/03/2022,(81200) Medical Surgical Supplies & Equipment,(id:42011) Dental Services,SKILLBOND  DIRECT LTD,id:14963254 ,1975.20
Department of Health,Guys and St Thomas NHS Foundation Trust,18/03/2022,(81200) Medical Surgical Supplies & Equipment,(id:1650421) Dental Services,DB ORTHODONTICS LTD,id:15019290 ,1290.18
Department of Health,Guys and St Thomas NHS Foundation Trust,25/03/2022,(83500) Furniture & Fittings,(id:1650420) Dental Services,GRANTLEIGH LTD,id:14997754   ,3000.00
Department of Health,Guys and St Thomas NHS Foundation Trust,11/03/2022,(81700) Lab Equipment Purchase,(id:641456) Specialist Ambulatory Services,BECKMAN COULTER UNITED KINGDOM LTD,id:14994254  ,3739.32
Department of Health,Guys and St Thomas NHS Foundation Trust,24/03/2022,(81700) Lab Equipment Purchase,(id:4232419) Specialist Ambulatory Services,NHS SUPPLY CHAIN (MAIDSTONE),id:14966960  ,  18.00
Department of Health,Guys and St Thomas NHS Foundation Trust,04/03/2022,(81000) Surgical Appliances,(id:42193) Specialist Ambulatory Services,TALAR MADE ORTHOTICS LTD,id:14986995 ,  43.66
Department of Health,Guys and St Thomas NHS Foundation Trust,24/03/2022,(82800) Bedding & Linen,(id:42193) Specialist Ambulatory Services,NHS SUPPLY CHAIN (MAIDSTONE),id:14970245 ,  65.70
Department of Health,Guys and St Thomas NHS Foundation Trust,11/03/2022,(50200) Consultants,(id:42194) Specialist Ambulatory Services,KING'S COLLEGE HOSPITAL NHS FOUNDATION TRUST,id:14981335    ,2515.34
Department of Health,Guys and St Thomas NHS Foundation Trust,04/03/2022,(81000) Surgical Appliances,(id:42195) Specialist Ambulatory Services,TALAR MADE ORTHOTICS LTD,id:14984334 ,  57.05
Department of Health,Guys and St Thomas NHS Foundation Trust,11/03/2022,(50200) Consultants,(id:42215) Specialist Ambulatory Services,KINGS COLLEGE LONDON:03529700,id:14973182    ,1508.63
Department of Health,Guys and St Thomas NHS Foundation Trust,04/03/2022,(81000) Surgical Appliances,(id:42215) Specialist Ambulatory Services,TALAR MADE ORTHOTICS LTD,id:14984412 ,  13.97
Department of Health,Guys and St Thomas NHS Foundation Trust,11/03/2022,(89595) Non-Healthcare from Foundation Trusts,(id:42354) Specialist Ambulatory Services,GREAT ORMOND STREET HOSPITAL FOR CHILDREN NHS FOUNDATION TRUST,id:14548114, 776.00
Department of Health,Guys and St Thomas NHS Foundation Trust,04/03/2022,(83410) Office Equipment,(id:42358) Specialist Ambulatory Services,RICOH UK LTD,id:14972556 , 560.04
Department of Health,Guys and St Thomas NHS Foundation Trust,11/03/2022,(50200) Consultants,(id:42099) Specialist Ambulatory Services,ST GEORGE'S UNIVERSITY HOSPITALS NHS FOUNDATION TRUST,id:14794517,1590.04
Department of Health,Guys and St Thomas NHS Foundation Trust,18/03/2022,(50200) Consultants,(id:42099) Specialist Ambulatory Services,CROYDON HEALTH SERVICES NHS TRUST,id:14815094,1163.05
Department of Health,Guys and St Thomas NHS Foundation Trust,18/03/2022,(81100) Dressings,(id:42091) Specialist Ambulatory Services,NHS SUPPLY CHAIN (MAIDSTONE),id:14986785  ,1652.87
Department of Health,Guys and St Thomas NHS Foundation Trust,24/03/2022,(81200) Medical Surgical Supplies & Equipment,(id:42091) Specialist Ambulatory Services,NHS SUPPLY CHAIN (MAIDSTONE),id:14966960    , 180.06
Department of Health,Guys and St Thomas NHS Foundation Trust,25/03/2022,(84600) Establishment,(id:42091) Specialist Ambulatory Services,CDP  PRINT MANAGEMENT,id:15036746, 762.00
Department of Health,Guys and St Thomas NHS Foundation Trust,24/03/2022,(82000) Provisions & Kitchens,(id:42091) Specialist Ambulatory Services,NHS SUPPLY CHAIN (MAIDSTONE),id:14966960, 119.94
Department of Health,Guys and St Thomas NHS Foundation Trust,11/03/2022,(89595) Non-Healthcare from Foundation Trusts,(id:42072) Specialist Ambulatory Services,SHEFFIELD CHILDREN'S NHS FOUNDATION TRUST,id:14037594 , 729.86
Department of Health,Guys and St Thomas NHS Foundation Trust,24/03/2022,(82000) Provisions & Kitchens,(id:3608419) Specialist Ambulatory Services,NHS SUPPLY CHAIN (MAIDSTONE),id:14970245   ,   7.80
Department of Health,Guys and St Thomas NHS Foundation Trust,04/03/2022,(80010) Drug Costs,(id:42079) Specialist Ambulatory Services,THERAKOS (UK) LIMITED,id:14954335   ,    11286.00
Department of Health,Guys and St Thomas NHS Foundation Trust,04/03/2022,(80010) Drug Costs,(id:42079) Specialist Ambulatory Services,THERAKOS (UK) LIMITED,id:14954354   ,    22572.00
Department of Health,Guys and St Thomas NHS Foundation Trust,11/03/2022,(80010) Drug Costs,(id:42079) Specialist Ambulatory Services,THERAKOS (UK) LIMITED,id:14985154   ,    22572.00
Department of Health,Guys and St Thomas NHS Foundation Trust,11/03/2022,(80010) Drug Costs,(id:42079) Specialist Ambulatory Services,THERAKOS (UK) LIMITED,id:15008694   ,-752.40
Department of Health,Guys and St Thomas NHS Foundation Trust,18/03/2022,(50552) Qualified Nursing Staff,(id:42079) Specialist Ambulatory Services,CONTINENTAL NURSE LTD,id:15034136, 825.48
Department of Health,Guys and St Thomas NHS Foundation Trust,11/03/2022,(83500) Furniture & Fittings,(id:42097) Specialist Ambulatory Services,ANETIC AID LTD,id:14987110, 548.40
Department of Health,Guys and St Thomas NHS Foundation Trust,18/03/2022,(81100) Dressings,(id:42097) Specialist Ambulatory Services,NHS SUPPLY CHAIN (MAIDSTONE),id:14986785  , 379.96
Department of Health,Guys and St Thomas NHS Foundation Trust,25/03/2022,(84500) Establishment,(id:42097) Specialist Ambulatory Services,CDP  PRINT MANAGEMENT,id:15011878,  18.00
Department of Health,Guys and St Thomas NHS Foundation Trust,24/03/2022,(81200) Medical Surgical Supplies & Equipment,(id:42097) Specialist Ambulatory Services,NHS SUPPLY CHAIN (MAIDSTONE),id:14966960    , 933.77
Department of Health,Guys and St Thomas NHS Foundation Trust,24/03/2022,(81200) Medical Surgical Supplies & Equipment,(id:42097) Specialist Ambulatory Services,NHS SUPPLY CHAIN (MAIDSTONE),id:14970245    , 145.92
Department of Health,Guys and St Thomas NHS Foundation Trust,18/03/2022,(82700) Uniforms & Clothing,(id:42097) Specialist Ambulatory Services,NHS SUPPLY CHAIN (MAIDSTONE),id:14986785  , 105.94
Department of Health,Guys and St Thomas NHS Foundation Trust,04/03/2022,(83400) Office Equipment,(id:42066) Specialist Ambulatory Services,NHS SUPPLY CHAIN (MAIDSTONE),id:14891794,  28.16
Department of Health,Guys and St Thomas NHS Foundation Trust,24/03/2022,(82800) Bedding & Linen,(id:42089) Specialist Ambulatory Services,NHS SUPPLY CHAIN (MAIDSTONE),id:14966960 , 172.51
Department of Health,Guys and St Thomas NHS Foundation Trust,18/03/2022,(50202) Consultants,(id:391419) Specialist Ambulatory Services,UNIVERSITY OF SUSSEX,id:14774443  ,    35389.92
Department of Health,Guys and St Thomas NHS Foundation Trust,11/03/2022,(53490) Psychologists,(id:391419) Specialist Ambulatory Services,ST GEORGE'S UNIVERSITY HOSPITALS NHS FOUNDATION TRUST,id:14684043  ,1471.87
Department of Health,Guys and St Thomas NHS Foundation Trust,18/03/2022,(81100) Dressings,(id:391417) Specialist Ambulatory Services,NHS SUPPLY CHAIN (MAIDSTONE),id:14986785 ,  15.88
Department of Health,Guys and St Thomas NHS Foundation Trust,24/03/2022,(81100) Dressings,(id:391417) Specialist Ambulatory Services,NHS SUPPLY CHAIN (MAIDSTONE),id:14970245 , 105.29
Department of Health,Guys and St Thomas NHS Foundation Trust,25/03/2022,(80010) Drug Costs,(id:42064) Specialist Ambulatory Services,CDP  PRINT MANAGEMENT,id:15036747   ,1140.00
Department of Health,Guys and St Thomas NHS Foundation Trust,30/03/2022,(89440) Research and Development,(id:42061) Specialist Ambulatory Services,GSTT PROCUREMENT CARD,id:15081478    ,5508.00
Department of Health,Guys and St Thomas NHS Foundation Trust,18/03/2022,(81100) Dressings,(id:42057) Specialist Ambulatory Services,NHS SUPPLY CHAIN (MAIDSTONE),id:14986785  , 189.89
Department of Health,Guys and St Thomas NHS Foundation Trust,11/03/2022,(84656) Establishment,(id:42057) Specialist Ambulatory Services,DICT8 LIMITED,id:15014314   ,1795.44
Department of Health,Guys and St Thomas NHS Foundation Trust,18/03/2022,(81700) Lab Equipment Purchase,(id:42057) Specialist Ambulatory Services,NHS SUPPLY CHAIN (MAIDSTONE),id:14986785    , 225.00
Department of Health,Guys and St Thomas NHS Foundation Trust,25/03/2022,(84500) Establishment,(id:42050) Specialist Ambulatory Services,CDP  PRINT MANAGEMENT,id:15011878,  12.40
Department of Health,Guys and St Thomas NHS Foundation Trust,24/03/2022,(81200) Medical Surgical Supplies & Equipment,(id:42050) Specialist Ambulatory Services,NHS SUPPLY CHAIN (MAIDSTONE),id:14970245    , 270.23
Department of Health,Guys and St Thomas NHS Foundation Trust,18/03/2022,(81275) Medical Surgical Supplies & Equipment,(id:42050) Specialist Ambulatory Services,NHS SUPPLY CHAIN (MAIDSTONE),id:14986785    , 136.03
Department of Health,Guys and St Thomas NHS Foundation Trust,24/03/2022,(82000) Provisions & Kitchens,(id:42050) Specialist Ambulatory Services,NHS SUPPLY CHAIN (MAIDSTONE),id:14970245,  12.40
Department of Health,Guys and St Thomas NHS Foundation Trust,04/03/2022,(53682) Pharmacists,(id:42165) Pharmacy,PRICEWATERHOUSECOOPERS LLP,id:14991175    ,1624.52
Department of Health,Guys and St Thomas NHS Foundation Trust,11/03/2022,(53660) Pharmacists,(id:818419) Pharmacy,KING'S COLLEGE HOSPITAL NHS FOUNDATION TRUST,id:14478934,    22876.00
Department of Health,Guys and St Thomas NHS Foundation Trust,22/03/2022,(53672) Pharmacists,(id:818419) Pharmacy,PRICEWATERHOUSECOOPERS LLP,id:15054245   , 781.86
Department of Health,Guys and St Thomas NHS Foundation Trust,18/03/2022,(84400) Transport,(id:4622421) Pharmacy,LLOYDS PHARMACY LTD,id:14988295 ,1941.33
Department of Health,Guys and St Thomas NHS Foundation Trust,18/03/2022,(84400) Transport,(id:4622421) Pharmacy,LLOYDS PHARMACY LTD,id:14988494 ,    41020.50
Department of Health,Guys and St Thomas NHS Foundation Trust,25/03/2022,(84400) Transport,(id:4622421) Pharmacy,LLOYDS PHARMACY LTD,id:14927875 , 678.02
Department of Health,Guys and St Thomas NHS Foundation Trust,30/03/2022,(89570) Other – Other Operating Expenditure,(id:42169) Pharmacy,GSTT PROCUREMENT CARD,id:15081478    , 749.99
Department of Health,Guys and St Thomas NHS Foundation Trust,18/03/2022,(83400) Office Equipment,(id:42152) Pharmacy,PHARMACEUTICAL PRESS:36390100,id:15034091 ,2222.44
Department of Health,Guys and St Thomas NHS Foundation Trust,04/03/2022,(83410) Office Equipment,(id:42152) Pharmacy,RICOH UK LTD,id:14972556   , 131.40
Department of Health,Guys and St Thomas NHS Foundation Trust,18/03/2022,(81200) Medical Surgical Supplies & Equipment,(id:42159) Pharmacy,SAMPLING SYSTEMS LIMITED,id:15036667,1251.98
Department of Health,Guys and St Thomas NHS Foundation Trust,24/03/2022,(81200) Medical Surgical Supplies & Equipment,(id:42159) Pharmacy,NHS SUPPLY CHAIN (MAIDSTONE),id:14970245 , 151.56
Department of Health,Guys and St Thomas NHS Foundation Trust,04/03/2022,(81200) Medical Surgical Supplies & Equipment,(id:42159) Pharmacy,NITRITEX LTD,id:14980702  ,3930.62
Department of Health,Guys and St Thomas NHS Foundation Trust,04/03/2022,(81200) Medical Surgical Supplies & Equipment,(id:42159) Pharmacy,RENACLINICAL LTD,id:14988337   ,7311.00
Department of Health,Guys and St Thomas NHS Foundation Trust,25/03/2022,(84400) Transport,(id:42159) Pharmacy,POLAR SPEED DISTRIBUTION LTD,id:14814376    , 452.02
Department of Health,Guys and St Thomas NHS Foundation Trust,04/03/2022,(55062) Admin & Clerical,(id:42159) Pharmacy,HYPER RECRUITMENT SOLUTIONS LTD,id:14989946    ,1364.86
Department of Health,Guys and St Thomas NHS Foundation Trust,04/03/2022,(55102) Admin & Clerical,(id:42159) Pharmacy,HYPER RECRUITMENT SOLUTIONS LTD,id:14990355    ,1991.26
Department of Health,Guys and St Thomas NHS Foundation Trust,04/03/2022,(55102) Admin & Clerical,(id:42159) Pharmacy,HYPER RECRUITMENT SOLUTIONS LTD,id:14990352    ,2025.00
Department of Health,Guys and St Thomas NHS Foundation Trust,25/03/2022,(55102) Admin & Clerical,(id:42159) Pharmacy,HYPER RECRUITMENT SOLUTIONS LTD,id:15058870    ,2362.50
Department of Health,Guys and St Thomas NHS Foundation Trust,11/03/2022,(55102) Admin & Clerical,(id:42159) Pharmacy,HYPER RECRUITMENT SOLUTIONS LTD,id:15018775    ,1958.40
Department of Health,Guys and St Thomas NHS Foundation Trust,04/03/2022,(55122) Admin & Clerical,(id:42159) Pharmacy,HYPER RECRUITMENT SOLUTIONS LTD,id:14972695    ,6816.00
Department of Health,Guys and St Thomas NHS Foundation Trust,18/03/2022,(55072) Admin & Clerical,(id:42159) Pharmacy,HYPER RECRUITMENT SOLUTIONS LTD,id:15018906    ,2025.00
Department of Health,Guys and St Thomas NHS Foundation Trust,18/03/2022,(81275) Medical Surgical Supplies & Equipment,(id:42159) Pharmacy,THERMO FISHER SCIENTIFIC,id:15019047, 767.70
Department of Health,Guys and St Thomas NHS Foundation Trust,24/03/2022,(81100) Dressings,(id:42159) Pharmacy,NHS SUPPLY CHAIN (MAIDSTONE),id:14970245    ,  12.01
Department of Health,Guys and St Thomas NHS Foundation Trust,18/03/2022,(81200) Medical Surgical Supplies & Equipment,(id:581409) Pharmacy,AMERCARE LTD,id:14980761 , 885.00
Department of Health,Guys and St Thomas NHS Foundation Trust,25/03/2022,(81200) Medical Surgical Supplies & Equipment,(id:581409) Pharmacy,NITRITEX LTD,id:15026101 ,1597.58
Department of Health,Guys and St Thomas NHS Foundation Trust,18/03/2022,(82600) Uniforms & Clothing,(id:581409) Pharmacy,NHS SUPPLY CHAIN (MAIDSTONE),id:14986785   , 168.00
Department of Health,Guys and St Thomas NHS Foundation Trust,18/03/2022,(83400) Office Equipment,(id:581409) Pharmacy,DURBIN PLC,id:15030776    , 560.04
Department of Health,Guys and St Thomas NHS Foundation Trust,18/03/2022,(83400) Office Equipment,(id:581409) Pharmacy,DURBIN PLC,id:14795298    ,2414.76
Department of Health,Guys and St Thomas NHS Foundation Trust,04/03/2022,(54052) Technical Officers,(id:581409) Pharmacy,PRICEWATERHOUSECOOPERS LLP,id:14991175 , 810.74
Department of Health,Guys and St Thomas NHS Foundation Trust,22/03/2022,(54052) Technical Officers,(id:581409) Pharmacy,PRICEWATERHOUSECOOPERS LLP,id:15054615 , 830.51
Department of Health,Guys and St Thomas NHS Foundation Trust,04/03/2022,(83130) Energy Costs,(id:42154) Pharmacy,BOC LTD :02107500,id:14985733  ,    35787.87
Department of Health,Guys and St Thomas NHS Foundation Trust,04/03/2022,(83410) Office Equipment,(id:42156) Pharmacy,RICOH UK LTD,id:14972556   , 252.00
Department of Health,Guys and St Thomas NHS Foundation Trust,22/03/2022,(51822) Physiotherapists,(id:42156) Pharmacy,PRICEWATERHOUSECOOPERS LLP,id:15054245    ,1824.99
Department of Health,Guys and St Thomas NHS Foundation Trust,22/03/2022,(53632) Pharmacists,(id:42156) Pharmacy,PRICEWATERHOUSECOOPERS LLP,id:15054245    , 628.77
Department of Health,Guys and St Thomas NHS Foundation Trust,25/03/2022,(84500) Establishment,(id:42160) Pharmacy,CDP  PRINT MANAGEMENT,id:15011876  ,  37.20
Department of Health,Guys and St Thomas NHS Foundation Trust,30/03/2022,(53632) Pharmacists,(id:42160) Pharmacy,PRICEWATERHOUSECOOPERS LLP,id:15078884    , 844.69
Department of Health,Guys and St Thomas NHS Foundation Trust,11/03/2022,(83420) Office Equipment,(id:478416) Medical Specialties,TWOFOLD LIMITED,id:14127254   , 547.67
Department of Health,Guys and St Thomas NHS Foundation Trust,18/03/2022,(84655) Establishment,(id:478416) Medical Specialties,SIGNIFICAN'T(UK) LTD (INTERPRETER NOW),id:14670575   ,1420.00
Department of Health,Guys and St Thomas NHS Foundation Trust,18/03/2022,(84655) Establishment,(id:478416) Medical Specialties,CLARION INTERPRETING LIMITED,id:15033879   ,8751.25
Department of Health,Guys and St Thomas NHS Foundation Trust,11/03/2022,(84655) Establishment,(id:478416) Medical Specialties,LANGUAGE CONNECT,id:15015519,3636.75
Department of Health,Guys and St Thomas NHS Foundation Trust,24/03/2022,(82000) Provisions & Kitchens,(id:42217) Medical Specialties,NHS SUPPLY CHAIN (MAIDSTONE),id:14966960 ,  65.93
Department of Health,Guys and St Thomas NHS Foundation Trust,24/03/2022,(83400) Office Equipment,(id:42217) Medical Specialties,NHS SUPPLY CHAIN (MAIDSTONE),id:14970245 ,  16.99
Department of Health,Guys and St Thomas NHS Foundation Trust,24/03/2022,(81100) Dressings,(id:42217) Medical Specialties,NHS SUPPLY CHAIN (MAIDSTONE),id:14966960   , 490.54
Department of Health,Guys and St Thomas NHS Foundation Trust,04/03/2022,(50552) Qualified Nursing Staff,(id:42217) Medical Specialties,CONTINENTAL NURSE LTD,id:14989850 ,2075.25
Department of Health,Guys and St Thomas NHS Foundation Trust,18/03/2022,(81700) Lab Equipment Purchase,(id:42217) Medical Specialties,NHS SUPPLY CHAIN (MAIDSTONE),id:14986785,  53.40
Department of Health,Guys and St Thomas NHS Foundation Trust,25/03/2022,(84500) Establishment,(id:42251) Medical Specialties,CDP  PRINT MANAGEMENT,id:15011876 ,  25.60
Department of Health,Guys and St Thomas NHS Foundation Trust,30/03/2022,(51262) Dieticians,(id:42251) Medical Specialties,PRICEWATERHOUSECOOPERS LLP,id:15078884    ,2914.16
Department of Health,Guys and St Thomas NHS Foundation Trust,24/03/2022,(81200) Medical Surgical Supplies & Equipment,(id:42251) Medical Specialties,NHS SUPPLY CHAIN (MAIDSTONE),id:14970245,  49.14
Department of Health,Guys and St Thomas NHS Foundation Trust,18/03/2022,(83765) Rent,(id:42224) Medical Specialties,COMMUNITY HEALTH PARTNERSHIPS,id:15030935  ,1628.18
Department of Health,Guys and St Thomas NHS Foundation Trust,18/03/2022,(83755) Rental under Operating Lease,(id:42224) Medical Specialties,COMMUNITY HEALTH PARTNERSHIPS,id:15030923   ,2219.88
Department of Health,Guys and St Thomas NHS Foundation Trust,18/03/2022,(83755) Rental under Operating Lease,(id:42224) Medical Specialties,COMMUNITY HEALTH PARTNERSHIPS,id:15030925   ,2884.39
Department of Health,Guys and St Thomas NHS Foundation Trust,18/03/2022,(83755) Rental under Operating Lease,(id:42224) Medical Specialties,COMMUNITY HEALTH PARTNERSHIPS,id:15030926   ,2884.39
Department of Health,Guys and St Thomas NHS Foundation Trust,18/03/2022,(83755) Rental under Operating Lease,(id:42224) Medical Specialties,COMMUNITY HEALTH PARTNERSHIPS,id:15030878   ,8636.89
Department of Health,Guys and St Thomas NHS Foundation Trust,18/03/2022,(81200) Medical Surgical Supplies & Equipment,(id:42221) Medical Specialties,ALCON EYE CARE UK LIMITED,id:15007654   ,3024.00
Department of Health,Guys and St Thomas NHS Foundation Trust,04/03/2022,(81200) Medical Surgical Supplies & Equipment,(id:42221) Medical Specialties,DORC LTD,id:14959214,1020.00
Department of Health,Guys and St Thomas NHS Foundation Trust,04/03/2022,(81200) Medical Surgical Supplies & Equipment,(id:42221) Medical Specialties,ALCON EYE CARE UK LIMITED,id:14987482   ,1843.20
Department of Health,Guys and St Thomas NHS Foundation Trust,25/03/2022,(81200) Medical Surgical Supplies & Equipment,(id:42221) Medical Specialties,ALTOMED LTD,id:15038481  , 680.16
Department of Health,Guys and St Thomas NHS Foundation Trust,24/03/2022,(82600) Uniforms & Clothing,(id:42221) Medical Specialties,NHS SUPPLY CHAIN (MAIDSTONE),id:14970245   ,  35.70
Department of Health,Guys and St Thomas NHS Foundation Trust,04/03/2022,(83500) Furniture & Fittings,(id:42223) Medical Specialties,NHS SUPPLY CHAIN (MAIDSTONE),id:14891794  , 109.80
Department of Health,Guys and St Thomas NHS Foundation Trust,11/03/2022,(81200) Medical Surgical Supplies & Equipment,(id:42223) Medical Specialties,TPS HEALTHCARE GROUP,id:15014142   , 574.02
Department of Health,Guys and St Thomas NHS Foundation Trust,04/03/2022,(81200) Medical Surgical Supplies & Equipment,(id:42223) Medical Specialties,ALCON EYE CARE UK LIMITED,id:14966139   , 568.76
Department of Health,Guys and St Thomas NHS Foundation Trust,04/03/2022,(89600) Non-Healthcare from other NHS bodies,(id:42223) Medical Specialties,NHS BLOOD AND TRANSPLANT,id:14983036, 934.16
Department of Health,Guys and St Thomas NHS Foundation Trust,04/03/2022,(89600) Non-Healthcare from other NHS bodies,(id:42223) Medical Specialties,NHS BLOOD AND TRANSPLANT,id:14970526,1353.72
Department of Health,Guys and St Thomas NHS Foundation Trust,11/03/2022,(89600) Non-Healthcare from other NHS bodies,(id:42223) Medical Specialties,NHS BLOOD AND TRANSPLANT,id:14982949,1353.72
Department of Health,Guys and St Thomas NHS Foundation Trust,04/03/2022,(82000) Provisions & Kitchens,(id:42223) Medical Specialties,NHS SUPPLY CHAIN (MAIDSTONE),id:14891794 ,  15.60
Department of Health,Guys and St Thomas NHS Foundation Trust,04/03/2022,(81200) Medical Surgical Supplies & Equipment,(id:42208) Medical Specialties,DEXCOM INTERNATIONAL LTD,id:14928581    , 600.00
Department of Health,Guys and St Thomas NHS Foundation Trust,04/03/2022,(81200) Medical Surgical Supplies & Equipment,(id:42208) Medical Specialties,DEXCOM INTERNATIONAL LTD,id:14928585    , 600.00
Department of Health,Guys and St Thomas NHS Foundation Trust,04/03/2022,(81200) Medical Surgical Supplies & Equipment,(id:42208) Medical Specialties,INSULET INTERNATIONAL LTD,id:14992674   ,    -2842.56
Department of Health,Guys and St Thomas NHS Foundation Trust,25/03/2022,(81200) Medical Surgical Supplies & Equipment,(id:42208) Medical Specialties,MEDTRONIC LTD,id:15061438, 567.00
Department of Health,Guys and St Thomas NHS Foundation Trust,25/03/2022,(81200) Medical Surgical Supplies & Equipment,(id:42208) Medical Specialties,MEDTRONIC LTD,id:14988079, 567.00
Department of Health,Guys and St Thomas NHS Foundation Trust,25/03/2022,(81200) Medical Surgical Supplies & Equipment,(id:42208) Medical Specialties,MEDTRONIC LTD,id:14930372, 567.00
Department of Health,Guys and St Thomas NHS Foundation Trust,25/03/2022,(81200) Medical Surgical Supplies & Equipment,(id:42208) Medical Specialties,MEDTRONIC LTD,id:14807003, 567.00
Department of Health,Guys and St Thomas NHS Foundation Trust,25/03/2022,(81200) Medical Surgical Supplies & Equipment,(id:42208) Medical Specialties,MEDTRONIC LTD,id:14827626,1261.26
Department of Health,Guys and St Thomas NHS Foundation Trust,25/03/2022,(81200) Medical Surgical Supplies & Equipment,(id:42208) Medical Specialties,MEDTRONIC LTD,id:14935423, 948.30
Department of Health,Guys and St Thomas NHS Foundation Trust,25/03/2022,(81200) Medical Surgical Supplies & Equipment,(id:42208) Medical Specialties,MEDTRONIC LTD,id:14935422, 539.33
Department of Health,Guys and St Thomas NHS Foundation Trust,25/03/2022,(81200) Medical Surgical Supplies & Equipment,(id:42208) Medical Specialties,MEDTRONIC LTD,id:14967278, 524.64
Department of Health,Guys and St Thomas NHS Foundation Trust,25/03/2022,(81200) Medical Surgical Supplies & Equipment,(id:42208) Medical Specialties,DEXCOM INTERNATIONAL LTD,id:15052781    , 600.00
Department of Health,Guys and St Thomas NHS Foundation Trust,25/03/2022,(81200) Medical Surgical Supplies & Equipment,(id:42208) Medical Specialties,DEXCOM INTERNATIONAL LTD,id:15052834    , 600.00
Department of Health,Guys and St Thomas NHS Foundation Trust,25/03/2022,(81200) Medical Surgical Supplies & Equipment,(id:42208) Medical Specialties,DEXCOM INTERNATIONAL LTD,id:15055116    , 600.00
Department of Health,Guys and St Thomas NHS Foundation Trust,25/03/2022,(81200) Medical Surgical Supplies & Equipment,(id:42208) Medical Specialties,DEXCOM INTERNATIONAL LTD,id:14986861    , 600.00
Department of Health,Guys and St Thomas NHS Foundation Trust,25/03/2022,(81200) Medical Surgical Supplies & Equipment,(id:42208) Medical Specialties,DEXCOM INTERNATIONAL LTD,id:15018117    , 600.00
Department of Health,Guys and St Thomas NHS Foundation Trust,25/03/2022,(81200) Medical Surgical Supplies & Equipment,(id:42208) Medical Specialties,DEXCOM INTERNATIONAL LTD,id:15018139    , 600.00
Department of Health,Guys and St Thomas NHS Foundation Trust,25/03/2022,(81200) Medical Surgical Supplies & Equipment,(id:42208) Medical Specialties,DEXCOM INTERNATIONAL LTD,id:15053004    , 600.00
Department of Health,Guys and St Thomas NHS Foundation Trust,25/03/2022,(81200) Medical Surgical Supplies & Equipment,(id:42208) Medical Specialties,DEXCOM INTERNATIONAL LTD,id:15054956    , 600.00
Department of Health,Guys and St Thomas NHS Foundation Trust,25/03/2022,(81200) Medical Surgical Supplies & Equipment,(id:42208) Medical Specialties,MEDTRONIC LTD,id:14832967, 600.00
Department of Health,Guys and St Thomas NHS Foundation Trust,25/03/2022,(81200) Medical Surgical Supplies & Equipment,(id:42208) Medical Specialties,DEXCOM INTERNATIONAL LTD,id:15054957    , 600.00
Department of Health,Guys and St Thomas NHS Foundation Trust,25/03/2022,(81200) Medical Surgical Supplies & Equipment,(id:42208) Medical Specialties,DEXCOM INTERNATIONAL LTD,id:14982860    , 600.00
Department of Health,Guys and St Thomas NHS Foundation Trust,25/03/2022,(81200) Medical Surgical Supplies & Equipment,(id:42208) Medical Specialties,DEXCOM INTERNATIONAL LTD,id:14991500    , 600.00
Department of Health,Guys and St Thomas NHS Foundation Trust,25/03/2022,(81200) Medical Surgical Supplies & Equipment,(id:42208) Medical Specialties,DEXCOM INTERNATIONAL LTD,id:15053114    , 600.00
Department of Health,Guys and St Thomas NHS Foundation Trust,25/03/2022,(81200) Medical Surgical Supplies & Equipment,(id:42208) Medical Specialties,DEXCOM INTERNATIONAL LTD,id:15053134    , 600.00
Department of Health,Guys and St Thomas NHS Foundation Trust,25/03/2022,(81200) Medical Surgical Supplies & Equipment,(id:42208) Medical Specialties,MEDTRONIC LTD,id:14853561, 761.47
Department of Health,Guys and St Thomas NHS Foundation Trust,25/03/2022,(81200) Medical Surgical Supplies & Equipment,(id:42208) Medical Specialties,MEDTRONIC LTD,id:14930371, 850.50
Department of Health,Guys and St Thomas NHS Foundation Trust,25/03/2022,(81200) Medical Surgical Supplies & Equipment,(id:42208) Medical Specialties,MEDTRONIC LTD,id:14908270, 850.50
Department of Health,Guys and St Thomas NHS Foundation Trust,25/03/2022,(81200) Medical Surgical Supplies & Equipment,(id:42208) Medical Specialties,MEDTRONIC LTD,id:14984519, 850.50
Department of Health,Guys and St Thomas NHS Foundation Trust,25/03/2022,(81200) Medical Surgical Supplies & Equipment,(id:42208) Medical Specialties,INSULET INTERNATIONAL LTD,id:15004074   , 712.08
Department of Health,Guys and St Thomas NHS Foundation Trust,25/03/2022,(81200) Medical Surgical Supplies & Equipment,(id:42208) Medical Specialties,INSULET INTERNATIONAL LTD,id:15056631   , 712.08
Department of Health,Guys and St Thomas NHS Foundation Trust,25/03/2022,(81400) Medical Surgical Supplies & Equipment,(id:42208) Medical Specialties,SECA LTD,id:15058483, 809.76
Department of Health,Guys and St Thomas NHS Foundation Trust,24/03/2022,(81700) Lab Equipment Purchase,(id:42208) Medical Specialties,NHS SUPPLY CHAIN (MAIDSTONE),id:14966960, 301.08
Department of Health,Guys and St Thomas NHS Foundation Trust,25/03/2022,(84500) Establishment,(id:42213) Medical Specialties,CDP  PRINT MANAGEMENT,id:15011877 ,   6.20
Department of Health,Guys and St Thomas NHS Foundation Trust,18/03/2022,(82800) Bedding & Linen,(id:42213) Medical Specialties,NHS SUPPLY CHAIN (MAIDSTONE),id:14986785  ,  64.73
Department of Health,Guys and St Thomas NHS Foundation Trust,25/03/2022,(81400) Medical Surgical Supplies & Equipment,(id:42213) Medical Specialties,SECA LTD,id:15058480,1079.68
Department of Health,Guys and St Thomas NHS Foundation Trust,04/03/2022,(81000) Surgical Appliances,(id:42213) Medical Specialties,TALAR MADE ORTHOTICS LTD,id:14984401  ,   8.24
Department of Health,Guys and St Thomas NHS Foundation Trust,04/03/2022,(81000) Surgical Appliances,(id:42213) Medical Specialties,TALAR MADE ORTHOTICS LTD,id:14986957  ,  43.65
Department of Health,Guys and St Thomas NHS Foundation Trust,11/03/2022,(50200) Consultants,(id:42213) Medical Specialties,KING'S COLLEGE HOSPITAL NHS FOUNDATION TRUST,id:14444237,2385.68
Department of Health,Guys and St Thomas NHS Foundation Trust,11/03/2022,(50200) Consultants,(id:42213) Medical Specialties,KING'S COLLEGE HOSPITAL NHS FOUNDATION TRUST,id:14478917,2385.69
Department of Health,Guys and St Thomas NHS Foundation Trust,04/03/2022,(81000) Surgical Appliances,(id:42199) Medical Specialties,TALAR MADE ORTHOTICS LTD,id:14986995  , 570.00
Department of Health,Guys and St Thomas NHS Foundation Trust,11/03/2022,(80010) Drug Costs,(id:42204) Medical Specialties,THE LONDON UPRIGHT MRI CENTRE:70838400,id:15003934  , 575.00
Department of Health,Guys and St Thomas NHS Foundation Trust,18/03/2022,(81200) Medical Surgical Supplies & Equipment,(id:42205) Medical Specialties,NHS SUPPLY CHAIN (MAIDSTONE),id:14986785, 180.00
Department of Health,Guys and St Thomas NHS Foundation Trust,18/03/2022,(84501) Establishment,(id:4590420) Medical Specialties,CLEAR MEDIA SOLUTIONS LTD TRADING AS CLEARPRINT SOLUTIONS,id:15030743   ,1995.00
Department of Health,Guys and St Thomas NHS Foundation Trust,25/03/2022,(84500) Establishment,(id:41937) Medical Specialties,CDP  PRINT MANAGEMENT,id:15011875 ,   6.20
Department of Health,Guys and St Thomas NHS Foundation Trust,11/03/2022,(81200) Medical Surgical Supplies & Equipment,(id:41937) Medical Specialties,TPS HEALTHCARE GROUP,id:15014147   , 780.00
Department of Health,Guys and St Thomas NHS Foundation Trust,04/03/2022,(81200) Medical Surgical Supplies & Equipment,(id:41937) Medical Specialties,TPS HEALTHCARE GROUP,id:14965554   ,-804.00
Department of Health,Guys and St Thomas NHS Foundation Trust,18/03/2022,(81200) Medical Surgical Supplies & Equipment,(id:41937) Medical Specialties,MED FIT UK LTD,id:15027541    ,2988.60
Department of Health,Guys and St Thomas NHS Foundation Trust,18/03/2022,(81300) Medical Surgical Supplies & Equipment,(id:41937) Medical Specialties,ENEURA (UK) LTD,id:15030477   ,1612.00
Department of Health,Guys and St Thomas NHS Foundation Trust,04/03/2022,(52062) Radiographers,(id:41937) Medical Specialties,PRICEWATERHOUSECOOPERS LLP,id:14991175 ,1257.12
Department of Health,Guys and St Thomas NHS Foundation Trust,11/03/2022,(50200) Consultants,(id:41937) Medical Specialties,KINGS COLLEGE LONDON:03529700,id:14973315,3604.27
Department of Health,Guys and St Thomas NHS Foundation Trust,18/03/2022,(82700) Uniforms & Clothing,(id:41937) Medical Specialties,NHS SUPPLY CHAIN (MAIDSTONE),id:14986785   , 105.94
Department of Health,Guys and St Thomas NHS Foundation Trust,25/03/2022,(84500) Establishment,(id:42232) Therapies and Rehabilitation,CDP  PRINT MANAGEMENT,id:15011878  ,  43.20
Department of Health,Guys and St Thomas NHS Foundation Trust,04/03/2022,(83500) Furniture & Fittings,(id:42230) Therapies and Rehabilitation,BACK CARE SOLUTIONS LTD,id:14966976   , 946.20
Department of Health,Guys and St Thomas NHS Foundation Trust,25/03/2022,(84500) Establishment,(id:42237) Therapies and Rehabilitation,CDP  PRINT MANAGEMENT,id:15011876  ,  13.90
Department of Health,Guys and St Thomas NHS Foundation Trust,18/03/2022,(81100) Dressings,(id:42239) Therapies and Rehabilitation,NHS SUPPLY CHAIN (MAIDSTONE),id:14986785    , 506.86
Department of Health,Guys and St Thomas NHS Foundation Trust,04/03/2022,(81225) Medical Surgical Supplies & Equipment,(id:42239) Therapies and Rehabilitation,NHS SUPPLY CHAIN (MAIDSTONE),id:14891794 , 157.20
Department of Health,Guys and St Thomas NHS Foundation Trust,24/03/2022,(81200) Medical Surgical Supplies & Equipment,(id:42239) Therapies and Rehabilitation,NHS SUPPLY CHAIN (MAIDSTONE),id:14970245 , 304.10
Department of Health,Guys and St Thomas NHS Foundation Trust,04/03/2022,(83400) Office Equipment,(id:42240) Therapies and Rehabilitation,NHS SUPPLY CHAIN (MAIDSTONE),id:14891794  ,  39.74
Department of Health,Guys and St Thomas NHS Foundation Trust,04/03/2022,(51462) Occupational Therapists,(id:42240) Therapies and Rehabilitation,PRICEWATERHOUSECOOPERS LLP,id:14991175  , 844.82
Department of Health,Guys and St Thomas NHS Foundation Trust,24/03/2022,(81225) Medical Surgical Supplies & Equipment,(id:590530) Therapies and Rehabilitation,NHS SUPPLY CHAIN (MAIDSTONE),id:14970245,  86.40
Department of Health,Guys and St Thomas NHS Foundation Trust,22/03/2022,(51062) Chiropodists,(id:590490) Therapies and Rehabilitation,PRICEWATERHOUSECOOPERS LLP,id:15054354  , 732.54
Department of Health,Guys and St Thomas NHS Foundation Trust,04/03/2022,(84520) Establishment,(id:590496) Therapies and Rehabilitation,PITNEY BOWES LTD,id:14809594 ,2683.61
Department of Health,Guys and St Thomas NHS Foundation Trust,04/03/2022,(89000) Other - Training courses and conferences,(id:590496) Therapies and Rehabilitation,LIGHTHOUSE SAFETY TRAINING LTD,id:14987174, 795.30
Department of Health,Guys and St Thomas NHS Foundation Trust,18/03/2022,(81225) Medical Surgical Supplies & Equipment,(id:590498) Therapies and Rehabilitation,JANE SAUNDERS & MANNING LTD,id:15023734 , 504.37
Department of Health,Guys and St Thomas NHS Foundation Trust,18/03/2022,(81225) Medical Surgical Supplies & Equipment,(id:590498) Therapies and Rehabilitation,JANE SAUNDERS & MANNING LTD,id:15023974 , 581.11
Department of Health,Guys and St Thomas NHS Foundation Trust,18/03/2022,(81225) Medical Surgical Supplies & Equipment,(id:590498) Therapies and Rehabilitation,MEDI UK LTD,id:15026299  , 595.13
Department of Health,Guys and St Thomas NHS Foundation Trust,18/03/2022,(81225) Medical Surgical Supplies & Equipment,(id:590498) Therapies and Rehabilitation,JANE SAUNDERS & MANNING LTD,id:15026639 , 660.99
Department of Health,Guys and St Thomas NHS Foundation Trust,18/03/2022,(81225) Medical Surgical Supplies & Equipment,(id:590498) Therapies and Rehabilitation,JANE SAUNDERS & MANNING LTD,id:15023714 , 915.85
Department of Health,Guys and St Thomas NHS Foundation Trust,18/03/2022,(81225) Medical Surgical Supplies & Equipment,(id:590498) Therapies and Rehabilitation,THUASNE UK LTD,id:15012054    , 996.00
Department of Health,Guys and St Thomas NHS Foundation Trust,18/03/2022,(81225) Medical Surgical Supplies & Equipment,(id:590498) Therapies and Rehabilitation,THUASNE UK LTD,id:15026748    ,5094.00
Department of Health,Guys and St Thomas NHS Foundation Trust,18/03/2022,(89595) Non-Healthcare from Foundation Trusts,(id:590498) Therapies and Rehabilitation,KENT COMMUNITY HEALTH NHS FOUNDATION TRUST,id:14981562 ,4110.17
Department of Health,Guys and St Thomas NHS Foundation Trust,25/03/2022,(84500) Establishment,(id:590525) Therapies and Rehabilitation,CDP  PRINT MANAGEMENT,id:15011875 ,   3.60
Department of Health,Guys and St Thomas NHS Foundation Trust,24/03/2022,(81225) Medical Surgical Supplies & Equipment,(id:1042419) Therapies and Rehabilitation,NHS SUPPLY CHAIN (MAIDSTONE),id:14966960    , 600.23
Department of Health,Guys and St Thomas NHS Foundation Trust,25/03/2022,(81700) Lab Equipment Purchase,(id:4492419) Clinical Imaging & Med Physics,CAMLAB LTD,id:15051554, 613.03
Department of Health,Guys and St Thomas NHS Foundation Trust,04/03/2022,(82800) Bedding & Linen,(id:42366) Clinical Imaging & Med Physics,NHS SUPPLY CHAIN (MAIDSTONE),id:14891794 , 150.95
Department of Health,Guys and St Thomas NHS Foundation Trust,24/03/2022,(81200) Medical Surgical Supplies & Equipment,(id:42366) Clinical Imaging & Med Physics,NHS SUPPLY CHAIN (MAIDSTONE),id:14966960    ,1291.79
Department of Health,Guys and St Thomas NHS Foundation Trust,04/03/2022,(83410) Office Equipment,(id:42366) Clinical Imaging & Med Physics,RICOH UK LTD,id:14972484 ,  41.93
Department of Health,Guys and St Thomas NHS Foundation Trust,04/03/2022,(83410) Office Equipment,(id:42366) Clinical Imaging & Med Physics,RICOH UK LTD,id:14972556 , 133.67
Department of Health,Guys and St Thomas NHS Foundation Trust,24/03/2022,(83400) Office Equipment,(id:42366) Clinical Imaging & Med Physics,NHS SUPPLY CHAIN (MAIDSTONE),id:14970245, 312.92
Department of Health,Guys and St Thomas NHS Foundation Trust,24/03/2022,(81225) Medical Surgical Supplies & Equipment,(id:42366) Clinical Imaging & Med Physics,NHS SUPPLY CHAIN (MAIDSTONE),id:14966960    , 166.32
Department of Health,Guys and St Thomas NHS Foundation Trust,04/03/2022,(82000) Provisions & Kitchens,(id:42367) Clinical Imaging & Med Physics,NHS SUPPLY CHAIN (MAIDSTONE),id:14891794,  40.30
Department of Health,Guys and St Thomas NHS Foundation Trust,24/03/2022,(82000) Provisions & Kitchens,(id:42367) Clinical Imaging & Med Physics,NHS SUPPLY CHAIN (MAIDSTONE),id:14970245, 144.18
Department of Health,Guys and St Thomas NHS Foundation Trust,04/03/2022,(81200) Medical Surgical Supplies & Equipment,(id:42367) Clinical Imaging & Med Physics,VYGON (UK) LTD,id:14926403   ,1341.36
Department of Health,Guys and St Thomas NHS Foundation Trust,25/03/2022,(81200) Medical Surgical Supplies & Equipment,(id:42367) Clinical Imaging & Med Physics,BOSTON SCIENTIFIC LTD,id:14994622 , 616.80
Department of Health,Guys and St Thomas NHS Foundation Trust,25/03/2022,(81200) Medical Surgical Supplies & Equipment,(id:42367) Clinical Imaging & Med Physics,VASCULAR PERSPECTIVES LTD,id:15056571  , 570.00
Department of Health,Guys and St Thomas NHS Foundation Trust,30/03/2022,(81235) Medical Surgical Supplies & Equipment,(id:42367) Clinical Imaging & Med Physics,MEDALLIANCE S.A.,id:15027327 , 790.00
Department of Health,Guys and St Thomas NHS Foundation Trust,18/03/2022,(81230) Medical Surgical Supplies & Equipment,(id:42367) Clinical Imaging & Med Physics,NHS SUPPLY CHAIN (MAIDSTONE),id:14986785    ,1027.08
Department of Health,Guys and St Thomas NHS Foundation Trust,24/03/2022,(81230) Medical Surgical Supplies & Equipment,(id:42367) Clinical Imaging & Med Physics,NHS SUPPLY CHAIN (MAIDSTONE),id:14966960    ,5294.56
Department of Health,Guys and St Thomas NHS Foundation Trust,24/03/2022,(81225) Medical Surgical Supplies & Equipment,(id:42367) Clinical Imaging & Med Physics,NHS SUPPLY CHAIN (MAIDSTONE),id:14966960    , 121.46
Department of Health,Guys and St Thomas NHS Foundation Trust,24/03/2022,(81700) Lab Equipment Purchase,(id:42367) Clinical Imaging & Med Physics,NHS SUPPLY CHAIN (MAIDSTONE),id:14970245    ,   6.24
Department of Health,Guys and St Thomas NHS Foundation Trust,22/03/2022,(52062) Radiographers,(id:42368) Clinical Imaging & Med Physics,PRICEWATERHOUSECOOPERS LLP,id:15054615,7964.66
Department of Health,Guys and St Thomas NHS Foundation Trust,22/03/2022,(50202) Consultants,(id:42368) Clinical Imaging & Med Physics,PRICEWATERHOUSECOOPERS LLP,id:15054245  ,9151.62
Department of Health,Guys and St Thomas NHS Foundation Trust,25/03/2022,(83400) Office Equipment,(id:42372) Clinical Imaging & Med Physics,BAYER PLC,id:15035237    ,2112.00
Department of Health,Guys and St Thomas NHS Foundation Trust,04/03/2022,(83400) Office Equipment,(id:42372) Clinical Imaging & Med Physics,BAYER PLC,id:14986756    ,2112.00
Department of Health,Guys and St Thomas NHS Foundation Trust,24/03/2022,(83400) Office Equipment,(id:42372) Clinical Imaging & Med Physics,NHS SUPPLY CHAIN (MAIDSTONE),id:14966960,  15.48
Department of Health,Guys and St Thomas NHS Foundation Trust,11/03/2022,(50203) Consultants,(id:42372) Clinical Imaging & Med Physics,KINGS COLLEGE LONDON:03529700,id:14973255    ,7951.49
Department of Health,Guys and St Thomas NHS Foundation Trust,18/03/2022,(81500) X Ray Equipment Purchase,(id:42372) Clinical Imaging & Med Physics,ADELPHI (TUBES) LTD,id:15030230 ,7074.12
Department of Health,Guys and St Thomas NHS Foundation Trust,25/03/2022,(81500) X Ray Equipment Purchase,(id:42372) Clinical Imaging & Med Physics,CURIUM PHARMA UK LTD,id:14830984,1050.00
Department of Health,Guys and St Thomas NHS Foundation Trust,25/03/2022,(81500) X Ray Equipment Purchase,(id:42372) Clinical Imaging & Med Physics,CURIUM PHARMA UK LTD,id:14986674,1875.60
Department of Health,Guys and St Thomas NHS Foundation Trust,18/03/2022,(83500) Furniture & Fittings,(id:42373) Clinical Imaging & Med Physics,BACK CARE SOLUTIONS LTD,id:15019370 , 840.84
Department of Health,Guys and St Thomas NHS Foundation Trust,11/03/2022,(83610) IT Costs,(id:42373) Clinical Imaging & Med Physics,INSTALLATION TECHNOLOGY LTD,id:15013846    ,6244.00
Department of Health,Guys and St Thomas NHS Foundation Trust,11/03/2022,(81400) Medical Surgical Supplies & Equipment,(id:42379) Clinical Imaging & Med Physics,MEDACX LIMITED,id:15007254   ,1082.30
Department of Health,Guys and St Thomas NHS Foundation Trust,25/03/2022,(81400) Medical Surgical Supplies & Equipment,(id:42379) Clinical Imaging & Med Physics,SEAWARD ELECTRONICS LTD,id:15019694    ,3329.00
Department of Health,Guys and St Thomas NHS Foundation Trust,25/03/2022,(81400) Medical Surgical Supplies & Equipment,(id:42379) Clinical Imaging & Med Physics,TENACORE UK LTD,id:14987471  ,1975.00
Department of Health,Guys and St Thomas NHS Foundation Trust,25/03/2022,(81400) Medical Surgical Supplies & Equipment,(id:42379) Clinical Imaging & Med Physics,SECA LTD,id:15058337    ,5790.90
Department of Health,Guys and St Thomas NHS Foundation Trust,04/03/2022,(81200) Medical Surgical Supplies & Equipment,(id:42379) Clinical Imaging & Med Physics,HAMILTON MEDICAL UK (A DIVISION OF HAMILTON SALES & SERVICE UK LTD),id:14963328, 624.00
Department of Health,Guys and St Thomas NHS Foundation Trust,25/03/2022,(81200) Medical Surgical Supplies & Equipment,(id:42379) Clinical Imaging & Med Physics,ULTRASOUND TECHNOLOGIES LTD,id:14963155,  15.60
Department of Health,Guys and St Thomas NHS Foundation Trust,25/03/2022,(81200) Medical Surgical Supplies & Equipment,(id:42379) Clinical Imaging & Med Physics,TENACORE UK LTD,id:15027415  ,  24.00
Department of Health,Guys and St Thomas NHS Foundation Trust,18/03/2022,(81200) Medical Surgical Supplies & Equipment,(id:1348419) Clinical Imaging & Med Physics,NHS SUPPLY CHAIN (MAIDSTONE),id:14986785  ,9567.36
Department of Health,Guys and St Thomas NHS Foundation Trust,30/03/2022,(81235) Medical Surgical Supplies & Equipment,(id:1348419) Clinical Imaging & Med Physics,MEDALLIANCE S.A.,id:15027580    ,2370.00
Department of Health,Guys and St Thomas NHS Foundation Trust,04/03/2022,(83410) Office Equipment,(id:662460) Integrated Local Services,RICOH UK LTD,id:14972556,  48.52
Department of Health,Guys and St Thomas NHS Foundation Trust,25/03/2022,(84500) Establishment,(id:42255) Integrated Local Services,CDP  PRINT MANAGEMENT,id:15011877,  21.70
Department of Health,Guys and St Thomas NHS Foundation Trust,25/03/2022,(84500) Establishment,(id:42255) Integrated Local Services,CDP  PRINT MANAGEMENT,id:15011876,   9.30
Department of Health,Guys and St Thomas NHS Foundation Trust,18/03/2022,(81200) Medical Surgical Supplies & Equipment,(id:42255) Integrated Local Services,NHS SUPPLY CHAIN (MAIDSTONE),id:14986785    ,  86.20
Department of Health,Guys and St Thomas NHS Foundation Trust,24/03/2022,(81200) Medical Surgical Supplies & Equipment,(id:42255) Integrated Local Services,NHS SUPPLY CHAIN (MAIDSTONE),id:14966960    , 151.64
Department of Health,Guys and St Thomas NHS Foundation Trust,04/03/2022,(83410) Office Equipment,(id:590598) Integrated Local Services,RICOH UK LTD,id:14972556, 602.30
Department of Health,Guys and St Thomas NHS Foundation Trust,25/03/2022,(81200) Medical Surgical Supplies & Equipment,(id:590597) Integrated Local Services,ARJO UK LIMITED,id:14980680 ,1488.00
Department of Health,Guys and St Thomas NHS Foundation Trust,25/03/2022,(81200) Medical Surgical Supplies & Equipment,(id:590597) Integrated Local Services,1ST CALL MOBILITY LTD,id:14964822,    -1242.00
Department of Health,Guys and St Thomas NHS Foundation Trust,18/03/2022,(82800) Bedding & Linen,(id:590469) Integrated Local Services,NHS SUPPLY CHAIN (MAIDSTONE),id:14986785,  11.76
Department of Health,Guys and St Thomas NHS Foundation Trust,24/03/2022,(83400) Office Equipment,(id:590469) Integrated Local Services,NHS SUPPLY CHAIN (MAIDSTONE),id:14970245    ,  47.46
Department of Health,Guys and St Thomas NHS Foundation Trust,24/03/2022,(83400) Office Equipment,(id:590469) Integrated Local Services,NHS SUPPLY CHAIN (MAIDSTONE),id:14966960    ,  54.00
Department of Health,Guys and St Thomas NHS Foundation Trust,25/03/2022,(50200) Consultants,(id:590469) Integrated Local Services,RICOH UK LTD,id:15062176,2230.40
Department of Health,Guys and St Thomas NHS Foundation Trust,25/03/2022,(83400) Office Equipment,(id:590466) Integrated Local Services,ROBLETT ELECTRICAL SUPPLIES LTD,id:15051938 , 512.40
Department of Health,Guys and St Thomas NHS Foundation Trust,04/03/2022,(83410) Office Equipment,(id:590432) Integrated Local Services,RICOH UK LTD,id:14972556, 133.67
Department of Health,Guys and St Thomas NHS Foundation Trust,25/03/2022,(83880) Building & Engineering,(id:590427) Integrated Local Services,OCTAGON MAINTENANCE & SHOPFITTING LTD,id:15054056    ,1336.00
Department of Health,Guys and St Thomas NHS Foundation Trust,04/03/2022,(81200) Medical Surgical Supplies & Equipment,(id:590563) Integrated Local Services,NHS SUPPLY CHAIN (MAIDSTONE),id:14891794   ,  45.70
Department of Health,Guys and St Thomas NHS Foundation Trust,11/03/2022,(82300) Contract Hotel Services,(id:590563) Integrated Local Services,HEMINGWAYS MARKETING SERVICES,id:15017794 , 990.00
Department of Health,Guys and St Thomas NHS Foundation Trust,30/03/2022,(55432) Ancillary Staff,(id:590495) Integrated Local Services,GSTT PROCUREMENT CARD,id:15081217  , 366.67
Department of Health,Guys and St Thomas NHS Foundation Trust,30/03/2022,(55432) Ancillary Staff,(id:590495) Integrated Local Services,GSTT PROCUREMENT CARD,id:15081478  , 311.34
Department of Health,Guys and St Thomas NHS Foundation Trust,04/03/2022,(51842) Physiotherapists,(id:839420) Integrated Local Services,PRICEWATERHOUSECOOPERS LLP,id:14991175 , 736.31
Department of Health,Guys and St Thomas NHS Foundation Trust,30/03/2022,(55432) Ancillary Staff,(id:839420) Integrated Local Services,GSTT PROCUREMENT CARD,id:15081478  , 311.32
Department of Health,Guys and St Thomas NHS Foundation Trust,24/03/2022,(81200) Medical Surgical Supplies & Equipment,(id:1885424) Integrated Local Services,NHS SUPPLY CHAIN (MAIDSTONE),id:14966960  , 110.40
Department of Health,Guys and St Thomas NHS Foundation Trust,11/03/2022,(50562) Qualified Nursing Staff,(id:1885424) Integrated Local Services,MSI GROUP LTD,id:15018686 ,1122.39
Department of Health,Guys and St Thomas NHS Foundation Trust,25/03/2022,(50572) Qualified Nursing Staff,(id:699422) Integrated Local Services,MSI GROUP LTD,id:15059017  ,1388.96
Department of Health,Guys and St Thomas NHS Foundation Trust,24/03/2022,(82800) Bedding & Linen,(id:699422) Integrated Local Services,NHS SUPPLY CHAIN (MAIDSTONE),id:14970245,  39.60
Department of Health,Guys and St Thomas NHS Foundation Trust,04/03/2022,(81200) Medical Surgical Supplies & Equipment,(id:699422) Integrated Local Services,NHS SUPPLY CHAIN (MAIDSTONE),id:14891794   , 198.00
Department of Health,Guys and St Thomas NHS Foundation Trust,11/03/2022,(50204) Consultants,(id:699422) Integrated Local Services,KING'S COLLEGE HOSPITAL NHS FOUNDATION TRUST,id:14987025   ,1749.84
Department of Health,Guys and St Thomas NHS Foundation Trust,22/03/2022,(51832) Physiotherapists,(id:590523) Integrated Local Services,PRICEWATERHOUSECOOPERS LLP,id:15054354 ,1757.62
Department of Health,Guys and St Thomas NHS Foundation Trust,24/03/2022,(81225) Medical Surgical Supplies & Equipment,(id:684420) Integrated Local Services,NHS SUPPLY CHAIN (MAIDSTONE),id:14970245   ,  52.68
Department of Health,Guys and St Thomas NHS Foundation Trust,22/03/2022,(51862) Physiotherapists,(id:684419) Integrated Local Services,PRICEWATERHOUSECOOPERS LLP,id:15054615 ,1282.23
Department of Health,Guys and St Thomas NHS Foundation Trust,22/03/2022,(51842) Physiotherapists,(id:684419) Integrated Local Services,PRICEWATERHOUSECOOPERS LLP,id:15054245 , 736.31
Department of Health,Guys and St Thomas NHS Foundation Trust,30/03/2022,(51872) Physiotherapists,(id:684419) Integrated Local Services,PRICEWATERHOUSECOOPERS LLP,id:15078884 ,1470.83
Department of Health,Guys and St Thomas NHS Foundation Trust,24/03/2022,(81100) Dressings,(id:590471) Integrated Local Services,NHS SUPPLY CHAIN (MAIDSTONE),id:14966960 ,  79.11
Department of Health,Guys and St Thomas NHS Foundation Trust,24/03/2022,(82600) Uniforms & Clothing,(id:590471) Integrated Local Services,NHS SUPPLY CHAIN (MAIDSTONE),id:14966960 ,   8.10
Department of Health,Guys and St Thomas NHS Foundation Trust,04/03/2022,(81200) Medical Surgical Supplies & Equipment,(id:590473) Integrated Local Services,NHS SUPPLY CHAIN (MAIDSTONE),id:14891794   , 336.00
Department of Health,Guys and St Thomas NHS Foundation Trust,04/03/2022,(81200) Medical Surgical Supplies & Equipment,(id:590522) Integrated Local Services,NHS SUPPLY CHAIN (MAIDSTONE),id:14891794   , 100.76
Department of Health,Guys and St Thomas NHS Foundation Trust,04/03/2022,(82000) Provisions & Kitchens,(id:590522) Integrated Local Services,NHS SUPPLY CHAIN (MAIDSTONE),id:14891794    ,  38.39
Department of Health,Guys and St Thomas NHS Foundation Trust,25/03/2022,(84500) Establishment,(id:590562) Integrated Local Services,CDP  PRINT MANAGEMENT,id:15011877    ,  18.60
Department of Health,Guys and St Thomas NHS Foundation Trust,24/03/2022,(86300) Healthcare from non-NHS bodies,(id:590477) Integrated Local Services,NHS SUPPLY CHAIN (MAIDSTONE),id:15026258,1394.83
Department of Health,Guys and St Thomas NHS Foundation Trust,24/03/2022,(86300) Healthcare from non-NHS bodies,(id:590477) Integrated Local Services,NHS SUPPLY CHAIN (MAIDSTONE),id:15026277,1046.19
Department of Health,Guys and St Thomas NHS Foundation Trust,25/03/2022,(50562) Qualified Nursing Staff,(id:590463) Integrated Local Services,COYLE PERSONNEL PLC,id:15059065 ,1750.00
Department of Health,Guys and St Thomas NHS Foundation Trust,24/03/2022,(82000) Provisions & Kitchens,(id:590527) Integrated Local Services,NHS SUPPLY CHAIN (MAIDSTONE),id:14970245    ,  12.67
Department of Health,Guys and St Thomas NHS Foundation Trust,04/03/2022,(83400) Office Equipment,(id:590527) Integrated Local Services,NHS SUPPLY CHAIN (MAIDSTONE),id:14891794    , 209.40
Department of Health,Guys and St Thomas NHS Foundation Trust,18/03/2022,(83400) Office Equipment,(id:590527) Integrated Local Services,NHS SUPPLY CHAIN (MAIDSTONE),id:14986785    ,  50.04
Department of Health,Guys and St Thomas NHS Foundation Trust,24/03/2022,(81100) Dressings,(id:590527) Integrated Local Services,NHS SUPPLY CHAIN (MAIDSTONE),id:14966960 ,  15.37
Department of Health,Guys and St Thomas NHS Foundation Trust,24/03/2022,(81225) Medical Surgical Supplies & Equipment,(id:903421) Integrated Local Services,NHS SUPPLY CHAIN (MAIDSTONE),id:14966960   ,   8.32
Department of Health,Guys and St Thomas NHS Foundation Trust,24/03/2022,(82800) Bedding & Linen,(id:1379420) Integrated Local Services,NHS SUPPLY CHAIN (MAIDSTONE),id:14970245    ,  21.56
Department of Health,Guys and St Thomas NHS Foundation Trust,04/03/2022,(86300) Healthcare from non-NHS bodies,(id:5205419) Integrated Local Services,HOMELINK HEALTHCARE LTD,id:14986858    ,   105552.00
Department of Health,Guys and St Thomas NHS Foundation Trust,25/03/2022,(84500) Establishment,(id:4263421) Integrated Local Services,CDP  PRINT MANAGEMENT,id:15011878   ,   6.20
Department of Health,Guys and St Thomas NHS Foundation Trust,25/03/2022,(84500) Establishment,(id:4263422) Integrated Local Services,CDP  PRINT MANAGEMENT,id:15011878   ,   3.10
Department of Health,Guys and St Thomas NHS Foundation Trust,11/03/2022,(50552) Qualified Nursing Staff,(id:4263423) Integrated Local Services,MEDICARE HEALTH PROFESSIONALS LTD,id:14990067 ,1453.91
Department of Health,Guys and St Thomas NHS Foundation Trust,11/03/2022,(50552) Qualified Nursing Staff,(id:4479420) Integrated Local Services,MSI GROUP LTD,id:15018584 , 608.40
Department of Health,Guys and St Thomas NHS Foundation Trust,18/03/2022,(82700) Uniforms & Clothing,(id:42518) Evelina Womens Services,NHS SUPPLY CHAIN (MAIDSTONE),id:14986785    ,  23.76
Department of Health,Guys and St Thomas NHS Foundation Trust,04/03/2022,(89260) Clinical Services,(id:42517) Evelina Womens Services,YULIYA KOPEIKA,id:14973475,    16000.00
Department of Health,Guys and St Thomas NHS Foundation Trust,18/03/2022,(89260) Clinical Services,(id:42517) Evelina Womens Services,FERTILITY AND GYNAECOLOGY CARE LTD,id:15019719,    29050.00
Department of Health,Guys and St Thomas NHS Foundation Trust,18/03/2022,(81200) Medical Surgical Supplies & Equipment,(id:42517) Evelina Womens Services,VITROLIFE LTD,id:15027847 ,4447.30
Department of Health,Guys and St Thomas NHS Foundation Trust,11/03/2022,(81200) Medical Surgical Supplies & Equipment,(id:42517) Evelina Womens Services,VITROLIFE LTD,id:14993178 ,4367.33
Department of Health,Guys and St Thomas NHS Foundation Trust,11/03/2022,(81200) Medical Surgical Supplies & Equipment,(id:42517) Evelina Womens Services,STARLAB (UK) LTD,id:14970200   , 955.20
Department of Health,Guys and St Thomas NHS Foundation Trust,11/03/2022,(81200) Medical Surgical Supplies & Equipment,(id:42517) Evelina Womens Services,FUJIFILM UK LTD,id:15010715    ,6900.00
Department of Health,Guys and St Thomas NHS Foundation Trust,25/03/2022,(81200) Medical Surgical Supplies & Equipment,(id:42517) Evelina Womens Services,COOK UK LTD,id:14656920   ,1476.00
Department of Health,Guys and St Thomas NHS Foundation Trust,18/03/2022,(81700) Lab Equipment Purchase,(id:42517) Evelina Womens Services,NHS SUPPLY CHAIN (MAIDSTONE),id:14986785 ,  48.34
Department of Health,Guys and St Thomas NHS Foundation Trust,25/03/2022,(84500) Establishment,(id:42514) Evelina Womens Services,CDP  PRINT MANAGEMENT,id:15011878  , 100.80
Department of Health,Guys and St Thomas NHS Foundation Trust,18/03/2022,(89270) Establishment,(id:42514) Evelina Womens Services,BIRTHRATE PLUS ASSOCIATES LTD,id:15019716    ,9800.00
Department of Health,Guys and St Thomas NHS Foundation Trust,25/03/2022,(81275) Medical Surgical Supplies & Equipment,(id:42514) Evelina Womens Services,RICOH UK LTD,id:15062101  , 616.15
Department of Health,Guys and St Thomas NHS Foundation Trust,24/03/2022,(81200) Medical Surgical Supplies & Equipment,(id:42513) Evelina Womens Services,NHS SUPPLY CHAIN (MAIDSTONE),id:14966960 , 352.52
Department of Health,Guys and St Thomas NHS Foundation Trust,24/03/2022,(81100) Dressings,(id:42513) Evelina Womens Services,NHS SUPPLY CHAIN (MAIDSTONE),id:14966960    ,   9.80
Department of Health,Guys and St Thomas NHS Foundation Trust,04/03/2022,(81275) Medical Surgical Supplies & Equipment,(id:42513) Evelina Womens Services,NHS SUPPLY CHAIN (MAIDSTONE),id:14891794 ,  14.46
Department of Health,Guys and St Thomas NHS Foundation Trust,24/03/2022,(82800) Bedding & Linen,(id:42513) Evelina Womens Services,NHS SUPPLY CHAIN (MAIDSTONE),id:14966960   ,  21.16
Department of Health,Guys and St Thomas NHS Foundation Trust,04/03/2022,(82800) Bedding & Linen,(id:42513) Evelina Womens Services,NHS SUPPLY CHAIN (MAIDSTONE),id:14891794   , 161.87
Department of Health,Guys and St Thomas NHS Foundation Trust,04/03/2022,(82700) Uniforms & Clothing,(id:42513) Evelina Womens Services,NHS SUPPLY CHAIN (MAIDSTONE),id:14891794    ,  31.68
Department of Health,Guys and St Thomas NHS Foundation Trust,18/03/2022,(83500) Furniture & Fittings,(id:42509) Evelina Womens Services,HOSPITAL METALCRAFT LTD,id:15026021   , 718.20
Department of Health,Guys and St Thomas NHS Foundation Trust,04/03/2022,(81200) Medical Surgical Supplies & Equipment,(id:42509) Evelina Womens Services,STRYKER UK LTD,id:14987464,1699.20
Department of Health,Guys and St Thomas NHS Foundation Trust,24/03/2022,(83400) Office Equipment,(id:42510) Evelina Womens Services,NHS SUPPLY CHAIN (MAIDSTONE),id:14966960  ,  17.31
Department of Health,Guys and St Thomas NHS Foundation Trust,25/03/2022,(84500) Establishment,(id:42506) Evelina Womens Services,CDP  PRINT MANAGEMENT,id:15011876  ,   3.10
Department of Health,Guys and St Thomas NHS Foundation Trust,04/03/2022,(81200) Medical Surgical Supplies & Equipment,(id:42506) Evelina Womens Services,NHS SUPPLY CHAIN (MAIDSTONE),id:14891794 ,1734.82
Department of Health,Guys and St Thomas NHS Foundation Trust,18/03/2022,(81200) Medical Surgical Supplies & Equipment,(id:42506) Evelina Womens Services,WILLIAMS MEDICAL SUPPLIES PLC,id:15023574, 774.00
Department of Health,Guys and St Thomas NHS Foundation Trust,04/03/2022,(81700) Lab Equipment Purchase,(id:42506) Evelina Womens Services,NHS SUPPLY CHAIN (MAIDSTONE),id:14891794 ,  10.14
Department of Health,Guys and St Thomas NHS Foundation Trust,24/03/2022,(82800) Bedding & Linen,(id:42506) Evelina Womens Services,NHS SUPPLY CHAIN (MAIDSTONE),id:14970245   ,  10.26
Department of Health,Guys and St Thomas NHS Foundation Trust,04/03/2022,(81200) Medical Surgical Supplies & Equipment,(id:42486) Evelina Womens Services,NHS SUPPLY CHAIN (MAIDSTONE),id:14891794 ,  39.11
Department of Health,Guys and St Thomas NHS Foundation Trust,04/03/2022,(83400) Office Equipment,(id:42486) Evelina Womens Services,NHS SUPPLY CHAIN (MAIDSTONE),id:14891794  ,  45.10
Department of Health,Guys and St Thomas NHS Foundation Trust,04/03/2022,(89600) Non-Healthcare from other NHS bodies,(id:42486) Evelina Womens Services,NHS BLOOD AND TRANSPLANT,id:14970514 ,1313.20
Department of Health,Guys and St Thomas NHS Foundation Trust,04/03/2022,(84500) Establishment,(id:42488) Evelina Womens Services,PHS GROUP,id:14988043    ,1764.29
Department of Health,Guys and St Thomas NHS Foundation Trust,25/03/2022,(84500) Establishment,(id:42488) Evelina Womens Services,CDP  PRINT MANAGEMENT,id:15011876  ,  16.00
Department of Health,Guys and St Thomas NHS Foundation Trust,25/03/2022,(84500) Establishment,(id:42488) Evelina Womens Services,CDP  PRINT MANAGEMENT,id:15011878  ,   6.20
Department of Health,Guys and St Thomas NHS Foundation Trust,04/03/2022,(82800) Bedding & Linen,(id:42488) Evelina Womens Services,NHS SUPPLY CHAIN (MAIDSTONE),id:14891794   ,  30.17
Department of Health,Guys and St Thomas NHS Foundation Trust,24/03/2022,(81200) Medical Surgical Supplies & Equipment,(id:42488) Evelina Womens Services,NHS SUPPLY CHAIN (MAIDSTONE),id:14966960 ,  17.81
Department of Health,Guys and St Thomas NHS Foundation Trust,24/03/2022,(82700) Uniforms & Clothing,(id:42491) Evelina Womens Services,NHS SUPPLY CHAIN (MAIDSTONE),id:14970245    ,  47.52
Department of Health,Guys and St Thomas NHS Foundation Trust,25/03/2022,(83500) Furniture & Fittings,(id:42491) Evelina Womens Services,TECHNIBLINDS LTD,id:14964816,1033.92
Department of Health,Guys and St Thomas NHS Foundation Trust,04/03/2022,(81100) Dressings,(id:42491) Evelina Womens Services,NHS SUPPLY CHAIN (MAIDSTONE),id:14891794    ,  60.66
Department of Health,Guys and St Thomas NHS Foundation Trust,24/03/2022,(81225) Medical Surgical Supplies & Equipment,(id:42491) Evelina Womens Services,NHS SUPPLY CHAIN (MAIDSTONE),id:14966960 ,   3.12
Department of Health,Guys and St Thomas NHS Foundation Trust,04/03/2022,(81700) Lab Equipment Purchase,(id:42491) Evelina Womens Services,NHS SUPPLY CHAIN (MAIDSTONE),id:14891794 ,   3.10
Department of Health,Guys and St Thomas NHS Foundation Trust,18/03/2022,(82700) Uniforms & Clothing,(id:42492) Evelina Womens Services,NHS SUPPLY CHAIN (MAIDSTONE),id:14986785    , 261.30
Department of Health,Guys and St Thomas NHS Foundation Trust,18/03/2022,(82800) Bedding & Linen,(id:42492) Evelina Womens Services,NHS SUPPLY CHAIN (MAIDSTONE),id:14986785   , 361.90
Department of Health,Guys and St Thomas NHS Foundation Trust,25/03/2022,(84500) Establishment,(id:42492) Evelina Womens Services,CDP  PRINT MANAGEMENT,id:15011875  ,  24.80
Department of Health,Guys and St Thomas NHS Foundation Trust,04/03/2022,(81200) Medical Surgical Supplies & Equipment,(id:42492) Evelina Womens Services,NHS SUPPLY CHAIN (MAIDSTONE),id:14891794 ,7840.37
Department of Health,Guys and St Thomas NHS Foundation Trust,25/03/2022,(81200) Medical Surgical Supplies & Equipment,(id:42492) Evelina Womens Services,BECTON DICKINSON (CME) UK LTD,id:15019097, 673.20
Department of Health,Guys and St Thomas NHS Foundation Trust,24/03/2022,(81275) Medical Surgical Supplies & Equipment,(id:42492) Evelina Womens Services,NHS SUPPLY CHAIN (MAIDSTONE),id:14970245 ,   5.34
Department of Health,Guys and St Thomas NHS Foundation Trust,18/03/2022,(82000) Provisions & Kitchens,(id:42493) Evelina Womens Services,NHS SUPPLY CHAIN (MAIDSTONE),id:14986785  ,   5.80
Department of Health,Guys and St Thomas NHS Foundation Trust,24/03/2022,(82000) Provisions & Kitchens,(id:42493) Evelina Womens Services,NHS SUPPLY CHAIN (MAIDSTONE),id:14966960  ,  28.92
Department of Health,Guys and St Thomas NHS Foundation Trust,18/03/2022,(83400) Office Equipment,(id:42493) Evelina Womens Services,NHS SUPPLY CHAIN (MAIDSTONE),id:14986785  ,  79.38
Department of Health,Guys and St Thomas NHS Foundation Trust,24/03/2022,(81200) Medical Surgical Supplies & Equipment,(id:42493) Evelina Womens Services,NHS SUPPLY CHAIN (MAIDSTONE),id:14966960 , 373.68
Department of Health,Guys and St Thomas NHS Foundation Trust,04/03/2022,(81275) Medical Surgical Supplies & Equipment,(id:42493) Evelina Womens Services,NHS SUPPLY CHAIN (MAIDSTONE),id:14891794 ,  10.68
Department of Health,Guys and St Thomas NHS Foundation Trust,18/03/2022,(81700) Lab Equipment Purchase,(id:42493) Evelina Womens Services,NHS SUPPLY CHAIN (MAIDSTONE),id:14986785 ,   6.19
Department of Health,Guys and St Thomas NHS Foundation Trust,18/03/2022,(81200) Medical Surgical Supplies & Equipment,(id:42496) Evelina Womens Services,NHS SUPPLY CHAIN (MAIDSTONE),id:14986785 ,  58.00
Department of Health,Guys and St Thomas NHS Foundation Trust,04/03/2022,(81100) Dressings,(id:42496) Evelina Womens Services,NHS SUPPLY CHAIN (MAIDSTONE),id:14891794    ,   2.16
Department of Health,Guys and St Thomas NHS Foundation Trust,04/03/2022,(89595) Non-Healthcare from Foundation Trusts,(id:42504) Evelina Womens Services,KINGSTON HOSPITAL NHS FOUNDATION TRUST,id:14779045 ,    -4120.27
Department of Health,Guys and St Thomas NHS Foundation Trust,24/03/2022,(89595) Non-Healthcare from Foundation Trusts,(id:42504) Evelina Womens Services,ROYAL FREE LONDON NHS FOUNDATION TRUST,id:14958043 ,    -2437.67
Department of Health,Guys and St Thomas NHS Foundation Trust,25/03/2022,(84500) Establishment,(id:42504) Evelina Womens Services,CDP  PRINT MANAGEMENT,id:15011877  ,  15.50
Department of Health,Guys and St Thomas NHS Foundation Trust,25/03/2022,(84500) Establishment,(id:42504) Evelina Womens Services,CDP  PRINT MANAGEMENT,id:15011875  ,  21.60
Department of Health,Guys and St Thomas NHS Foundation Trust,18/03/2022,(82800) Bedding & Linen,(id:42331) Evelina Central,NHS SUPPLY CHAIN (MAIDSTONE),id:14986785 , 158.50
Department of Health,Guys and St Thomas NHS Foundation Trust,24/03/2022,(82800) Bedding & Linen,(id:42331) Evelina Central,NHS SUPPLY CHAIN (MAIDSTONE),id:14966960 , 201.42
Department of Health,Guys and St Thomas NHS Foundation Trust,24/03/2022,(82000) Provisions & Kitchens,(id:42331) Evelina Central,NHS SUPPLY CHAIN (MAIDSTONE),id:14966960, 111.94
Department of Health,Guys and St Thomas NHS Foundation Trust,04/03/2022,(82000) Provisions & Kitchens,(id:42348) Evelina Central,NHS SUPPLY CHAIN (MAIDSTONE),id:14891794,  72.40
Department of Health,Guys and St Thomas NHS Foundation Trust,24/03/2022,(82800) Bedding & Linen,(id:42348) Evelina Central,NHS SUPPLY CHAIN (MAIDSTONE),id:14970245 ,  94.42
Department of Health,Guys and St Thomas NHS Foundation Trust,24/03/2022,(81200) Medical Surgical Supplies & Equipment,(id:42348) Evelina Central,NHS SUPPLY CHAIN (MAIDSTONE),id:14966960    , 620.70
Department of Health,Guys and St Thomas NHS Foundation Trust,18/03/2022,(83400) Office Equipment,(id:42348) Evelina Central,BAXTER HEALTHCARE LTD,id:14891908  , 351.84
Department of Health,Guys and St Thomas NHS Foundation Trust,25/03/2022,(54010) Technical Officers,(id:2965419) Evelina Central,RICOH UK LTD,id:15062111  , 818.48
Department of Health,Guys and St Thomas NHS Foundation Trust,25/03/2022,(54010) Technical Officers,(id:2965419) Evelina Central,RICOH UK LTD,id:15062200  , 818.48
Department of Health,Guys and St Thomas NHS Foundation Trust,25/03/2022,(54010) Technical Officers,(id:2965419) Evelina Central,RICOH UK LTD,id:15062229  , 818.48
Department of Health,Guys and St Thomas NHS Foundation Trust,18/03/2022,(81200) Medical Surgical Supplies & Equipment,(id:42319) Evelina Central,NHS SUPPLY CHAIN (MAIDSTONE),id:14986785    , 131.14
Department of Health,Guys and St Thomas NHS Foundation Trust,25/03/2022,(84500) Establishment,(id:42316) Evelina Central,CDP  PRINT MANAGEMENT,id:15011877, 179.80
Department of Health,Guys and St Thomas NHS Foundation Trust,24/03/2022,(81225) Medical Surgical Supplies & Equipment,(id:590444) Evelina Community Services,NHS SUPPLY CHAIN (MAIDSTONE),id:14970245  ,4156.60
Department of Health,Guys and St Thomas NHS Foundation Trust,22/03/2022,(51472) Occupational Therapists,(id:706419) Evelina Community Services,PRICEWATERHOUSECOOPERS LLP,id:15054245   ,1003.27
Department of Health,Guys and St Thomas NHS Foundation Trust,30/03/2022,(53062) Speech Therapists,(id:590451) Evelina Community Services,PRICEWATERHOUSECOOPERS LLP,id:15078884    ,4305.27
Department of Health,Guys and St Thomas NHS Foundation Trust,24/03/2022,(81200) Medical Surgical Supplies & Equipment,(id:590547) Evelina Community Services,NHS SUPPLY CHAIN (MAIDSTONE),id:14970245  , 239.76
Department of Health,Guys and St Thomas NHS Foundation Trust,18/03/2022,(89270) Establishment,(id:590548) Evelina Community Services,PAD CREATIVE LTD,id:15028904   , 165.00
Department of Health,Guys and St Thomas NHS Foundation Trust,04/03/2022,(83410) Office Equipment,(id:590557) Evelina Community Services,RICOH UK LTD,id:14972484    ,  65.23
Department of Health,Guys and St Thomas NHS Foundation Trust,25/03/2022,(81400) Medical Surgical Supplies & Equipment,(id:590446) Evelina Community Services,RICOH UK LTD,id:15062193   ,5626.71
Department of Health,Guys and St Thomas NHS Foundation Trust,04/03/2022,(83400) Office Equipment,(id:590446) Evelina Community Services,DICT8 LIMITED,id:14990474   ,2946.12
Department of Health,Guys and St Thomas NHS Foundation Trust,24/03/2022,(83400) Office Equipment,(id:590446) Evelina Community Services,NHS SUPPLY CHAIN (MAIDSTONE),id:14966960   , 259.82
Department of Health,Guys and St Thomas NHS Foundation Trust,18/03/2022,(81700) Lab Equipment Purchase,(id:590446) Evelina Community Services,NHS SUPPLY CHAIN (MAIDSTONE),id:14986785  ,  66.00
Department of Health,Guys and St Thomas NHS Foundation Trust,25/03/2022,(55060) Admin & Clerical,(id:590446) Evelina Community Services,RICOH UK LTD,id:15062193    ,    11826.84
Department of Health,Guys and St Thomas NHS Foundation Trust,18/03/2022,(89000) Other - Training courses and conferences,(id:590452) Evelina Community Services,COMPASS PSYCHOLOGY SERVICES LTD,id:14988557 , 750.00
Department of Health,Guys and St Thomas NHS Foundation Trust,11/03/2022,(50562) Qualified Nursing Staff,(id:590416) Evelina Community Services,ARTHUR RAI MEDICAL SERVICES LTD,id:15018638   , 790.20
Department of Health,Guys and St Thomas NHS Foundation Trust,25/03/2022,(50562) Qualified Nursing Staff,(id:590416) Evelina Community Services,ARTHUR RAI MEDICAL SERVICES LTD,id:15058868   , 790.20
Department of Health,Guys and St Thomas NHS Foundation Trust,25/03/2022,(84500) Establishment,(id:590421) Evelina Community Services,CDP  PRINT MANAGEMENT,id:15011875   ,   6.20
Department of Health,Guys and St Thomas NHS Foundation Trust,25/03/2022,(50562) Qualified Nursing Staff,(id:590423) Evelina Community Services,ARTHUR RAI MEDICAL SERVICES LTD,id:15059059   ,1317.00
Department of Health,Guys and St Thomas NHS Foundation Trust,11/03/2022,(50562) Qualified Nursing Staff,(id:590542) Evelina Community Services,ARTHUR RAI MEDICAL SERVICES LTD,id:15018260   ,1317.00
Department of Health,Guys and St Thomas NHS Foundation Trust,25/03/2022,(84600) Establishment,(id:590540) Evelina Community Services,ETC VENUES LIMITED,id:15061915 ,3500.00
Department of Health,Guys and St Thomas NHS Foundation Trust,04/03/2022,(81200) Medical Surgical Supplies & Equipment,(id:1196422) Evelina Medicine & Neonatology,LAWMED LTD,id:14973167,2776.20
Department of Health,Guys and St Thomas NHS Foundation Trust,04/03/2022,(50552) Qualified Nursing Staff,(id:2499420) Evelina Medicine & Neonatology,CONTINENTAL NURSE LTD,id:14989949   ,1824.14
Department of Health,Guys and St Thomas NHS Foundation Trust,18/03/2022,(50200) Consultants,(id:42349) Evelina Medicine & Neonatology,NORTH MIDDLESEX UNIVERSITY HOSPITAL NHS TRUST,id:14774951   ,3524.00
Department of Health,Guys and St Thomas NHS Foundation Trust,04/03/2022,(81230) Medical Surgical Supplies & Equipment,(id:42349) Evelina Medicine & Neonatology,NHS SUPPLY CHAIN (MAIDSTONE),id:14891794    ,  15.60
Department of Health,Guys and St Thomas NHS Foundation Trust,24/03/2022,(80150) Drug Costs,(id:42350) Evelina Medicine & Neonatology,NHS SUPPLY CHAIN (MAIDSTONE),id:14966960 , 111.60
Department of Health,Guys and St Thomas NHS Foundation Trust,11/03/2022,(81100) Dressings,(id:42350) Evelina Medicine & Neonatology,3M UNITED KINGDOM PLC,id:14895938    ,1152.14
Department of Health,Guys and St Thomas NHS Foundation Trust,25/03/2022,(81200) Medical Surgical Supplies & Equipment,(id:817420) Evelina Medicine & Neonatology,MASIMO EUROPE LTD,id:15037296    ,4440.00
Department of Health,Guys and St Thomas NHS Foundation Trust,04/03/2022,(81230) Medical Surgical Supplies & Equipment,(id:2497419) Evelina Medicine & Neonatology,NHS SUPPLY CHAIN (MAIDSTONE),id:14891794  , 182.70
Department of Health,Guys and St Thomas NHS Foundation Trust,04/03/2022,(81200) Medical Surgical Supplies & Equipment,(id:42335) Evelina Medicine & Neonatology,NHS SUPPLY CHAIN (MAIDSTONE),id:14891794    ,    12084.00
Department of Health,Guys and St Thomas NHS Foundation Trust,02/03/2022,(81000) Surgical Appliances,(id:42335) Evelina Medicine & Neonatology,JOHN FLORENCE LTD,id:14983178   , 814.78
Department of Health,Guys and St Thomas NHS Foundation Trust,04/03/2022,(82700) Uniforms & Clothing,(id:42327) Evelina Medicine & Neonatology,NHS SUPPLY CHAIN (MAIDSTONE),id:14891794  ,  16.29
Department of Health,Guys and St Thomas NHS Foundation Trust,04/03/2022,(81100) Dressings,(id:42327) Evelina Medicine & Neonatology,NHS SUPPLY CHAIN (MAIDSTONE),id:14891794  , 381.94
Department of Health,Guys and St Thomas NHS Foundation Trust,11/03/2022,(81200) Medical Surgical Supplies & Equipment,(id:42327) Evelina Medicine & Neonatology,BOC LTD :02107500,id:14856092, 864.00
Department of Health,Guys and St Thomas NHS Foundation Trust,25/03/2022,(81200) Medical Surgical Supplies & Equipment,(id:42327) Evelina Medicine & Neonatology,HENLEYS MEDICAL SUPPLIES LTD,id:15056954    , 561.60
Department of Health,Guys and St Thomas NHS Foundation Trust,25/03/2022,(81200) Medical Surgical Supplies & Equipment,(id:42327) Evelina Medicine & Neonatology,EDWARDS LIFESCIENCES LTD,id:15040134   , 885.60
Department of Health,Guys and St Thomas NHS Foundation Trust,04/03/2022,(81200) Medical Surgical Supplies & Equipment,(id:42327) Evelina Medicine & Neonatology,NHS SUPPLY CHAIN (MAIDSTONE),id:14891794    ,4381.19
Department of Health,Guys and St Thomas NHS Foundation Trust,04/03/2022,(81200) Medical Surgical Supplies & Equipment,(id:42327) Evelina Medicine & Neonatology,BUNZL HEALTHCARE,id:14911966 , 837.60
Department of Health,Guys and St Thomas NHS Foundation Trust,18/03/2022,(80010) Drug Costs,(id:42327) Evelina Medicine & Neonatology,NHS SUPPLY CHAIN (MAIDSTONE),id:14986785 ,  18.00
Department of Health,Guys and St Thomas NHS Foundation Trust,24/03/2022,(81225) Medical Surgical Supplies & Equipment,(id:42327) Evelina Medicine & Neonatology,NHS SUPPLY CHAIN (MAIDSTONE),id:14970245    , 238.65
Department of Health,Guys and St Thomas NHS Foundation Trust,18/03/2022,(81275) Medical Surgical Supplies & Equipment,(id:42327) Evelina Medicine & Neonatology,NHS SUPPLY CHAIN (MAIDSTONE),id:14986785    ,  14.46
Department of Health,Guys and St Thomas NHS Foundation Trust,25/03/2022,(81200) Medical Surgical Supplies & Equipment,(id:1196420) Evelina Medicine & Neonatology,MEDTRONIC LTD,id:14908274  , 974.51
Department of Health,Guys and St Thomas NHS Foundation Trust,25/03/2022,(81200) Medical Surgical Supplies & Equipment,(id:1196420) Evelina Medicine & Neonatology,MEDTRONIC LTD,id:14815889  , 850.50
Department of Health,Guys and St Thomas NHS Foundation Trust,25/03/2022,(81200) Medical Surgical Supplies & Equipment,(id:1196420) Evelina Medicine & Neonatology,MEDTRONIC LTD,id:14806966  , 850.50
Department of Health,Guys and St Thomas NHS Foundation Trust,25/03/2022,(81200) Medical Surgical Supplies & Equipment,(id:1196420) Evelina Medicine & Neonatology,DEXCOM INTERNATIONAL LTD,id:15025674 , 600.00
Department of Health,Guys and St Thomas NHS Foundation Trust,25/03/2022,(81200) Medical Surgical Supplies & Equipment,(id:1196420) Evelina Medicine & Neonatology,DEXCOM INTERNATIONAL LTD,id:15055054 , 600.00
Department of Health,Guys and St Thomas NHS Foundation Trust,24/03/2022,(81700) Lab Equipment Purchase,(id:2983419) Evelina Medicine & Neonatology,NHS SUPPLY CHAIN (MAIDSTONE),id:14966960  , 132.00
Department of Health,Guys and St Thomas NHS Foundation Trust,11/03/2022,(81200) Medical Surgical Supplies & Equipment,(id:2496419) Evelina Medicine & Neonatology,PHILIPS HEALTHCARE,id:15010624  ,1181.23
Department of Health,Guys and St Thomas NHS Foundation Trust,24/03/2022,(81200) Medical Surgical Supplies & Equipment,(id:2496419) Evelina Medicine & Neonatology,NHS SUPPLY CHAIN (MAIDSTONE),id:14966960  , 647.98
Department of Health,Guys and St Thomas NHS Foundation Trust,24/03/2022,(82000) Provisions & Kitchens,(id:2496419) Evelina Medicine & Neonatology,NHS SUPPLY CHAIN (MAIDSTONE),id:14966960   , 101.04
Department of Health,Guys and St Thomas NHS Foundation Trust,25/03/2022,(50552) Qualified Nursing Staff,(id:41874) Evelina Medicine & Neonatology,CONTINENTAL NURSE LTD,id:15058950,2688.92
Department of Health,Guys and St Thomas NHS Foundation Trust,24/03/2022,(81265) Medical Surgical Supplies & Equipment,(id:41874) Evelina Medicine & Neonatology,NHS SUPPLY CHAIN (MAIDSTONE),id:14970245    , 126.00
Department of Health,Guys and St Thomas NHS Foundation Trust,04/03/2022,(83410) Office Equipment,(id:41874) Evelina Medicine & Neonatology,RICOH UK LTD,id:14972556 , 178.37
Department of Health,Guys and St Thomas NHS Foundation Trust,18/03/2022,(89600) Non-Healthcare from other NHS bodies,(id:42326) Evelina Medicine & Neonatology,NHS BLOOD AND TRANSPLANT,id:15034934    ,5675.00
Department of Health,Guys and St Thomas NHS Foundation Trust,18/03/2022,(81200) Medical Surgical Supplies & Equipment,(id:2495419) Evelina Medicine & Neonatology,NHS SUPPLY CHAIN (MAIDSTONE),id:14986785  , 834.91
Department of Health,Guys and St Thomas NHS Foundation Trust,18/03/2022,(83400) Office Equipment,(id:2495419) Evelina Medicine & Neonatology,NHS SUPPLY CHAIN (MAIDSTONE),id:14986785   ,   6.65
Department of Health,Guys and St Thomas NHS Foundation Trust,24/03/2022,(81100) Dressings,(id:42323) Evelina Medicine & Neonatology,NHS SUPPLY CHAIN (MAIDSTONE),id:14970245  ,  61.69
Department of Health,Guys and St Thomas NHS Foundation Trust,24/03/2022,(81100) Dressings,(id:42315) Evelina Medicine & Neonatology,NHS SUPPLY CHAIN (MAIDSTONE),id:14966960  , 103.65
Department of Health,Guys and St Thomas NHS Foundation Trust,24/03/2022,(83400) Office Equipment,(id:42315) Evelina Medicine & Neonatology,NHS SUPPLY CHAIN (MAIDSTONE),id:14970245, 120.34
Department of Health,Guys and St Thomas NHS Foundation Trust,24/03/2022,(83400) Office Equipment,(id:42315) Evelina Medicine & Neonatology,NHS SUPPLY CHAIN (MAIDSTONE),id:14966960,  24.98
Department of Health,Guys and St Thomas NHS Foundation Trust,24/03/2022,(81200) Medical Surgical Supplies & Equipment,(id:42058) Evelina Medicine & Neonatology,NHS SUPPLY CHAIN (MAIDSTONE),id:14966960    ,  12.96
Department of Health,Guys and St Thomas NHS Foundation Trust,18/03/2022,(81200) Medical Surgical Supplies & Equipment,(id:5303421) Evelina Surgery Theatres & PICU,INTEGRA NEUROSCIENCES LIMITED,id:15034008,6326.64
Department of Health,Guys and St Thomas NHS Foundation Trust,24/03/2022,(81280) Medical Surgical Supplies & Equipment,(id:5303421) Evelina Surgery Theatres & PICU,NHS BLOOD AND TRANSPLANT,id:14983037, 934.16
Department of Health,Guys and St Thomas NHS Foundation Trust,24/03/2022,(81280) Medical Surgical Supplies & Equipment,(id:5303421) Evelina Surgery Theatres & PICU,NHS BLOOD AND TRANSPLANT,id:14849636,3704.09
Department of Health,Guys and St Thomas NHS Foundation Trust,18/03/2022,(81200) Medical Surgical Supplies & Equipment,(id:2499419) Evelina Surgery Theatres & PICU,NHS SUPPLY CHAIN (MAIDSTONE),id:14986785 ,  91.19
Department of Health,Guys and St Thomas NHS Foundation Trust,25/03/2022,(84500) Establishment,(id:42310) Evelina Surgery Theatres & PICU,CDP  PRINT MANAGEMENT,id:15011877    ,   3.10
Department of Health,Guys and St Thomas NHS Foundation Trust,04/03/2022,(81265) Medical Surgical Supplies & Equipment,(id:42312) Evelina Surgery Theatres & PICU,NHS SUPPLY CHAIN (MAIDSTONE),id:14891794   ,1982.40
Department of Health,Guys and St Thomas NHS Foundation Trust,04/03/2022,(81200) Medical Surgical Supplies & Equipment,(id:42312) Evelina Surgery Theatres & PICU,ABBOTT MEDICAL UK LTD,id:14953714,1800.00
Department of Health,Guys and St Thomas NHS Foundation Trust,18/03/2022,(81280) Medical Surgical Supplies & Equipment,(id:42312) Evelina Surgery Theatres & PICU,BVM MEDICAL LTD,id:15032238 ,5533.20
Department of Health,Guys and St Thomas NHS Foundation Trust,25/03/2022,(81280) Medical Surgical Supplies & Equipment,(id:42312) Evelina Surgery Theatres & PICU,ABBOTT MEDICAL UK LTD,id:14068174,1230.00
Department of Health,Guys and St Thomas NHS Foundation Trust,04/03/2022,(81280) Medical Surgical Supplies & Equipment,(id:42312) Evelina Surgery Theatres & PICU,NHS BLOOD AND TRANSPLANT,id:14982774  ,1778.28
Department of Health,Guys and St Thomas NHS Foundation Trust,04/03/2022,(83400) Office Equipment,(id:42312) Evelina Surgery Theatres & PICU,NHS SUPPLY CHAIN (MAIDSTONE),id:14891794    , 255.44
Department of Health,Guys and St Thomas NHS Foundation Trust,24/03/2022,(82700) Uniforms & Clothing,(id:4082419) Evelina Surgery Theatres & PICU,NHS SUPPLY CHAIN (MAIDSTONE),id:14966960    ,  20.45
Department of Health,Guys and St Thomas NHS Foundation Trust,24/03/2022,(82000) Provisions & Kitchens,(id:4082419) Evelina Surgery Theatres & PICU,NHS SUPPLY CHAIN (MAIDSTONE),id:14970245  ,  25.16
Department of Health,Guys and St Thomas NHS Foundation Trust,24/03/2022,(83400) Office Equipment,(id:42351) Evelina Surgery Theatres & PICU,NHS SUPPLY CHAIN (MAIDSTONE),id:14970245    ,  19.97
Department of Health,Guys and St Thomas NHS Foundation Trust,25/03/2022,(84656) Establishment,(id:42351) Evelina Surgery Theatres & PICU,DICT8 LIMITED,id:15013397  , 963.60
Department of Health,Guys and St Thomas NHS Foundation Trust,18/03/2022,(82800) Bedding & Linen,(id:41914) Evelina Surgery Theatres & PICU,NHS SUPPLY CHAIN (MAIDSTONE),id:14986785,  62.51
Department of Health,Guys and St Thomas NHS Foundation Trust,11/03/2022,(81200) Medical Surgical Supplies & Equipment,(id:41914) Evelina Surgery Theatres & PICU,RENISHAW NEURO SOLUTIONS LTD,id:15004934   ,1800.00
Department of Health,Guys and St Thomas NHS Foundation Trust,25/03/2022,(81200) Medical Surgical Supplies & Equipment,(id:41914) Evelina Surgery Theatres & PICU,MELYD SURGICAL LTD,id:15034726   ,2804.40
Department of Health,Guys and St Thomas NHS Foundation Trust,25/03/2022,(81200) Medical Surgical Supplies & Equipment,(id:41914) Evelina Surgery Theatres & PICU,STRYKER UK LTD,id:15058654  , 756.00
Department of Health,Guys and St Thomas NHS Foundation Trust,11/03/2022,(50562) Qualified Nursing Staff,(id:41914) Evelina Surgery Theatres & PICU,MEDICSPRO LTD,id:15018441  , 653.64
Department of Health,Guys and St Thomas NHS Foundation Trust,18/03/2022,(81100) Dressings,(id:41914) Evelina Surgery Theatres & PICU,ELIS UK LIMITED,id:14943756    , 871.30
Department of Health,Guys and St Thomas NHS Foundation Trust,24/03/2022,(82800) Bedding & Linen,(id:41910) Evelina Surgery Theatres & PICU,NHS SUPPLY CHAIN (MAIDSTONE),id:14966960,  14.88
Department of Health,Guys and St Thomas NHS Foundation Trust,24/03/2022,(81200) Medical Surgical Supplies & Equipment,(id:41910) Evelina Surgery Theatres & PICU,NHS SUPPLY CHAIN (MAIDSTONE),id:14970245   ,2053.35
Department of Health,Guys and St Thomas NHS Foundation Trust,24/03/2022,(82600) Uniforms & Clothing,(id:41910) Evelina Surgery Theatres & PICU,NHS SUPPLY CHAIN (MAIDSTONE),id:14966960 ,   8.64
Department of Health,Guys and St Thomas NHS Foundation Trust,24/03/2022,(83400) Office Equipment,(id:3722419) Evelina Surgery Theatres & PICU,NHS SUPPLY CHAIN (MAIDSTONE),id:14970245  ,  61.22
Department of Health,Guys and St Thomas NHS Foundation Trust,04/03/2022,(81200) Medical Surgical Supplies & Equipment,(id:1196421) Evelina Surgery Theatres & PICU,NUVASIVE UK LTD,id:14980371    ,    11107.80
Department of Health,Guys and St Thomas NHS Foundation Trust,04/03/2022,(81200) Medical Surgical Supplies & Equipment,(id:1196421) Evelina Surgery Theatres & PICU,NUVASIVE UK LTD,id:14980395    ,6324.00
Department of Health,Guys and St Thomas NHS Foundation Trust,25/03/2022,(81200) Medical Surgical Supplies & Equipment,(id:1196421) Evelina Surgery Theatres & PICU,NUVASIVE UK LTD,id:15025534    ,9480.48
Department of Health,Guys and St Thomas NHS Foundation Trust,11/03/2022,(81200) Medical Surgical Supplies & Equipment,(id:1196421) Evelina Surgery Theatres & PICU,NUVASIVE UK LTD,id:15011208    ,    -6249.60
Department of Health,Guys and St Thomas NHS Foundation Trust,11/03/2022,(81200) Medical Surgical Supplies & Equipment,(id:1196421) Evelina Surgery Theatres & PICU,NUVASIVE UK LTD,id:15013774    ,6487.20
Department of Health,Guys and St Thomas NHS Foundation Trust,11/03/2022,(81200) Medical Surgical Supplies & Equipment,(id:1196421) Evelina Surgery Theatres & PICU,NUVASIVE UK LTD,id:15011201    ,8878.86
Department of Health,Guys and St Thomas NHS Foundation Trust,11/03/2022,(81200) Medical Surgical Supplies & Equipment,(id:1196421) Evelina Surgery Theatres & PICU,NUVASIVE UK LTD,id:15011236    ,6199.20
Department of Health,Guys and St Thomas NHS Foundation Trust,11/03/2022,(81200) Medical Surgical Supplies & Equipment,(id:1196421) Evelina Surgery Theatres & PICU,NUVASIVE UK LTD,id:15011216    ,    -1264.80
Department of Health,Guys and St Thomas NHS Foundation Trust,04/03/2022,(81100) Dressings,(id:2498419) Evelina Surgery Theatres & PICU,NHS SUPPLY CHAIN (MAIDSTONE),id:14891794    ,  60.02
Department of Health,Guys and St Thomas NHS Foundation Trust,24/03/2022,(81200) Medical Surgical Supplies & Equipment,(id:2498419) Evelina Surgery Theatres & PICU,NHS SUPPLY CHAIN (MAIDSTONE),id:14970245 , 109.55
Department of Health,Guys and St Thomas NHS Foundation Trust,04/03/2022,(82700) Uniforms & Clothing,(id:2498419) Evelina Surgery Theatres & PICU,NHS SUPPLY CHAIN (MAIDSTONE),id:14891794    ,  17.79
Department of Health,Guys and St Thomas NHS Foundation Trust,04/03/2022,(50532) Unqualified Nursing Staff,(id:2498419) Evelina Surgery Theatres & PICU,GLOBE LOCUMS LTD,id:14989768, 241.79
Department of Health,Guys and St Thomas NHS Foundation Trust,18/03/2022,(50532) Unqualified Nursing Staff,(id:2498419) Evelina Surgery Theatres & PICU,GLOBE LOCUMS LTD,id:15034453, 277.88
Department of Health,Guys and St Thomas NHS Foundation Trust,04/03/2022,(81200) Medical Surgical Supplies & Equipment,(id:431409) Evelina Surgery Theatres & PICU,NHS SUPPLY CHAIN (MAIDSTONE),id:14891794  ,    25395.88
Department of Health,Guys and St Thomas NHS Foundation Trust,04/03/2022,(81200) Medical Surgical Supplies & Equipment,(id:431409) Evelina Surgery Theatres & PICU,JOHNSON & JOHNSON MEDICAL LTD,id:14986056 ,8680.32
Department of Health,Guys and St Thomas NHS Foundation Trust,04/03/2022,(81200) Medical Surgical Supplies & Equipment,(id:431409) Evelina Surgery Theatres & PICU,JOHNSON & JOHNSON MEDICAL LTD,id:14986036 ,2180.11
Department of Health,Guys and St Thomas NHS Foundation Trust,25/03/2022,(81200) Medical Surgical Supplies & Equipment,(id:431409) Evelina Surgery Theatres & PICU,ECHO ORTHOPAEDICS LTD,id:15030513    ,    44898.96
Department of Health,Guys and St Thomas NHS Foundation Trust,18/03/2022,(81000) Surgical Appliances,(id:431409) Evelina Surgery Theatres & PICU,JOHN FLORENCE LTD,id:15026596 , 529.52
Department of Health,Guys and St Thomas NHS Foundation Trust,18/03/2022,(81000) Surgical Appliances,(id:431409) Evelina Surgery Theatres & PICU,JOHN FLORENCE LTD,id:15026525 ,1017.56
Department of Health,Guys and St Thomas NHS Foundation Trust,04/03/2022,(84656) Establishment,(id:431409) Evelina Surgery Theatres & PICU,DICT8 LIMITED,id:14797225 ,1398.00
Department of Health,Guys and St Thomas NHS Foundation Trust,24/03/2022,(81200) Medical Surgical Supplies & Equipment,(id:468410) Evelina Surgery Theatres & PICU,NHS SUPPLY CHAIN (MAIDSTONE),id:14966960  ,  69.19
Department of Health,Guys and St Thomas NHS Foundation Trust,04/03/2022,(81200) Medical Surgical Supplies & Equipment,(id:468409) Evelina Surgery Theatres & PICU,T J SMITH & NEPHEW LTD,id:14952674   , 874.66
Department of Health,Guys and St Thomas NHS Foundation Trust,04/03/2022,(81200) Medical Surgical Supplies & Equipment,(id:468409) Evelina Surgery Theatres & PICU,STRYKER UK LTD,id:14712156 , 948.00
Department of Health,Guys and St Thomas NHS Foundation Trust,24/03/2022,(81200) Medical Surgical Supplies & Equipment,(id:468409) Evelina Surgery Theatres & PICU,NHS SUPPLY CHAIN (MAIDSTONE),id:14966960  , 595.90
Department of Health,Guys and St Thomas NHS Foundation Trust,24/03/2022,(82800) Bedding & Linen,(id:468409) Evelina Surgery Theatres & PICU,NHS SUPPLY CHAIN (MAIDSTONE),id:14966960    , 121.44
Department of Health,Guys and St Thomas NHS Foundation Trust,24/03/2022,(81200) Medical Surgical Supplies & Equipment,(id:2495421) Evelina Surgery Theatres & PICU,NHS SUPPLY CHAIN (MAIDSTONE),id:14970245 , 229.88
Department of Health,Guys and St Thomas NHS Foundation Trust,30/03/2022,(89000) Other - Training courses and conferences,(id:42347) Evelina Surgery Theatres & PICU,GSTT PROCUREMENT CARD,id:15081478  , 678.00
Department of Health,Guys and St Thomas NHS Foundation Trust,18/03/2022,(81200) Medical Surgical Supplies & Equipment,(id:42347) Evelina Surgery Theatres & PICU,NHS SUPPLY CHAIN (MAIDSTONE),id:14986785   , 227.03
Department of Health,Guys and St Thomas NHS Foundation Trust,24/03/2022,(81200) Medical Surgical Supplies & Equipment,(id:42347) Evelina Surgery Theatres & PICU,NHS SUPPLY CHAIN (MAIDSTONE),id:14966960   ,3450.58
Department of Health,Guys and St Thomas NHS Foundation Trust,24/03/2022,(81200) Medical Surgical Supplies & Equipment,(id:42347) Evelina Surgery Theatres & PICU,NHS SUPPLY CHAIN (MAIDSTONE),id:14970245   ,    13708.37
Department of Health,Guys and St Thomas NHS Foundation Trust,24/03/2022,(82000) Provisions & Kitchens,(id:42344) Evelina Surgery Theatres & PICU,NHS SUPPLY CHAIN (MAIDSTONE),id:14970245    ,  63.11
Department of Health,Guys and St Thomas NHS Foundation Trust,04/03/2022,(81200) Medical Surgical Supplies & Equipment,(id:42344) Evelina Surgery Theatres & PICU,DRAEGER MEDICAL UK LTD,id:14930293    , 950.74
Department of Health,Guys and St Thomas NHS Foundation Trust,18/03/2022,(81200) Medical Surgical Supplies & Equipment,(id:42344) Evelina Surgery Theatres & PICU,MASIMO EUROPE LTD,id:15033807    ,2250.00
Department of Health,Guys and St Thomas NHS Foundation Trust,18/03/2022,(82600) Uniforms & Clothing,(id:42339) Evelina Surgery Theatres & PICU,NHS SUPPLY CHAIN (MAIDSTONE),id:14986785 ,  37.68
Department of Health,Guys and St Thomas NHS Foundation Trust,25/03/2022,(84500) Establishment,(id:42339) Evelina Surgery Theatres & PICU,CDP  PRINT MANAGEMENT,id:15011878    ,  31.00
Department of Health,Guys and St Thomas NHS Foundation Trust,18/03/2022,(81200) Medical Surgical Supplies & Equipment,(id:42339) Evelina Surgery Theatres & PICU,AQUILANT CRITICAL CARE,id:15014373    , 915.94
Department of Health,Guys and St Thomas NHS Foundation Trust,24/03/2022,(81200) Medical Surgical Supplies & Equipment,(id:42339) Evelina Surgery Theatres & PICU,NHS SUPPLY CHAIN (MAIDSTONE),id:14966960   ,3547.46
Department of Health,Guys and St Thomas NHS Foundation Trust,18/03/2022,(81265) Medical Surgical Supplies & Equipment,(id:42339) Evelina Surgery Theatres & PICU,NHS SUPPLY CHAIN (MAIDSTONE),id:14986785   , 545.08
Department of Health,Guys and St Thomas NHS Foundation Trust,04/03/2022,(81275) Medical Surgical Supplies & Equipment,(id:42339) Evelina Surgery Theatres & PICU,RADIOMETER LTD,id:14963120  ,3645.24
Department of Health,Guys and St Thomas NHS Foundation Trust,18/03/2022,(81700) Lab Equipment Purchase,(id:42339) Evelina Surgery Theatres & PICU,NHS SUPPLY CHAIN (MAIDSTONE),id:14986785   ,  28.04
Department of Health,Guys and St Thomas NHS Foundation Trust,25/03/2022,(86300) Healthcare from non-NHS bodies,(id:2634419) Evelina R&D and Charity,AT MEDICS LTD,id:15052254 ,1692.00
Department of Health,Guys and St Thomas NHS Foundation Trust,25/03/2022,(86300) Healthcare from non-NHS bodies,(id:2634419) Evelina R&D and Charity,HETHERINGTON GROUP PRACTICE,id:15052311  ,1693.05
Department of Health,Guys and St Thomas NHS Foundation Trust,25/03/2022,(86300) Healthcare from non-NHS bodies,(id:2634419) Evelina R&D and Charity,QUAY HEALTH SOLUTIONS CIC,id:15052434    ,8313.00
Department of Health,Guys and St Thomas NHS Foundation Trust,24/03/2022,(81100) Dressings,(id:1127419) Cardiovascular Services,NHS SUPPLY CHAIN (MAIDSTONE),id:14966960  , 244.67
Department of Health,Guys and St Thomas NHS Foundation Trust,24/03/2022,(81000) Surgical Appliances,(id:1127419) Cardiovascular Services,NHS SUPPLY CHAIN (MAIDSTONE),id:14970245  , 191.88
Department of Health,Guys and St Thomas NHS Foundation Trust,04/03/2022,(81230) Medical Surgical Supplies & Equipment,(id:639421) Cardiovascular Services,COOK UK LTD,id:14890507  ,1864.56
Department of Health,Guys and St Thomas NHS Foundation Trust,04/03/2022,(81230) Medical Surgical Supplies & Equipment,(id:639421) Cardiovascular Services,COOK UK LTD,id:14930363  , 780.00
Department of Health,Guys and St Thomas NHS Foundation Trust,04/03/2022,(81200) Medical Surgical Supplies & Equipment,(id:639421) Cardiovascular Services,BENTLEY INNOMED GMBH,id:14987476   ,3060.00
Department of Health,Guys and St Thomas NHS Foundation Trust,11/03/2022,(81200) Medical Surgical Supplies & Equipment,(id:639421) Cardiovascular Services,COOK UK LTD,id:14960856  , 864.00
Department of Health,Guys and St Thomas NHS Foundation Trust,11/03/2022,(81200) Medical Surgical Supplies & Equipment,(id:639421) Cardiovascular Services,COOK UK LTD,id:14960854  , 864.00
Department of Health,Guys and St Thomas NHS Foundation Trust,11/03/2022,(81200) Medical Surgical Supplies & Equipment,(id:639421) Cardiovascular Services,BOSTON SCIENTIFIC LTD,id:14960878  ,5184.00
Department of Health,Guys and St Thomas NHS Foundation Trust,18/03/2022,(81200) Medical Surgical Supplies & Equipment,(id:639421) Cardiovascular Services,BENTLEY INNOMED GMBH,id:14926260   ,4080.00
Department of Health,Guys and St Thomas NHS Foundation Trust,18/03/2022,(81200) Medical Surgical Supplies & Equipment,(id:639421) Cardiovascular Services,VOLCANO EUROPE BVBA/SPRL,id:14937876    ,1080.00
Department of Health,Guys and St Thomas NHS Foundation Trust,18/03/2022,(81200) Medical Surgical Supplies & Equipment,(id:639421) Cardiovascular Services,NHS SUPPLY CHAIN (MAIDSTONE),id:14986785,1717.74
Department of Health,Guys and St Thomas NHS Foundation Trust,25/03/2022,(81200) Medical Surgical Supplies & Equipment,(id:639421) Cardiovascular Services,WL GORE & ASSOCIATES (UK) LTD,id:15012775    ,9120.00
Department of Health,Guys and St Thomas NHS Foundation Trust,25/03/2022,(81200) Medical Surgical Supplies & Equipment,(id:639421) Cardiovascular Services,VOLCANO EUROPE BVBA/SPRL,id:14976817    ,8340.00
Department of Health,Guys and St Thomas NHS Foundation Trust,25/03/2022,(81200) Medical Surgical Supplies & Equipment,(id:639421) Cardiovascular Services,BENTLEY INNOMED GMBH,id:15026289   ,1020.00
Department of Health,Guys and St Thomas NHS Foundation Trust,25/03/2022,(81200) Medical Surgical Supplies & Equipment,(id:639421) Cardiovascular Services,VOLCANO EUROPE BVBA/SPRL,id:14937075    ,1680.00
Department of Health,Guys and St Thomas NHS Foundation Trust,24/03/2022,(81100) Dressings,(id:780420) Cardiovascular Services,NHS SUPPLY CHAIN (MAIDSTONE),id:14966960   , 442.76
Department of Health,Guys and St Thomas NHS Foundation Trust,24/03/2022,(82600) Uniforms & Clothing,(id:780420) Cardiovascular Services,NHS SUPPLY CHAIN (MAIDSTONE),id:14966960   ,  16.84
Department of Health,Guys and St Thomas NHS Foundation Trust,24/03/2022,(81225) Medical Surgical Supplies & Equipment,(id:780420) Cardiovascular Services,NHS SUPPLY CHAIN (MAIDSTONE),id:14970245,  20.31
Department of Health,Guys and St Thomas NHS Foundation Trust,25/03/2022,(84500) Establishment,(id:780420) Cardiovascular Services,CDP  PRINT MANAGEMENT,id:15011877 ,  49.60
Department of Health,Guys and St Thomas NHS Foundation Trust,18/03/2022,(81255) Medical Surgical Supplies & Equipment,(id:780420) Cardiovascular Services,NHS SUPPLY CHAIN (MAIDSTONE),id:14986785,   8.20
Department of Health,Guys and St Thomas NHS Foundation Trust,11/03/2022,(50522) Unqualified Nursing Staff,(id:780420) Cardiovascular Services,CARE PROVIDERS HEALTHCARE,id:15018758, 288.57
Department of Health,Guys and St Thomas NHS Foundation Trust,24/03/2022,(82600) Uniforms & Clothing,(id:41952) Cardiovascular Services,NHS SUPPLY CHAIN (MAIDSTONE),id:14966960    ,  35.42
Department of Health,Guys and St Thomas NHS Foundation Trust,18/03/2022,(82600) Uniforms & Clothing,(id:41952) Cardiovascular Services,NHS SUPPLY CHAIN (MAIDSTONE),id:14986785    ,  59.04
Department of Health,Guys and St Thomas NHS Foundation Trust,18/03/2022,(81200) Medical Surgical Supplies & Equipment,(id:41950) Cardiovascular Services,MEDTRONIC LTD,id:14985970 ,6720.00
Department of Health,Guys and St Thomas NHS Foundation Trust,24/03/2022,(81700) Lab Equipment Purchase,(id:41950) Cardiovascular Services,NHS SUPPLY CHAIN (MAIDSTONE),id:14970245 , 390.12
Department of Health,Guys and St Thomas NHS Foundation Trust,24/03/2022,(81100) Dressings,(id:41950) Cardiovascular Services,NHS SUPPLY CHAIN (MAIDSTONE),id:14966960    ,  69.85
Department of Health,Guys and St Thomas NHS Foundation Trust,18/03/2022,(81100) Dressings,(id:41950) Cardiovascular Services,NHS SUPPLY CHAIN (MAIDSTONE),id:14986785    , 109.03
Department of Health,Guys and St Thomas NHS Foundation Trust,24/03/2022,(81500) X Ray Equipment Purchase,(id:41950) Cardiovascular Services,NHS SUPPLY CHAIN (MAIDSTONE),id:14970245    , 186.60
Department of Health,Guys and St Thomas NHS Foundation Trust,24/03/2022,(81100) Dressings,(id:41948) Cardiovascular Services,NHS SUPPLY CHAIN (MAIDSTONE),id:14966960    , 114.84
Department of Health,Guys and St Thomas NHS Foundation Trust,18/03/2022,(81200) Medical Surgical Supplies & Equipment,(id:41948) Cardiovascular Services,NHS SUPPLY CHAIN (MAIDSTONE),id:14986785 ,  39.38
Department of Health,Guys and St Thomas NHS Foundation Trust,25/03/2022,(81200) Medical Surgical Supplies & Equipment,(id:41948) Cardiovascular Services,BARD LTD,id:14945330 ,1170.00
Department of Health,Guys and St Thomas NHS Foundation Trust,04/03/2022,(81200) Medical Surgical Supplies & Equipment,(id:41947) Cardiovascular Services,NHS SUPPLY CHAIN (MAIDSTONE),id:14891794 ,  65.90
Department of Health,Guys and St Thomas NHS Foundation Trust,25/03/2022,(84500) Establishment,(id:42305) Cardiovascular Services,CDP  PRINT MANAGEMENT,id:15011878  ,  36.00
Department of Health,Guys and St Thomas NHS Foundation Trust,18/03/2022,(80010) Drug Costs,(id:42305) Cardiovascular Services,KINGS COLLEGE LONDON:03529700,id:14963356  , 710.68
Department of Health,Guys and St Thomas NHS Foundation Trust,18/03/2022,(84656) Establishment,(id:42305) Cardiovascular Services,DICT8 LIMITED,id:14797337, 564.00
Department of Health,Guys and St Thomas NHS Foundation Trust,18/03/2022,(82000) Provisions & Kitchens,(id:42300) Cardiovascular Services,NHS SUPPLY CHAIN (MAIDSTONE),id:14986785  ,  21.40
Department of Health,Guys and St Thomas NHS Foundation Trust,24/03/2022,(82800) Bedding & Linen,(id:42300) Cardiovascular Services,NHS SUPPLY CHAIN (MAIDSTONE),id:14966960   ,  90.12
Department of Health,Guys and St Thomas NHS Foundation Trust,04/03/2022,(81225) Medical Surgical Supplies & Equipment,(id:42300) Cardiovascular Services,NHS SUPPLY CHAIN (MAIDSTONE),id:14891794 ,  30.46
Department of Health,Guys and St Thomas NHS Foundation Trust,04/03/2022,(81100) Dressings,(id:42300) Cardiovascular Services,KCI MEDICAL LTD,id:14986827  ,1076.40
Department of Health,Guys and St Thomas NHS Foundation Trust,04/03/2022,(50552) Qualified Nursing Staff,(id:42300) Cardiovascular Services,CONTINENTAL NURSE LTD,id:14989767  , 651.29
Department of Health,Guys and St Thomas NHS Foundation Trust,04/03/2022,(83410) Office Equipment,(id:42300) Cardiovascular Services,RICOH UK LTD,id:14972556   , 104.44
Department of Health,Guys and St Thomas NHS Foundation Trust,04/03/2022,(81200) Medical Surgical Supplies & Equipment,(id:42301) Cardiovascular Services,NHS SUPPLY CHAIN (MAIDSTONE),id:14891794 , 391.08
Department of Health,Guys and St Thomas NHS Foundation Trust,18/03/2022,(81200) Medical Surgical Supplies & Equipment,(id:42301) Cardiovascular Services,NHS SUPPLY CHAIN (MAIDSTONE),id:14986785 ,  85.89
Department of Health,Guys and St Thomas NHS Foundation Trust,24/03/2022,(81700) Lab Equipment Purchase,(id:42301) Cardiovascular Services,NHS SUPPLY CHAIN (MAIDSTONE),id:14966960 , 106.80
Department of Health,Guys and St Thomas NHS Foundation Trust,25/03/2022,(81280) Medical Surgical Supplies & Equipment,(id:42302) Cardiovascular Services,EDWARDS LIFESCIENCES LTD,id:14987499,   -25530.00
Department of Health,Guys and St Thomas NHS Foundation Trust,04/03/2022,(81200) Medical Surgical Supplies & Equipment,(id:42302) Cardiovascular Services,TELEFLEX MEDICAL,id:14913116   , 750.00
Department of Health,Guys and St Thomas NHS Foundation Trust,18/03/2022,(81200) Medical Surgical Supplies & Equipment,(id:42302) Cardiovascular Services,VOLCANO EUROPE BVBA/SPRL,id:14936803, 540.00
Department of Health,Guys and St Thomas NHS Foundation Trust,18/03/2022,(81200) Medical Surgical Supplies & Equipment,(id:42302) Cardiovascular Services,VOLCANO EUROPE BVBA/SPRL,id:14937874,1080.00
Department of Health,Guys and St Thomas NHS Foundation Trust,11/03/2022,(81200) Medical Surgical Supplies & Equipment,(id:42302) Cardiovascular Services,TERUMO UK LTD,id:14984914 ,1140.00
Department of Health,Guys and St Thomas NHS Foundation Trust,22/03/2022,(54072) Technical Officers,(id:42303) Cardiovascular Services,PRICEWATERHOUSECOOPERS LLP,id:15054354  ,4693.05
Department of Health,Guys and St Thomas NHS Foundation Trust,18/03/2022,(89595) Non-Healthcare from Foundation Trusts,(id:42304) Cardiovascular Services,BIRMINGHAM WOMENS AND CHILDREN'S HOSPITAL NHS FOUNDATION TRUST,id:14165853  ,3888.15
Department of Health,Guys and St Thomas NHS Foundation Trust,25/03/2022,(89120) Other - Legal fees,(id:42304) Cardiovascular Services,THOMPSONS SOLICITORS,id:15053824   , 450.00
Department of Health,Guys and St Thomas NHS Foundation Trust,11/03/2022,(83760) Rent,(id:1664419) Cardiovascular Services,DARTFORD AND GRAVESHAM NHS TRUST,id:14684037   ,7990.10
Department of Health,Guys and St Thomas NHS Foundation Trust,04/03/2022,(82800) Bedding & Linen,(id:3923419) Cardiovascular Services,NHS SUPPLY CHAIN (MAIDSTONE),id:14891794 ,  62.82
Department of Health,Guys and St Thomas NHS Foundation Trust,24/03/2022,(81100) Dressings,(id:3923419) Cardiovascular Services,NHS SUPPLY CHAIN (MAIDSTONE),id:14966960  ,2087.07
Department of Health,Guys and St Thomas NHS Foundation Trust,18/03/2022,(81225) Medical Surgical Supplies & Equipment,(id:3923419) Cardiovascular Services,NHS SUPPLY CHAIN (MAIDSTONE),id:14986785    ,   5.08
Department of Health,Guys and St Thomas NHS Foundation Trust,04/03/2022,(50522) Unqualified Nursing Staff,(id:3923419) Cardiovascular Services,CARE PROVIDERS HEALTHCARE,id:14990154    , 267.61
Department of Health,Guys and St Thomas NHS Foundation Trust,24/03/2022,(81200) Medical Surgical Supplies & Equipment,(id:1243420) Cardiovascular Services,NHS SUPPLY CHAIN (MAIDSTONE),id:14966960    ,  66.00
Department of Health,Guys and St Thomas NHS Foundation Trust,04/03/2022,(81100) Dressings,(id:1243420) Cardiovascular Services,NHS SUPPLY CHAIN (MAIDSTONE),id:14891794  , 138.53
Department of Health,Guys and St Thomas NHS Foundation Trust,11/03/2022,(81200) Medical Surgical Supplies & Equipment,(id:1243419) Cardiovascular Services,ZOLL MEDICAL UK LTD,id:15003534   ,  23.88
Department of Health,Guys and St Thomas NHS Foundation Trust,22/03/2022,(52072) Radiographers,(id:1243419) Cardiovascular Services,PRICEWATERHOUSECOOPERS LLP,id:15054615,2674.08
Department of Health,Guys and St Thomas NHS Foundation Trust,18/03/2022,(50552) Qualified Nursing Staff,(id:42291) Cardiovascular Services,CONTINENTAL NURSE LTD,id:15034305  ,2297.19
Department of Health,Guys and St Thomas NHS Foundation Trust,18/03/2022,(82600) Uniforms & Clothing,(id:42290) Cardiovascular Services,NHS SUPPLY CHAIN (MAIDSTONE),id:14986785    ,  60.07
Department of Health,Guys and St Thomas NHS Foundation Trust,18/03/2022,(82800) Bedding & Linen,(id:42290) Cardiovascular Services,NHS SUPPLY CHAIN (MAIDSTONE),id:14986785   , 107.69
Department of Health,Guys and St Thomas NHS Foundation Trust,24/03/2022,(82800) Bedding & Linen,(id:42290) Cardiovascular Services,NHS SUPPLY CHAIN (MAIDSTONE),id:14966960   , 215.15
Department of Health,Guys and St Thomas NHS Foundation Trust,18/03/2022,(81200) Medical Surgical Supplies & Equipment,(id:42290) Cardiovascular Services,NHS SUPPLY CHAIN (MAIDSTONE),id:14986785 , 644.48
Department of Health,Guys and St Thomas NHS Foundation Trust,24/03/2022,(81700) Lab Equipment Purchase,(id:42290) Cardiovascular Services,NHS SUPPLY CHAIN (MAIDSTONE),id:14970245 ,  19.40
Department of Health,Guys and St Thomas NHS Foundation Trust,04/03/2022,(81200) Medical Surgical Supplies & Equipment,(id:42298) Cardiovascular Services,JOHNSON & JOHNSON MEDICAL LTD,id:14926429,6000.00
Department of Health,Guys and St Thomas NHS Foundation Trust,18/03/2022,(81200) Medical Surgical Supplies & Equipment,(id:42298) Cardiovascular Services,JOHNSON & JOHNSON MEDICAL LTD,id:14985897,4500.00
Department of Health,Guys and St Thomas NHS Foundation Trust,25/03/2022,(81200) Medical Surgical Supplies & Equipment,(id:42298) Cardiovascular Services,JOHNSON & JOHNSON MEDICAL LTD,id:15011826,1517.16
Department of Health,Guys and St Thomas NHS Foundation Trust,25/03/2022,(81200) Medical Surgical Supplies & Equipment,(id:42298) Cardiovascular Services,TELEFLEX MEDICAL,id:15014438   ,1080.00
Department of Health,Guys and St Thomas NHS Foundation Trust,24/03/2022,(81100) Dressings,(id:42298) Cardiovascular Services,NHS SUPPLY CHAIN (MAIDSTONE),id:14970245    ,  66.06
Department of Health,Guys and St Thomas NHS Foundation Trust,04/03/2022,(81280) Medical Surgical Supplies & Equipment,(id:42298) Cardiovascular Services,NHS SUPPLY CHAIN (MAIDSTONE),id:14891794 ,    36000.00
Department of Health,Guys and St Thomas NHS Foundation Trust,18/03/2022,(81225) Medical Surgical Supplies & Equipment,(id:42298) Cardiovascular Services,NHS SUPPLY CHAIN (MAIDSTONE),id:14986785 ,  12.00
Department of Health,Guys and St Thomas NHS Foundation Trust,18/03/2022,(82600) Uniforms & Clothing,(id:42298) Cardiovascular Services,NHS SUPPLY CHAIN (MAIDSTONE),id:14986785    ,  75.67
Department of Health,Guys and St Thomas NHS Foundation Trust,25/03/2022,(81200) Medical Surgical Supplies & Equipment,(id:42292) Cardiovascular Services,GETINGE LTD,id:15026231   , 523.20
Department of Health,Guys and St Thomas NHS Foundation Trust,11/03/2022,(81200) Medical Surgical Supplies & Equipment,(id:42292) Cardiovascular Services,LIVANOVA UK LTD,id:14980254    , 553.68
Department of Health,Guys and St Thomas NHS Foundation Trust,18/03/2022,(81200) Medical Surgical Supplies & Equipment,(id:42292) Cardiovascular Services,WERFEN LIMITED,id:15026161,1583.00
Department of Health,Guys and St Thomas NHS Foundation Trust,25/03/2022,(81100) Dressings,(id:42292) Cardiovascular Services,GETINGE LTD,id:15034033 , 366.00
Department of Health,Guys and St Thomas NHS Foundation Trust,18/03/2022,(81700) Lab Equipment Purchase,(id:42292) Cardiovascular Services,NHS SUPPLY CHAIN (MAIDSTONE),id:14986785 ,  16.09
Department of Health,Guys and St Thomas NHS Foundation Trust,24/03/2022,(82600) Uniforms & Clothing,(id:42293) Cardiovascular Services,NHS SUPPLY CHAIN (MAIDSTONE),id:14970245    ,  42.48
Department of Health,Guys and St Thomas NHS Foundation Trust,18/03/2022,(82800) Bedding & Linen,(id:42293) Cardiovascular Services,NHS SUPPLY CHAIN (MAIDSTONE),id:14986785   ,  64.68
Department of Health,Guys and St Thomas NHS Foundation Trust,24/03/2022,(83400) Office Equipment,(id:42293) Cardiovascular Services,NHS SUPPLY CHAIN (MAIDSTONE),id:14966960  ,1089.45
Department of Health,Guys and St Thomas NHS Foundation Trust,04/03/2022,(81200) Medical Surgical Supplies & Equipment,(id:42293) Cardiovascular Services,MEDTRONIC LTD,id:14908214 , 950.40
Department of Health,Guys and St Thomas NHS Foundation Trust,18/03/2022,(81200) Medical Surgical Supplies & Equipment,(id:42293) Cardiovascular Services,GETINGE LTD,id:15019216   , 715.20
Department of Health,Guys and St Thomas NHS Foundation Trust,25/03/2022,(81200) Medical Surgical Supplies & Equipment,(id:42293) Cardiovascular Services,MEDTRONIC LTD,id:14994635 , 880.80
Department of Health,Guys and St Thomas NHS Foundation Trust,25/03/2022,(81200) Medical Surgical Supplies & Equipment,(id:42293) Cardiovascular Services,EDWARDS LIFESCIENCES LTD,id:15018029,1080.00
Department of Health,Guys and St Thomas NHS Foundation Trust,25/03/2022,(81200) Medical Surgical Supplies & Equipment,(id:42293) Cardiovascular Services,JOHNSON & JOHNSON MEDICAL LTD,id:15014473, 500.47
Department of Health,Guys and St Thomas NHS Foundation Trust,11/03/2022,(81200) Medical Surgical Supplies & Equipment,(id:42293) Cardiovascular Services,VASCUTEK LTD,id:14984034  , 987.00
Department of Health,Guys and St Thomas NHS Foundation Trust,11/03/2022,(81200) Medical Surgical Supplies & Equipment,(id:42293) Cardiovascular Services,DOT MEDICAL LTD,id:15005074    , 776.40
Department of Health,Guys and St Thomas NHS Foundation Trust,11/03/2022,(81200) Medical Surgical Supplies & Equipment,(id:42293) Cardiovascular Services,MEDTRONIC LTD,id:14967225 , 672.00
Department of Health,Guys and St Thomas NHS Foundation Trust,11/03/2022,(81200) Medical Surgical Supplies & Equipment,(id:42293) Cardiovascular Services,GETINGE LTD,id:15015360   , 720.00
Department of Health,Guys and St Thomas NHS Foundation Trust,18/03/2022,(81280) Medical Surgical Supplies & Equipment,(id:42293) Cardiovascular Services,CRYOLIFE EUROPA LTD,id:15027343,1440.00
Department of Health,Guys and St Thomas NHS Foundation Trust,18/03/2022,(81280) Medical Surgical Supplies & Equipment,(id:42293) Cardiovascular Services,CRYOLIFE EUROPA LTD,id:15035242,1440.00
Department of Health,Guys and St Thomas NHS Foundation Trust,24/03/2022,(81280) Medical Surgical Supplies & Equipment,(id:42293) Cardiovascular Services,NHS SUPPLY CHAIN (MAIDSTONE),id:14970245 ,2263.20
Department of Health,Guys and St Thomas NHS Foundation Trust,25/03/2022,(81280) Medical Surgical Supplies & Equipment,(id:42293) Cardiovascular Services,EDWARDS LIFESCIENCES LTD,id:14992217,1056.00
Department of Health,Guys and St Thomas NHS Foundation Trust,25/03/2022,(81280) Medical Surgical Supplies & Equipment,(id:42293) Cardiovascular Services,VASCUTEK LTD,id:15019297  ,1333.80
Department of Health,Guys and St Thomas NHS Foundation Trust,24/03/2022,(82600) Uniforms & Clothing,(id:42287) Cardiovascular Services,NHS SUPPLY CHAIN (MAIDSTONE),id:14970245    ,   4.21
Department of Health,Guys and St Thomas NHS Foundation Trust,25/03/2022,(84500) Establishment,(id:42287) Cardiovascular Services,CDP  PRINT MANAGEMENT,id:15011876  ,  46.50
Department of Health,Guys and St Thomas NHS Foundation Trust,24/03/2022,(83400) Office Equipment,(id:42287) Cardiovascular Services,NHS SUPPLY CHAIN (MAIDSTONE),id:14970245  , 178.69
Department of Health,Guys and St Thomas NHS Foundation Trust,24/03/2022,(81200) Medical Surgical Supplies & Equipment,(id:42287) Cardiovascular Services,NHS SUPPLY CHAIN (MAIDSTONE),id:14970245 , 853.93
Department of Health,Guys and St Thomas NHS Foundation Trust,18/03/2022,(50522) Unqualified Nursing Staff,(id:42287) Cardiovascular Services,MSI GROUP LTD,id:15034338   , 758.78
Department of Health,Guys and St Thomas NHS Foundation Trust,18/03/2022,(81200) Medical Surgical Supplies & Equipment,(id:41863) PACCS,RESMED (UK) LTD,id:14989286  ,3192.00
Department of Health,Guys and St Thomas NHS Foundation Trust,24/03/2022,(82600) Uniforms & Clothing,(id:41935) PACCS,NHS SUPPLY CHAIN (MAIDSTONE),id:14966960  ,  12.24
Department of Health,Guys and St Thomas NHS Foundation Trust,24/03/2022,(82000) Provisions & Kitchens,(id:41935) PACCS,NHS SUPPLY CHAIN (MAIDSTONE),id:14970245,  23.05
Department of Health,Guys and St Thomas NHS Foundation Trust,04/03/2022,(84500) Establishment,(id:41935) PACCS,OT GROUP LTD,id:14989589    ,-757.38
Department of Health,Guys and St Thomas NHS Foundation Trust,18/03/2022,(83400) Office Equipment,(id:41935) PACCS,NHS SUPPLY CHAIN (MAIDSTONE),id:14986785,  58.03
Department of Health,Guys and St Thomas NHS Foundation Trust,24/03/2022,(82800) Bedding & Linen,(id:41935) PACCS,NHS SUPPLY CHAIN (MAIDSTONE),id:14970245 , 124.14
Department of Health,Guys and St Thomas NHS Foundation Trust,04/03/2022,(50562) Qualified Nursing Staff,(id:41935) PACCS,MEDICSPRO LTD,id:14989918   , 564.16
Department of Health,Guys and St Thomas NHS Foundation Trust,24/03/2022,(81100) Dressings,(id:41935) PACCS,NHS SUPPLY CHAIN (MAIDSTONE),id:14966960  , 226.50
Department of Health,Guys and St Thomas NHS Foundation Trust,24/03/2022,(81200) Medical Surgical Supplies & Equipment,(id:41935) PACCS,NHS SUPPLY CHAIN (MAIDSTONE),id:14966960    ,1834.34
Department of Health,Guys and St Thomas NHS Foundation Trust,18/03/2022,(81200) Medical Surgical Supplies & Equipment,(id:41935) PACCS,SMITHS MEDICAL INTERNATIONAL LTD:69519000,id:15018156 , 729.84
Department of Health,Guys and St Thomas NHS Foundation Trust,04/03/2022,(81000) Surgical Appliances,(id:41935) PACCS,TALAR MADE ORTHOTICS LTD,id:14984334 , 337.56
Department of Health,Guys and St Thomas NHS Foundation Trust,24/03/2022,(80010) Drug Costs,(id:41935) PACCS,NHS SUPPLY CHAIN (MAIDSTONE),id:14970245 ,  18.00
Department of Health,Guys and St Thomas NHS Foundation Trust,25/03/2022,(81200) Medical Surgical Supplies & Equipment,(id:1856419) PACCS,1ST CALL MOBILITY LTD,id:14964840    ,-540.00
Department of Health,Guys and St Thomas NHS Foundation Trust,24/03/2022,(81200) Medical Surgical Supplies & Equipment,(id:3597419) PACCS,NHS SUPPLY CHAIN (MAIDSTONE),id:14966960  ,   8.33
Department of Health,Guys and St Thomas NHS Foundation Trust,30/03/2022,(89440) Research and Development,(id:2588419) PACCS,GSTT PROCUREMENT CARD,id:15081478  ,1132.99
Department of Health,Guys and St Thomas NHS Foundation Trust,24/03/2022,(81200) Medical Surgical Supplies & Equipment,(id:2545419) PACCS,NHS SUPPLY CHAIN (MAIDSTONE),id:14966960  , 745.47
Department of Health,Guys and St Thomas NHS Foundation Trust,24/03/2022,(82800) Bedding & Linen,(id:2545419) PACCS,NHS SUPPLY CHAIN (MAIDSTONE),id:14966960    ,  94.65
Department of Health,Guys and St Thomas NHS Foundation Trust,04/03/2022,(81225) Medical Surgical Supplies & Equipment,(id:2545419) PACCS,NHS SUPPLY CHAIN (MAIDSTONE),id:14891794  ,   7.36
Department of Health,Guys and St Thomas NHS Foundation Trust,04/03/2022,(83410) Office Equipment,(id:41919) PACCS,RICOH UK LTD,id:14972556 , 133.67
Department of Health,Guys and St Thomas NHS Foundation Trust,25/03/2022,(89000) Other - Training courses and conferences,(id:41919) PACCS,HILTON LONDON BANKSIDE,id:15053796  , 600.75
Department of Health,Guys and St Thomas NHS Foundation Trust,11/03/2022,(81400) Medical Surgical Supplies & Equipment,(id:863419) PACCS,GETINGE LTD,id:14628255,1992.81
Department of Health,Guys and St Thomas NHS Foundation Trust,24/03/2022,(82000) Provisions & Kitchens,(id:1842421) PACCS,NHS SUPPLY CHAIN (MAIDSTONE),id:14966960   ,   2.80
Department of Health,Guys and St Thomas NHS Foundation Trust,24/03/2022,(81225) Medical Surgical Supplies & Equipment,(id:1842421) PACCS,NHS SUPPLY CHAIN (MAIDSTONE),id:14970245  ,  67.76
Department of Health,Guys and St Thomas NHS Foundation Trust,11/03/2022,(50562) Qualified Nursing Staff,(id:2121419) PACCS,AMC PROFESSIONAL LTD,id:15018891    , 595.71
Department of Health,Guys and St Thomas NHS Foundation Trust,24/03/2022,(81700) Lab Equipment Purchase,(id:2121419) PACCS,NHS SUPPLY CHAIN (MAIDSTONE),id:14966960  ,  19.40
Department of Health,Guys and St Thomas NHS Foundation Trust,24/03/2022,(82600) Uniforms & Clothing,(id:41927) PACCS,NHS SUPPLY CHAIN (MAIDSTONE),id:14970245  , 103.30
Department of Health,Guys and St Thomas NHS Foundation Trust,18/03/2022,(81100) Dressings,(id:41927) PACCS,NHS SUPPLY CHAIN (MAIDSTONE),id:14986785  , 251.98
Department of Health,Guys and St Thomas NHS Foundation Trust,24/03/2022,(81100) Dressings,(id:41927) PACCS,NHS SUPPLY CHAIN (MAIDSTONE),id:14966960  , 276.32
Department of Health,Guys and St Thomas NHS Foundation Trust,24/03/2022,(81225) Medical Surgical Supplies & Equipment,(id:41927) PACCS,NHS SUPPLY CHAIN (MAIDSTONE),id:14966960    ,  29.47
Department of Health,Guys and St Thomas NHS Foundation Trust,18/03/2022,(83400) Office Equipment,(id:41928) PACCS,NHS SUPPLY CHAIN (MAIDSTONE),id:14986785, 400.42
Department of Health,Guys and St Thomas NHS Foundation Trust,04/03/2022,(81200) Medical Surgical Supplies & Equipment,(id:41928) PACCS,AMBU LIMITED,id:14980348,4309.14
Department of Health,Guys and St Thomas NHS Foundation Trust,11/03/2022,(81200) Medical Surgical Supplies & Equipment,(id:41928) PACCS,ZOLL MEDICAL UK LTD,id:15018019   , 508.74
Department of Health,Guys and St Thomas NHS Foundation Trust,24/03/2022,(81200) Medical Surgical Supplies & Equipment,(id:41928) PACCS,NHS SUPPLY CHAIN (MAIDSTONE),id:14970245    ,    17595.78
Department of Health,Guys and St Thomas NHS Foundation Trust,25/03/2022,(81200) Medical Surgical Supplies & Equipment,(id:41928) PACCS,1ST CALL MOBILITY LTD,id:13899494 , 588.00
Department of Health,Guys and St Thomas NHS Foundation Trust,25/03/2022,(81200) Medical Surgical Supplies & Equipment,(id:41928) PACCS,ARJO UK LIMITED,id:15011428  ,    -1236.00
